Workbook

Sheet Legends
A1: Table S1: Origin of 50 field-isolated resistant and sensitive Savannah T. congolense strains. And summary of the cell lines generated during this study
A2: R: Resistant to 1 mg/kg ISM, S: Sensitive to 1 mg/kg ISM, I: Intermediate, partial resistance to 1 mg/kg ISM
A4: Table S2: Long gene deletions and duplications in TRT15 genomes for 5 and 10 passages with or without ISM pressure compared with TRT15. Red: Gene duplications = at least one additional copy compared with TRT15
A6: Table S3: 86 heterozygous SNPs in the sensitive MSOROM7 line became homozygous (frequency ≥ 0.8) in one or more resistant MSOROM7 lines; common allele frequency shifts between MSOROM7 resistant lines; and common genes with allele frequency shifts in MSOROM7 resistant lines and TRT15p10-ISM. Four homozygous SNPs were common to all resistant strains and included one synonymous SNP in the gene TcIL3000.11.2040 encoding a hypothetical protein, and three non-coding SNPs (Fig. 3A; Table S3: Red). Seven common SNPs in both MSOROM7-H and MSOROM7-I (and absent in MSOROM7-G) were observed (Fig. 3A; Table S3: Green), and two non-coding SNPs were common between MSOROM7-G and MSOROM7-I (and absent in MSOROM7-H) (Fig. 4A; Table S3: Blue).
A7: Bold: non-synonymous SNPs; Red: SNPs shared between all MSOROM7 resistant lines; Blue: SNPs shared between MSOROM7-G and MSOROM7-I; Green: SNPs shared between MSOROM7-H and MSOROM7-I, underlined: SNPs shared between one or more MSOROM7 resistant lines and TRT15p10-ISM
A9: Table S4: Gene deletions in the MSOROM7 resistant lines compared with the MSOROM7 sensitive line; gene deletions in TRT15p10-ISM compared with TRT15; and deletions shared by MSOROM7 resistant lines and TC2 resistant parasites.
A10: Bold: Long deletions shared by two or more MSOROM7 resistant lines; Red: Long deletions shared by one or more MSOROM7 resistant lines and TRT15p10-ISM. Green: Long deletions shared by one or more MSOROM7 resistant lines and TC2
A12: Table S5: Gene copy number variations in 272 genes in MSOROM7 resistant lines compared with the sensitive parental line. The copy number of 79 genes (bold) also increased in TRT15p10-ISM compared with TRT15.
A13: Red: At least one additional copy in MSOROM7-G; Blue: At least one additional copy in MSOROM7-H; Green: At least one additional copy in MSOROM7-I; Bold: Shared increase in gene copy number between one or more MSOROM7 resistant lines and TRT15p10-ISM; Underlined: Shared increase in gene copy number between one or more MSOROM7 resistant lines and TC1 or Zambian resistant strains
A15: Table S6: List of genes potentially involved in ISM resistance and selected for a more targeted analysis of allele frequency shifts between resistant and sensitive field-isolated strains. These genes were also analyzed in the genome analyses of the drug selection samples and included the genes encoding the V-ATPase and the subunit γ of the F1FO ATP synthase that are associated with ISM-resistance in T. brucei parasites (Dean, Gould et al. 2013, Gould and Schnaufer 2014, Baker, Hamilton et al. 2015, Eze, Gould et al. 2016), the genes encoding multidrug resistance (MDR) transporters involved in drug resistance in Plasmodium and Leishmania spp. (Perez-Victoria, Di Pietro et al. 2002, Veiga, Dhingra et al. 2016), ABC transporters, genes related to the nuclear and mitochondrial topoisomerases (i.e. mitochondrial type II topoisomerase is the target of ISM), and the 30 genes identified in the selection experiment (see results and Table S3)
A17: Table S7: Shifts in the allele frequencies ≥ 0.25 in the genes listed in Table S6 between sensitive and resistant field-isolated strains of each TC populations.
A18: Blue: Allele frequency equal to 0 (no SNP), Red: Allele frequency of 1 (Homozygous SNP)
A19: Bold: Shared allele frequency between TC1 and TC2; Italic: Shared allele frequency between TC1 and Zambia; underlined: Shared allele frequency between TC2 and Zambia
A21: Figure S1: Number of genes in which CNVs were detected in the resistant field isolates compared with the MSOROM7 resistant lines and TRT15p10-ISM. A) Number of long deletions in TRT15p10 and TRT15p10-ISM compared with TRT15. B) Number of gene duplications in TRT15p10 and TRT15p10-ISM compared with TRT15. C) Number of gene deletions. Shared deletions can be found in Table S4: Green. D) Number of gene duplications. Shared duplications can be found in Table S5: underlined.

Sheet Table S1
A2: Isolate | B2: Country of origin | C2: Year of Isolation | D2: Phenotype | E2: TC subpopulation | F2: Reference | H2: Lines generated in this study | I2: Experiment
A3: BANAN CL2 | B3: Burkina Faso | C3: 1983 | D3: R | E3: NA | F3: (Pinder and Authie 1984) | H3: MSOROM7-G2 | I3: in vivo-induced resistant strain | J3: line G – Passage 2 | K3: Resistant to 0.01 mg/kg ISM
A4: KARAN | B4: Burkina Faso | C4: 1986 | D4: R | E4: TC1 | F4: (Delespaux et al. 2005) | H4: MSOROM7-G3 | I4: in vivo-induced resistant strain | J4: line G – Passage 3 | K4: Resistant to 0.02 mg/kg ISM
A5: MBOI/BK/89/SA267 | B5: Burkina Faso | C5: 1989 | D5: R | E5: TC1 | F5: (Clausen et al. 1992) | H5: MSOROM7-G4 | I5: in vivo-induced resistant strain | J5: line G – Passage 4 | K5: Resistant to 0.04 mg/kg ISM
A6: MBOI/BK/89/SA268 | B6: Burkina Faso | C6: 1989 | D6: R | E6: TC1 | F6: (Clausen et al. 1992) | H6: MSOROM7-G | I6: in vivo-induced resistant strain | J6: line G – Passage 5 | K6: Resistant to 1 mg/kg ISM
A7: MBOI/BK/98/SA95-3308 | B7: Burkina Faso | C7: 1998 | D7: R | E7: TC1 | F7: (Knoppe 2002) | H7: MSOROM7-H2 | I7: in vivo-induced resistant strain | J7: line H – Passage 2 | K7: Resistant to 0.01 mg/kg ISM
A8: ALME | B8: Cameroon | C8: 2005 | D8: R | E8: TC1 | F8: (Mamoudou et al. 2008) | H8: MSOROM7-H3 | I8: in vivo-induced resistant strain | J8: line H – Passage 3 | K8: Resistant to 0.02 mg/kg ISM
A9: BEKA | B9: Cameroon | C9: 2005 | D9: R | E9: TC1 | F9: (Mamoudou et al. 2008) | H9: MSOROM7-H4 | I9: in vivo-induced resistant strain | J9: line H – Passage 4 | K9: Resistant to 0.04 mg/kg ISM
A10: KONT1/129 | B10: Cameroon | C10: 2005 | D10: R | E10: TC1 | F10: (Mamoudou et al. 2006) | H10: MSOROM7-H | I10: in vivo-induced resistant strain | J10: line H – Passage 5 | K10: Resistant to 1 mg/kg ISM
A11: KONT2/133 | B11: Cameroon | C11: 2005 | D11: R | E11: TC1 | F11: (Mamoudou et al. 2006) | H11: MSOROM7-I2 | I11: in vivo-induced resistant strain | J11: line I – Passage 2 | K11: Resistant to 0.01 mg/kg ISM
A12: KONT2/151 | B12: Cameroon | C12: 2005 | D12: R | E12: TC1 | F12: (Mamoudou et al. 2006) | H12: MSOROM7-I3 | I12: in vivo-induced resistant strain | J12: line I – Passage 3 | K12: Resistant to 0.02 mg/kg ISM
A13: POUSS | B13: Cameroon | C13: 2005 | D13: R | E13: TC1 | F13: (Mamoudou et al. 2008) | H13: MSOROM7-I4 | I13: in vivo-induced resistant strain | J13: line I – Passage 4 | K13: Resistant to 0.04 mg/kg ISM
A14: DJUMA | B14: Congo | C14: 1988 | D14: R | E14: TC2 | F14: (Delespaux et al. 2005) | H14: MSOROM7-I | I14: in vivo-induced resistant strain | J14: line I – Passage 5 | K14: Resistant to 1 mg/kg ISM
A15: MBOI/ET/97/PAUWE73 | B15: Ethiopia | C15: 1997 | D15: R | E15: TC1 | F15: (Afewerk et al. 2000) | H15: TRT15p5 | I15: Resistant field-isolated strain TRT15 maintained for 5 passages in the murine host without drug pressure
A16: MBOI/ET/97/PAUWE77 | B16: Ethiopia | C16: 1997 | D16: R | E16: TC1 | F16: (Afewerk et al. 2000) | H16: TRT15p10 | I16: Resistant field-isolated strain TRT15 maintained for 10 passages in the murine host without drug pressure
A17: WETEJA F015 | B17: Ethiopia | C17: 2010 | D17: R | E17: TC1 | F17: (Moti et al. 2012) | H17: TRT15p5-ISM | I17: Resistant field-isolated strain TRT15 maintained for 5 passages in the murine with a continuous drug pressure of 1 mg/kg ISM
A18: YATU F187 | B18: Ethiopia | C18: 2010 | D18: R | E18: TC1 | F18: (Moti et al. 2012) | H18: TRT15p10-ISM | I18: Resistant field-isolated strain TRT15 maintained for 10 passages in the murine with a continuous drug pressure of 1 mg/kg ISM
A19: GUTR28 | B19: Gambia | C19: 1975 | D19: S | E19: TC1 | F19: (Delespaux et al. 2005)
A20: GUTR37 | B20: Gambia | C20: 1975 | D20: S | E20: TC1 | F20: (Delespaux et al. 2005)
A21: MALI/1312/95 | B21: Mali | C21: 1995 | D21: R | E21: TC1 | F21: (Unpublished data)
A22: MALI25239 B695 | B22: Mali | C22: 1995 | D22: I | E22: TC1 | F22: (Unpublished data)
A23: IL1180 | B23: Tanzania | C23: 1971 | D23: S | E23: TC2 | F23: (Geigy and Kauffmann 1973)
A24: TOGO222 | B24: Togo | C24: 2014 | D24: S | E24: TC1 | F24: (Unpublished data)
A25: TOGO2264 | B25: Togo | C25: 2014 | D25: S | E25: TC1 | F25: (Unpublished data)
A26: EATRO1157C2 | B26: Uganda | C26: 1991 | D26: S | E26: TC1 | F26: (Delespaux et al. 2005)
A27: J4J4 | B27: Zambia | C27: 1982 | D27: S | E27: Zambia | F27: (Delespaux et al. 2005)
A28: KTT/ALICK 339 C6 | B28: Zambia | C28: 2003 | D28: R | E28: Zambia | F28: (Masumu et al. 2009)
A29: KTT/CHIPOPELA 313 | B29: Zambia | C29: 2002 | D29: R | E29: Zambia | F29: (Masumu et al. 2009)
A30: KTT/KAPEVE 27 PC2 | B30: Zambia | C30: 2003 | D30: R | E30: Zambia | F30: (Masumu et al. 2009)
A31: KTT/KAPEYA 357 | B31: Zambia | C31: 2003 | D31: R | E31: Zambia | F31: (Masumu et al. 2009)
A32: KTT/KASANDA 20 C4 | B32: Zambia | C32: 2003 | D32: R | E32: Zambia | F32: (Masumu et al. 2009)
A33: KTT/LOMBO 3020 C1 | B33: Zambia | C33: 2003 | D33: R | E33: Zambia | F33: (Masumu et al. 2009)
A34: KTT/MPHITA 4028 C1 | B34: Zambia | C34: 2003 | D34: R | E34: Zambia | F34: (Masumu et al. 2009)
A35: KTT/MSORO M19 C1 | B35: Zambia | C35: 2003 | D35: R | E35: Zambia | F35: (Masumu et al. 2009)
A36: KTT/MSOSORO M7 C1 | B36: Zambia | C36: 2003 | D36: S | E36: TC2 | F36: (Masumu et al. 2009)
A37: KTT/YOBO 2007 C2 | B37: Zambia | C37: 2003 | D37: R | E37: Zambia | F37: (Masumu et al. 2009)
A38: KTT/YOBO 2038 C2 | B38: Zambia | C38: 2002 | D38: S | E38: Zambia | F38: (Masumu et al. 2009)
A39: TRT1 | B39: Zambia | C39: 1996 | D39: R | E39: Zambia | F39: (Delespaux et al. 2008)
A40: TRT12 | B40: Zambia | C40: 1996 | D40: I | E40: Zambia | F40: (Delespaux et al. 2008)
A41: TRT15 | B41: Zambia | C41: 1996 | D41: R | E41: Zambia | F41: (Delespaux et al. 2008)
A42: TRT17C1 | B42: Zambia | C42: 1996 | D42: S | E42: Zambia | F42: (Delespaux et al. 2005)
A43: TRT37 | B43: Zambia | C43: 1996 | D43: R | E43: Zambia | F43: (Delespaux et al. 2005)
A44: TRT38 | B44: Zambia | C44: 1996 | D44: I | E44: Zambia | F44: (Delespaux et al. 2008)
A45: TRT42 | B45: Zambia | C45: 1996 | D45: S | E45: Zambia | F45: (Delespaux et al. 2008)
A46: TRT44 | B46: Zambia | C46: 1996 | D46: I | E46: Zambia | F46: (Delespaux et al. 2005)
A47: TRT46 | B47: Zambia | C47: 1996 | D47: I | E47: Zambia | F47: (Delespaux et al. 2005)
A48: TRT5 | B48: Zambia | C48: 1996 | D48: S | E48: Zambia | F48: (Delespaux et al. 2008)
A49: TRT54 | B49: Zambia | C49: 1996 | D49: S | E49: Zambia | F49: (Delespaux et al. 2005)
A50: TRT573R | B50: Zambia | C50: 1996 | D50: R | E50: Zambia | F50: (Delespaux et al. 2005)
A51: TRT59 | B51: Zambia | C51: 1996 | D51: I | E51: Zambia | F51: (Unpublished data)
A52: TRT61 | B52: Zambia | C52: 1996 | D52: S | E52: Zambia | F52: (Delespaux et al. 2008)

Sheet Table S2
A1: Red: At least one additional copy compared with TRT15
A2: Bold: gene deletion or duplication in both TRT15p10 and TRT15p10-ISM compared with TRT15
A4: Long Deletions | H4: Gene Duplications
A5: Gene ID | B5: Gene product | C5: TRT15p5 | D5: TRT15p10 | E5: TRT15p5-ISM | F5: TRT15p10-ISM | H5: Gene ID | I5: Gene product | J5: TRT15 | K5: TRT15p5 | L5: TRT15p10 | M5: TRT15p5-ISM | N5: TRT15p10-ISM
A6: TcIL3000_0_49500 | B6: unspecified product | E6: Deletion | F6: Deletion | H6: TcIL3000_0_25490 | I6: hypothetical | J6: 17.012 | K6: 18.05 | L6: 18.735 | M6: 19.832 | N6: 45.332
A7: TcIL3000_7_5800 | B7: hypothetical protein unlikely | D7: Deletion | F7: Deletion | H7: TcIL3000_0_11310 | I7: unnamed | J7: 10.616 | K7: 12.15 | L7: 11.718 | M7: 15.084 | N7: 15.618
A8: TcIL3000_0_ncRNA026 | B8: unspecified product | D8: Deletion | F8: Deletion | H8: TcIL3000_0_48470 | I8: unnamed | J8: 7.413 | K8: 7.094 | L8: 9.279 | M8: 7.31 | N8: 16.169
A9: TcIL3000_0_tRNA028 | B9: transfer RNA-Ile | F9: Deletion | H9: TcIL3000_5_4830 | I9: Histone h4 | J9: 5.845 | K9: 8.623 | L9: 8.338 | M9: 8.526 | N9: 9.887
A10: TcIL3000_0_60530 | B10: unspecified product | E10: Deletion | F10: Deletion | H10: TcIL3000_0_rRNA042 | I10: rRNA | J10: 29.075 | K10: 36.078 | L10: 29.333 | M10: 38.047 | N10: 35.243
A11: TcIL3000_0_42960 | B11: hypothetical protein unlikely | F11: Deletion | H11: TcIL3000_0_46140 | I11: VSG | J11: 9.781 | K11: 9.879 | L11: 10.122 | M11: 9.143 | N11: 24.814
A12: TcIL3000_0_10330 | B12: unspecified product | F12: Deletion | H12: TcIL3000_BAC4B1_002 | I12: VSG | J12: 9.888 | K12: 10.084 | L12: 9.645 | M12: 9.424 | N12: 20.017
A13: TcIL3000_0_21890 | B13: unspecified product | F13: Deletion | H13: TcIL3000_0_04340 | I13: VSG | J13: 10.467 | K13: 9.385 | L13: 9.321 | M13: 9.058 | N13: 22.981
A14: TcIL3000_0_36600 | B14: hypothetical protein unlikely | D14: Deletion | E14: Deletion | F14: Deletion | H14: TcIL3000_0_12610 | I14: unnamed | J14: 8.643 | K14: 8.209 | L14: 8.582 | M14: 7.814 | N14: 21.023
A15: TcIL3000_0_31680 | B15: unspecified product | D15: Deltion | H15: TcIL3000_9_4200 | I15: hypothetical | J15: 10.367 | K15: 13.246 | L15: 8.505 | M15: 10.713 | N15: 13.225
A16: TcIL3000_0_rRNA023 | B16: unspecified product | F16: Deletion | H16: TcIL3000_0_03560 | I16: atp-dependent dead h rna helicase | J16: 7.819 | K16: 9.238 | L16: 8.258 | M16: 9.025 | N16: 23.242
A17: TcIL3000_0_14930 | B17: hypothetical protein unlikely | F17: Deletion | H17: TcIL3000_0_32270 | I17: unlikely | J17: 7.049 | K17: 8.056 | L17: 7.758 | M17: 6.739 | N17: 13.72
A18: TcIL3000_0_60140 | B18: unspecified product | F18: Deletion | H18: TcIL3000_0_06915 | I18: VSG | J18: 8.462 | K18: 6.823 | L18: 7.225 | M18: 6.256 | N18: 18.511
A19: TcIL3000_0_46860 | B19: hypothetical protein unlikely | F19: Deletion | H19: TcIL3000_0_04910 | I19: VSG | J19: 7.507 | K19: 7.778 | L19: 7.183 | M19: 8.197 | N19: 12.075
A20: TcIL3000_0_tRNA023 | B20: transfer RNA-Gly | C20: Deletion | D20: Deletion | E20: Deletion | F20: Deletion | H20: TcIL3000_0_19770 | I20: VSG | J20: 8.161 | K20: 7.568 | L20: 7.11 | M20: 6.3 | N20: 15.481
A21: TcIL3000_0_23950 | B21: unspecified product | F21: Deletion | H21: TcIL3000_0_32540 | I21: atp-dependent dead h rna helicase | J21: 6.249 | K21: 7.065 | L21: 6.665 | M21: 6.851 | N21: 17.856
A22: TcIL3000_0_04800 | B22: unspecified product | F22: Deletion | H22: TcIL3000_0_09750 | I22: unnamed | J22: 6.862 | K22: 7.808 | L22: 6.224 | M22: 9.835 | N22: 10.981
A23: TcIL3000_0_01970 | B23: hypothetical protein unlikely | F23: Deletion | H23: TcIL3000_0_04900 | I23: VSG | J23: 5.655 | K23: 6.13 | L23: 5.921 | M23: 5.99 | N23: 10.745
A24: TcIL3000_0_20990 | B24: unspecified product | D24: Deltion | H24: TcIL3000_0_11740 | I24: VSG | J24: 5.85 | K24: 6.484 | L24: 5.667 | M24: 10.159 | N24: 8.78
A25: TcIL3000_0_ncRNA019 | B25: unspecified product | C25: Deletion | D25: Deletion | F25: Deletion | H25: TcIL3000_0_56090 | I25: VSG | J25: 5.631 | K25: 6.29 | L25: 5.467 | M25: 8.189 | N25: 9.165
A26: TcIL3000_0_47500 | B26: hypothetical protein unlikely | F26: Deletion | H26: TcIL3000_0_32470 | I26: unnamed | J26: 4.669 | K26: 5.714 | L26: 5.279 | M26: 6.307 | N26: 9.204
A27: TcIL3000_0_05830 | B27: hypothetical protein unlikely | F27: Deletion | H27: TcIL3000_0_06890 | I27: unnamed | J27: 5.994 | K27: 6.092 | L27: 5.263 | M27: 9.591 | N27: 10.686
A28: TcIL3000_0_02390 | B28: unspecified product | F28: Deletion | H28: TcIL3000_0_32490 | I28: unnamed | J28: 4.476 | K28: 5.263 | L28: 5.004 | M28: 6.147 | N28: 10.4
A29: TcIL3000_0_28290 | B29: unspecified product | F29: Deletion | H29: TcIL3000_0_04880 | I29: unnamed | J29: 4.295 | K29: 4.415 | L29: 4.963 | M29: 4.019 | N29: 11.261
A30: TcIL3000_0_rRNA036 | B30: unspecified product | F30: Deletion | H30: TcIL3000_0_05190 | I30: VSG | J30: 6.489 | K30: 5.686 | L30: 4.958 | M30: 5.466 | N30: 10.075
A31: TcIL3000_0_tRNA029 | B31: transfer RNA-Cys | D31: Deltion | H31: TcIL3000_0_43530 | I31: VSG | J31: 6.352 | K31: 5.22 | L31: 4.803 | M31: 4.703 | N31: 9.137
A32: TcIL3000_0_52230 | B32: hypothetical protein unlikely | E32: Deletion | F32: Deletion | H32: TcIL3000_0_12620 | I32: VSG | J32: 6.321 | K32: 5.356 | L32: 4.752 | M32: 4.858 | N32: 12.579
A33: TcIL3000_0_rRNA028 | B33: unspecified product | F33: Deletion | H33: TcIL3000_0_01230 | I33: atp-dependent dead h rna helicase | J33: 4.641 | K33: 5.297 | L33: 4.713 | M33: 5.221 | N33: 12.873
A34: TcIL3000_0_ncRNA044 | B34: unspecified product | E34: Deletion | F34: Deletion | H34: TcIL3000_0_14380 | I34: VSG | J34: 5.327 | K34: 3.954 | L34: 4.697 | M34: 4.487 | N34: 10.066
A35: TcIL3000_0_57940 | B35: unspecified product | F35: Deletion | H35: TcIL3000_0_04890 | I35: VSG | J35: 5.307 | K35: 4.545 | L35: 4.337 | M35: 4.452 | N35: 8.866
A36: TcIL3000_0_33890 | B36: unspecified product | D36: Deltion | H36: TcIL3000_0_56700 | I36: hypothetical | J36: 5.663 | K36: 5.429 | L36: 4.238 | M36: 5.923 | N36: 8.506
A37: TcIL3000_0_53690 | B37: unspecified product | F37: Deletion | H37: TcIL3000_BAC4B1_001 | I37: VSG | J37: 5.008 | K37: 4.676 | L37: 4.078 | M37: 4.277 | N37: 8.832
A38: TcIL3000_0_20770 | B38: hypothetical protein unlikely | F38: Deletion | H38: TcIL3000_0_05200 | I38: VSG | J38: 3.679 | K38: 3.276 | L38: 3.722 | M38: 3.059 | N38: 7.504
A39: TcIL3000_0_25200 | B39: unspecified product | F39: Deletion | H39: TcIL3000_0_30870 | I39: atp-dependent dead h rna helicase | J39: 4.251 | K39: 3.831 | L39: 3.593 | M39: 3.619 | N39: 8.951
A40: TcIL3000_5_4070 | B40: hypothetical protein unlikely | F40: Deletion | H40: TcIL3000_0_50530 | I40: unnamed | J40: 2.847 | K40: 3.972 | L40: 3.478 | M40: 3.701 | N40: 6.798
A41: TcIL3000_0_04840 | B41: unspecified product | F41: Deletion | H41: TcIL3000_0_43370 | I41: unnamed | J41: 3.644 | K41: 3.052 | L41: 3.264 | M41: 3.161 | N41: 7.62
A42: TcIL3000_0_52750 | B42: unspecified product | F42: Deletion | H42: TcIL3000_0_17570 | I42: atp-dependent dead h rna helicase | J42: 3.102 | K42: 3.27 | L42: 3.115 | M42: 3.328 | N42: 7.554
A43: TcIL3000_0_17150 | B43: unspecified product | F43: Deletion | H43: TcIL3000_BAC13H6_003 | I43: VSG | J43: 3.092 | K43: 2.789 | L43: 2.987 | M43: 2.794 | N43: 6.633
A44: TcIL3000_7_5800 | B44: hypothetical protein unlikely | D44: Deltion | H44: TcIL3000_0_43520 | I44: VSG | J44: 3.77 | K44: 2.674 | L44: 2.679 | M44: 2.657 | N44: 6.723
A45: TcIL3000_0_10850 | B45: unspecified product | D45: Deltion | H45: TcIL3000_0_18520 | I45: VSG | J45: 2.817 | K45: 2.703 | L45: 2.588 | M45: 2.816 | N45: 5.806
A46: TcIL3000_0_tRNA026 | B46: transfer RNA-Gln | F46: Deletion | H46: TcIL3000_0_35930 | I46: VSG | J46: 2.452 | K46: 2.684 | L46: 2.585 | M46: 2.371 | N46: 6.791
A47: TcIL3000_9_4250 | B47: hypothetical protein unlikely | C47: Deletion | D47: Deletion | E47: Deletion | F47: Deletion | H47: TcIL3000_0_38020 | I47: VSG | J47: 2.949 | K47: 3.08 | L47: 2.512 | M47: 2.653 | N47: 6.414
A48: TcIL3000_0_60720 | B48: unspecified product | F48: Deletion | H48: TcIL3000_0_13870 | I48: unnamed | J48: 2.93 | K48: 3.523 | L48: 2.508 | M48: 3.338 | N48: 7.213
A49: TcIL3000_0_43350 | B49: unspecified product | D49: Deltion | H49: TcIL3000_0_18530 | I49: VSG | J49: 2.385 | K49: 2.286 | L49: 2.315 | M49: 2.237 | N49: 5.42
A50: TcIL3000_0_20670 | B50: unspecified product | F50: Deletion | H50: TcIL3000_0_03110 | I50: unlikely | J50: 2.398 | K50: 2.259 | L50: 2.129 | M50: 2.219 | N50: 7.211
H51: TcIL3000_0_32480 | I51: unnamed | J51: 3.503 | K51: 3.131 | L51: 2.877 | M51: 3.269 | N51: 6.132
H52: TcIL3000_0_06840 | I52: hypothetical | J52: 6.566 | K52: 6.844 | L52: 6.659 | M52: 7.929 | N52: 9.094
H53: TcIL3000_0_06870 | I53: unnamed | J53: 9.29 | K53: 10.907 | L53: 8.097 | M53: 11.178 | N53: 11.784
H54: TcIL3000_0_58180 | I54: un | J54: 9.124 | K54: 8.944 | L54: 7.721 | M54: 10.809 | N54: 11.58
H55: TcIL3000_0_ncRNA008 | I55: ncRNA | J55: 1.412 | K55: 1.986 | L55: 1.132 | M55: 1.704 | N55: 3.853
H56: TcIL3000_0_31120 | I56: VSG | J56: 4.542 | K56: 4.321 | L56: 4.104 | M56: 4.351 | N56: 6.969
H57: TcIL3000_0_59850 | I57: unnamed | J57: 1.741 | K57: 2.16 | L57: 2.367 | M57: 2.041 | N57: 4.151
H58: TcIL3000_10_8910 | I58: histone h2b | J58: 16.641 | K58: 17.244 | L58: 16.514 | M58: 17.36 | N58: 19.03
H59: TcIL3000_0_32460 | I59: hypothetical | J59: 5.838 | K59: 4.867 | L59: 4.92 | M59: 4.509 | N59: 8.204
H60: TcIL3000_0_ncRNA066 | I60: ncRNA | J60: 4.576 | K60: 6.205 | L60: 5.912 | M60: 6.534 | N60: 6.931
H61: TcIL3000_0_54700 | I61: VSG | J61: 10.023 | K61: 9.408 | L61: 9.948 | M61: 8.82 | N61: 12.375
H62: TcIL3000_0_rRNA019 | I62: rRNA | J62: 10.852 | K62: 11.309 | L62: 10.261 | M62: 16.364 | N62: 13.2
H63: TcIL3000_0_06880 | I63: VSG | J63: 5.883 | K63: 7.411 | L63: 6.028 | M63: 8.079 | N63: 8.115
H64: TcIL3000_0_38010 | I64: VSG | J64: 4.848 | K64: 4.924 | L64: 3.931 | M64: 4.718 | N64: 7.008
H65: TcIL3000_0_25270 | I65: VSG | J65: 2.808 | K65: 2.94 | L65: 2.671 | M65: 2.786 | N65: 4.942
H66: TcIL3000_0_44600 | I66: VSG | J66: 5.577 | K66: 7.106 | L66: 7.379 | M66: 6.407 | N66: 7.707
H67: TcIL3000_0_60620 | I67: hypothetical | J67: 2.054 | K67: 2.378 | L67: 1.882 | M67: 2.398 | N67: 4.089
H68: TcIL3000_0_05180 | I68: VSG | J68: 3.926 | K68: 4.128 | L68: 3.493 | M68: 4.121 | N68: 5.933
H69: TcIL3000_0_23590 | I69: unnamed | J69: 3.957 | K69: 4.114 | L69: 4.211 | M69: 4.877 | N69: 5.927
H70: TcIL3000_0_60220 | I70: VSG | J70: 7.141 | K70: 6.363 | L70: 6.337 | M70: 6.383 | N70: 9.107
H71: TcIL3000_0_24980 | I71: VSG | J71: 2.002 | K71: 1.454 | L71: 1.376 | M71: 1.378 | N71: 3.925
H72: TcIL3000_0_37420 | I72: unnamed | J72: 1.228 | K72: 0.951 | L72: 1.235 | M72: 1.505 | N72: 3.105
H73: TcIL3000_0_45490 | I73: unnamed | J73: 5.231 | K73: 5.048 | L73: 4.7 | M73: 6.581 | N73: 7.101
H74: TcIL3000_0_39850 | I74: VSG | J74: 4.641 | K74: 3.776 | L74: 4.657 | M74: 3.353 | N74: 6.456
H75: TcIL3000_0_06810 | I75: VSG | J75: 3.949 | K75: 3.039 | L75: 3.192 | M75: 3.441 | N75: 5.719
H76: TcIL3000_0_25280 | I76: VSG | J76: 3.942 | K76: 3.488 | L76: 2.876 | M76: 3.325 | N76: 5.705
H77: TcIL3000_0_23610 | I77: unnamed | J77: 3.344 | K77: 2.909 | L77: 3.206 | M77: 3.308 | N77: 5.079
H78: TcIL3000_0_03680 | I78: reverse transcriptase (rna-dependent dna polymerase) | J78: 4.181 | K78: 5.436 | L78: 4.416 | M78: 5.416 | N78: 5.907
H79: TcIL3000_0_54680 | I79: VSG | J79: 2.519 | K79: 2.303 | L79: 2.402 | M79: 2.056 | N79: 4.179
H80: TcIL3000_0_58170 | I80: unnamed | J80: 3.069 | K80: 3.833 | L80: 3.447 | M80: 5.123 | N80: 4.726
H81: TcIL3000_0_51040 | I81: retrotransposon hot spot protein | J81: 4.042 | K81: 4.912 | L81: 3.349 | M81: 5.192 | N81: 5.697
H82: TcIL3000_0_ncRNA062 | I82: ncRNA | J82: 5.749 | K82: 6.186 | L82: 5.902 | M82: 9.317 | N82: 7.359
H83: TcIL3000_0_19460 | I83: VSG | J83: 2.534 | K83: 2.578 | L83: 2.609 | M83: 2.447 | N83: 4.12
H84: TcIL3000_0_12130 | I84: unspecified product | J84: 3.683 | K84: 5.007 | L84: 4.716 | M84: 6.026 | N84: 5.262
H85: TcIL3000_0_15450 | I85: unspecified product | J85: 3.818 | K85: 4.059 | L85: 3.431 | M85: 5.436 | N85: 5.375
H86: TcIL3000_0_60230 | I86: variant surface glycoprotein | J86: 10.863 | K86: 9.384 | L86: 9.205 | M86: 9.665 | N86: 12.354
H87: TcIL3000_0_11750 | I87: unspecified product | J87: 3.158 | K87: 2.927 | L87: 2.656 | M87: 5.364 | N87: 4.639
H88: TcIL3000_0_05750 | I88: hypothetical protein unlikely | J88: 4.718 | K88: 2.444 | L88: 2.774 | M88: 2.9 | N88: 6.192
H89: TcIL3000_0_32255 | I89: variant surface glycoprotein | J89: 3.195 | K89: 2.697 | L89: 3.16 | M89: 3.487 | N89: 4.66
H90: TcIL3000_0_60820 | I90: glutamic acid alanine-rich protein | J90: 2.764 | K90: 3.663 | L90: 2.981 | M90: 3.466 | N90: 4.2
H91: TcIL3000_0_38860 | I91: unspecified product | J91: 4.251 | K91: 4.467 | L91: 5.4 | M91: 5.217 | N91: 5.682
H92: TcIL3000_0_07050 | I92: unspecified product | J92: 1.88 | K92: 2.707 | L92: 2.21 | M92: 2.875 | N92: 3.309
H93: TcIL3000_0_51830 | I93: hypothetical protein unlikely | J93: 10.071 | K93: 9.512 | L93: 11.628 | M93: 11.461 | N93: 11.496
H94: TcIL3000_0_ncRNA063 | I94: ncRNA | J94: 6.983 | K94: 6.904 | L94: 7.797 | M94: 8.807 | N94: 8.324
H95: TcIL3000_0_19430 | I95: unspecified product | J95: 5.972 | K95: 5.125 | L95: 4.448 | M95: 6.46 | N95: 7.271
H96: TcIL3000_0_22190 | I96: hypothetical protein unlikely | J96: 4.112 | K96: 5.496 | L96: 5.006 | M96: 6.165 | N96: 5.375
H97: TcIL3000_0_57700 | I97: unspecified product | J97: 0.932 | K97: 0.944 | L97: 0.794 | M97: 0.789 | N97: 2.168
H98: TcIL3000_0_47850 | I98: variant surface glycoprotein | J98: 1.426 | K98: 1.605 | L98: 1.866 | M98: 1.502 | N98: 2.662
H99: TcIL3000_0_23600 | I99: brucei specific protein | J99: 5.094 | K99: 4.61 | L99: 4.923 | M99: 4.885 | N99: 6.328
H100: TcIL3000_0_45480 | I100: unspecified product | J100: 3.014 | K100: 3.121 | L100: 1.76 | M100: 4.703 | N100: 4.239
H101: TcIL3000_7_5010 | I101: hypothetical protein unlikely | J101: 1.292 | K101: 1.903 | L101: 2.167 | M101: 1.966 | N101: 2.517
H102: TcIL3000_0_17565 | I102: variant surface glycoprotein | J102: 1.241 | K102: 1.049 | L102: 1.022 | M102: 1.198 | N102: 2.456
H103: TcIL3000_0_06850 | I103: unspecified product | J103: 3.375 | K103: 4.297 | L103: 3.846 | M103: 3.618 | N103: 4.587
H104: TcIL3000_0_28930 | I104: unspecified product | J104: 3.247 | K104: 3.246 | L104: 3.503 | M104: 3.941 | N104: 4.455
H105: TcIL3000_0_28010 | I105: hypothetical protein unlikely | J105: 1.932 | K105: 2.59 | L105: 2.332 | M105: 2.43 | N105: 3.138
H106: TcIL3000_9_6560 | I106: unspecified product | J106: 2.805 | K106: 3.739 | L106: 3.595 | M106: 3.556 | N106: 4.008
H107: TcIL3000_0_ncRNA064 | I107: unspecified product | J107: 3.711 | K107: 4.391 | L107: 4.632 | M107: 7.065 | N107: 4.872
H108: TcIL3000_0_06860 | I108: unspecified product | J108: 3.796 | K108: 4.223 | L108: 3.31 | M108: 3.915 | N108: 4.953
H109: TcIL3000_0_ncRNA065 | I109: unspecified product | J109: 6.196 | K109: 6.877 | L109: 6.38 | M109: 10.401 | N109: 7.342
H110: TcIL3000_0_43550 | I110: unspecified product | J110: 2.934 | K110: 2.811 | L110: 2.237 | M110: 4.502 | N110: 4.036
H111: TcIL3000.11.10310 | I111: hypothetical protein unlikely | J111: 0.713 | K111: 1.285 | L111: 0.902 | M111: 0.931 | N111: 1.806
H112: TcIL3000_6_3970 | I112: RNA-binding protein putative | J112: 0.656 | K112: 1.014 | L112: 0.759 | M112: 1.241 | N112: 1.734
H113: TcIL3000_0_59310 | I113: unspecified product | J113: 2.011 | K113: 3.074 | L113: 2.4 | M113: 2.581 | N113: 3.082
H114: TcIL3000_0_60810 | I114: unspecified product | J114: 2.061 | K114: 3.124 | L114: 2.869 | M114: 3.248 | N114: 3.128
H115: TcIL3000_10_ncRNA002 | I115: unspecified product | J115: 0.946 | K115: 1.615 | L115: 1.055 | M115: 1.647 | N115: 2.002
H116: TcIL3000_0_60600 | I116: unspecified product | J116: 1.694 | K116: 2.076 | L116: 2.041 | M116: 2.154 | N116: 2.736
H117: TcIL3000_0_10540 | I117: unspecified product | J117: 5.93 | K117: 5.907 | L117: 6.4 | M117: 7.976 | N117: 6.947
H118: TcIL3000_8_3630 | I118: mitogen-activated protein kinase putative | J118: 0.657 | K118: 1.016 | L118: 1.037 | M118: 0.972 | N118: 1.672
H119: TcIL3000_BAC4B1_003 | I119: VSG | J119: 2.979 | K119: 2.137 | L119: 2.132 | M119: 1.779 | N119: 3.982
H120: TcIL3000_0_55800 | I120: unspecified product | J120: 2.177 | K120: 2.702 | L120: 2.415 | M120: 2.38 | N120: 3.168
H121: TcIL3000_0_60580 | I121: cell surface-expressed gene family | J121: 2.501 | K121: 3.854 | L121: 3 | M121: 3.526 | N121: 3.485
H122: TcIL3000_2_1570 | I122: unspecified product | J122: 1.714 | K122: 2.392 | L122: 2.762 | M122: 2.524 | N122: 2.668
H123: TcIL3000_0_28710 | I123: unspecified product | J123: 1.118 | K123: 1.149 | L123: 2.121 | M123: 1.157 | N123: 1.206
H124: TcIL3000_0_60190 | I124: unspecified product | J124: 21.66 | K124: 19.983 | L124: 22.812 | M124: 22.119 | N124: 20.762
H125: TcIL3000_0_40540 | I125: hypothetical protein unlikely | J125: 6.541 | K125: 8.581 | L125: 9.015 | M125: 6.551 | N125: 5.271

Sheet Table S3
A1: non-synonymous SNPs
A2: SNPs shared between all MSOROM7 resistant lines
A3: SNPs shared between MSOROM7-G and MSOROM7-I
A4: SNPs shared between MSOROM7-H and MSOROM7-I
A5: SNPs identified in the same genes in one or more MSOROM7 resistant lines and TRT15p10-ISM
A7: Gene ID | B7: position on chromosome | C7: Reference Allele | D7: Alternative Allele | E7: Impact | F7: Gene product | G7: Line affected | H7: z-score | I7: Allele frequencies
I8: MSOROM7 | J8: Passage 2 | K8: Passage 3 | L8: Passage 4 | M8: Passage 5
A9: TcIL3000.11.10010 | B9: 2688555 | C9: A | D9: C | E9: synonymous | F9: unspecified product | G9: MSOROM7-G | H9: 3.842525979 | I9: 0.467 | J9: 0.407 | K9: 0.52 | L9: 0.667 | M9: 0.941
A10: TcIL3000.11.10870 | B10: 2859840 | C10: A | D10: G | E10: synonymous | F10: hypothetical protein | G10: MSOROM7-G | H10: 3.738609113 | I10: 0.448 | J10: 0.462 | K10: 0.387 | L10: 0.714 | M10: 0.909
A11: TcIL3000.11.12160 | B11: 3199699 | C11: A | D11: G | E11: non-synonymous | F11: mitochondrial topoisomerase II | G11: MSOROM7-G | H11: 3.494598765 | I11: 0.627 | J11: 0.341 | K11: 0.537 | L11: 0.536 | M11: 0.889
A12: TcIL3000.11.15970 | B12: 4496912 | C12: G | D12: A | E12: synonymous | F12: unspecified product | G12: MSOROM7-G | H12: 3.994404476 | I12: 0.364 | J12: 0.533 | K12: 0.341 | L12: 0.75 | M12: 0.857
A13: TcIL3000.11.16730 | B13: 4725725 | C13: G | D13: T | E13: upstream gene | F13: unspecified product | G13: MSOROM7-G | H13: 3.626698641 | I13: 0.462 | J13: 0.511 | K13: 0.574 | L13: 0.692 | M13: 0.909
A14: TcIL3000.11.2040 | B14: 637955 | C14: C | D14: T | E14: synonymous | F14: hypothetical protein | G14: MSOROM7-G | H14: 6.544364508 | I14: 0.188 | J14: 1 | K14: 1 | L14: 1 | M14: 1
A15: TcIL3000.11.3070 | B15: 955466 | C15: T | D15: C | E15: synonymous | F15: mitochondrial DNA polymerase I prtoein D | G15: MSOROM7-G | H15: 3.898481215 | I15: 0.519 | J15: 0.571 | K15: 0.483 | L15: 0.5 | M15: 1
A16: TcIL3000.11.3450 | B16: 1057127 | C16: A | D16: G | E16: upstream gene | F16: hypothetical protein | G16: MSOROM7-G | H16: 4.202238209 | I16: 0.481 | J16: 0.63 | K16: 0.644 | L16: 0.694 | M16: 1
A17: TcIL3000.11.3450 | B17: 1057090 | C17: T | D17: C | E17: upstream gene | F17: hypothetical protein | G17: MSOROM7-G | H17: 3.954436451 | I17: 0.429 | J17: 0.586 | K17: 0.562 | L17: 0.761 | M17: 0.917
A18: TcIL3000.11.3610 | B18: 1089353 | C18: G | D18: C | E18: upstream gene | F18: unspecified product | G18: MSOROM7-G | H18: 3.514788169 | I18: 0.413 | J18: 0.735 | K18: 0.436 | L18: 0.778 | M18: 0.846
A19: TcIL3000.11.4360 | B19: 1278439 | C19: C | D19: A | E19: upstream gene | F19: hypothetical protein | G19: MSOROM7-G | H19: 4.162270184 | I19: 0.486 | J19: 0.481 | K19: 0.6 | L19: 0.636 | M19: 1
A20: TcIL3000.11.4410 | B20: 1280066 | C20: G | D20: C | E20: synonymous | F20: hypothetical protein | G20: MSOROM7-G | H20: 3.90647482 | I20: 0.451 | J20: 0.694 | K20: 0.5 | L20: 0.733 | M20: 0.933
A21: TcIL3000.11.4410 | B21: 1279970 | C21: T | D21: C | E21: synonymous | F21: hypothetical protein | G21: MSOROM7-G | H21: 3.778577138 | I21: 0.367 | J21: 0.629 | K21: 0.605 | L21: 0.8 | M21: 0.833
A22: TcIL3000.11.4410 | B22: 1280075 | C22: G | D22: A | E22: synonymous | F22: hypothetical protein | G22: MSOROM7-G | H22: 3.626698641 | I22: 0.476 | J22: 0.657 | K22: 0.553 | L22: 0.7 | M22: 0.923
A23: TcIL3000.11.500 | B23: 110111 | C23: C | D23: T | E23: synonymous | F23: ABC transporter | G23: MSOROM7-G | H23: 3.762589928 | I23: 0.465 | J23: 0.467 | K23: 0.375 | L23: 0.536 | M23: 0.929
A24: TcIL3000.11.60 | B24: 9751 | C24: C | D24: A | E24: synonymous | F24: electron transfer flavoprotein | G24: MSOROM7-G | H24: 5.481215028 | I24: 0.221 | J24: 0.621 | K24: 0.419 | L24: 0.737 | M24: 0.9
A25: TcIL3000.11.60 | B25: 9749 | C25: A | D25: G | E25: non-synonymous | F25: electron transfer flavoprotein | G25: MSOROM7-G | H25: 5.457234213 | I25: 0.224 | J25: 0.643 | K25: 0.367 | L25: 0.778 | M25: 0.9
A26: TcIL3000_0_01460 | B26: 401900 | C26: G | D26: A | E26: upstream gene | F26: unspecified product | G26: MSOROM7-G | H26: 3.211031175 | I26: 0.48 | J26: 0.5 | K26: 0.762 | L26: 0.8 | M26: 0.875
A27: TcIL3000_0_28950 | B27: 7545786 | C27: T | D27: C | E27: upstream gene | F27: unspecified product | G27: MSOROM7-G | H27: 3.482813749 | I27: 0.471 | J27: 0.429 | K27: 0.929 | L27: 0.9 | M27: 0.9
A28: TcIL3000_0_28950 | B28: 7545781 | C28: C | D28: T | E28: upstream gene | F28: unspecified product | G28: MSOROM7-G | H28: 3.362909672 | I28: 0.486 | J28: 0.429 | K28: 0.867 | L28: 0.947 | M28: 0.9
A29: TcIL3000_0_31900 | B29: 8361879 | C29: C | D29: A | E29: upstream gene | F29: VSG | G29: MSOROM7-G | H29: 3.92246203 | I29: 0.516 | J29: 0.1 | K29: 0.8 | L29: 0.889 | M29: 1
A30: TcIL3000_0_31900 | B30: 8361881 | C30: C | D30: T | E30: upstream gene | F30: VSG | G30: MSOROM7-G | H30: 3.92246203 | I30: 0.516 | J30: 0.1 | K30: 0.8 | L30: 0.889 | M30: 1
A31: TcIL3000_0_39610 | B31: 10517258 | C31: A | D31: G | E31: upstream gene | F31: VSG | G31: MSOROM7-G | H31: 4.258193445 | I31: 0.403 | J31: 0.8 | K31: 0.8 | L31: 0.824 | M31: 0.929
A32: TcIL3000_0_39610 | B32: 10517270 | C32: C | D32: T | E32: upstream gene | F32: VSG | G32: MSOROM7-G | H32: 3.266986411 | I32: 0.527 | J32: 0.933 | K32: 0.833 | L32: 0.875 | M32: 0.929
A33: TcIL3000_0_41530 | B33: 10986410 | C33: C | D33: A | E33: upstream gene | F33: unspecified product | G33: MSOROM7-G | H33: 3.211031175 | I33: 0.528 | J33: 0.889 | K33: 0.889 | L33: 0.8 | M33: 0.923
A34: TcIL3000_0_54650 | B34: 14453963 | C34: G | D34: C | E34: upstream gene | F34: unspecified product | G34: MSOROM7-G | H34: 3.5627498 | I34: 0.466 | J34: 0.375 | K34: 0.394 | L34: 0.85 | M34: 0.905
A35: TcIL3000_0_54650 | B35: 14453934 | C35: A | D35: G | E35: upstream gene | F35: unspecified product | G35: MSOROM7-G | H35: 3.290967226 | I35: 0.484 | J35: 0.52 | K35: 0.441 | L35: 0.783 | M35: 0.889
A36: TcIL3000_1_1980 | B36: 834271 | C36: A | D36: G | E36: non-synonymous | F36: serine peptidase | G36: MSOROM7-G | H36: 3.043165468 | I36: 0.438 | J36: 0.344 | K36: 0.523 | L36: 0.857 | M36: 0.812
A37: TcIL3000_10_10070 | B37: 2749335 | C37: C | D37: T | E37: synonymous | F37: hypothetical protein | G37: MSOROM7-G | H37: 3.448302469 | I37: 0.531 | J37: 0.348 | K37: 0.4 | L37: 0.833 | M37: 0.818
A38: TcIL3000_10_10890 | B38: 2948654 | C38: G | D38: A | E38: upstream gene | F38: unspecified product | G38: MSOROM7-G | H38: 3.841820988 | I38: 0.569 | J38: 0.308 | K38: 0.452 | L38: 0.731 | M38: 0.875
A39: TcIL3000_10_3070 | B39: 906675 | C39: A | D39: G | E39: upstream gene | F39: unspecified product | G39: MSOROM7-G | H39: 4.434052758 | I39: 0.452 | J39: 0.4 | K39: 0.35 | L39: 0.643 | M39: 1
A40: TcIL3000_10_4960 | B40: 1390166 | C40: C | D40: A | E40: upstream gene | F40: unspecified product | G40: MSOROM7-G | H40: 3.290967226 | I40: 0.595 | J40: 0.562 | K40: 0.769 | L40: 0.679 | M40: 1
A41: TcIL3000_10_5130 | B41: 1433521 | C41: A | D41: G | E41: downstream gene | F41: proteasome beta 5 subunit | G41: MSOROM7-G | H41: 3.282973621 | I41: 0.596 | J41: 0.583 | K41: 0.745 | L41: 0.843 | M41: 1
A42: TcIL3000_10_6950 | B42: 1896424 | C42: G | D42: T | E42: upstream gene | F42: hypothetical protein | G42: MSOROM7-G | H42: 3.147082334 | I42: 0.551 | J42: 0.692 | K42: 0.545 | L42: 0.737 | M42: 0.938
A43: TcIL3000_10_8030 | B43: 2167884 | C43: C | D43: T | E43: upstream gene | F43: hypothetical protein | G43: MSOROM7-G | H43: 3.783950617 | I43: 0.545 | J43: 0.375 | K43: 0.4 | L43: 0.732 | M43: 0.875
A44: TcIL3000_10_9180 | B44: 2517251 | C44: T | D44: C | E44: non-synonymous | F44: ABC transporter | G44: MSOROM7-G | H44: 3.882494005 | I44: 0.485 | J44: 0.441 | K44: 0.378 | L44: 0.324 | M44: 0.964
A45: TcIL3000_10_9180 | B45: 2517192 | C45: A | D45: T | E45: non-synonymous | F45: ABC transporter | G45: MSOROM7-G | H45: 3.338928857 | I45: 0.478 | J45: 0.54 | K45: 0.366 | L45: 0.345 | M45: 0.889
A46: TcIL3000_10_9180 | B46: 2517163 | C46: C | D46: T | E46: non-synonymous | F46: ABC transporter | G46: MSOROM7-G | H46: 3.227018385 | I46: 0.488 | J46: 0.5 | K46: 0.316 | L46: 0.417 | M46: 0.885
A47: TcIL3000_10_9220 | B47: 2535772 | C47: C | D47: T | E47: upstream gene | F47: DNA mismatch repair protein MSH2 | G47: MSOROM7-G | H47: 3.474820144 | I47: 0.418 | J47: 0.444 | K47: 0.265 | L47: 0.762 | M47: 0.846
A48: TcIL3000_3_1580 | B48: 538145 | C48: T | D48: C | E48: synonymous | F48: hypothetical protein | G48: MSOROM7-G | H48: 3.658673062 | I48: 0.424 | J48: 0.346 | K48: 0.111 | L48: 0.875 | M48: 0.875
A49: TcIL3000_3_1640 | B49: 562262 | C49: C | D49: T | E49: synonymous | F49: serinethreonine-protein kinase | G49: MSOROM7-G | H49: 4.186250999 | I49: 0.483 | J49: 0.484 | K49: 0.632 | L49: 0.607 | M49: 1
A50: TcIL3000_3_410 | B50: 131486 | C50: G | D50: A | E50: upstream gene | F50: unspecified product | G50: MSOROM7-G | H50: 4.050359712 | I50: 0.5 | J50: 0.375 | K50: 0.562 | L50: 0.636 | M50: 1
A51: TcIL3000_5_2100 | B51: 602650 | C51: G | D51: A | E51: non-synonymous | F51: unspecified product | G51: MSOROM7-G | H51: 3.147082334 | I51: 0.382 | J51: 0.731 | K51: 0.45 | L51: 0.895 | M51: 0.769
A52: TcIL3000_7_120 | B52: 27028 | C52: T | D52: C | E52: non-synonymous | F52: hypothetical protein | G52: MSOROM7-G | H52: 4.194244604 | I52: 0.482 | J52: 0.385 | K52: 0.529 | L52: 0.688 | M52: 1
A53: TcIL3000_7_2020 | B53: 719448 | C53: A | D53: G | E53: non-synonymous | F53: hypothetical protein | G53: MSOROM7-G | H53: 3.059152678 | I53: 0.553 | J53: 0.667 | K53: 0.348 | L53: 0.875 | M53: 0.929
A54: TcIL3000_7_3180 | B54: 1105468 | C54: C | D54: T | E54: synonymous | F54: mitochondrial DNA polymerase I protein c | G54: MSOROM7-G | H54: 4.509259259 | I54: 0.53 | J54: 0.273 | K54: 0.342 | L54: 0.524 | M54: 0.889
A55: TcIL3000_7_4990 | B55: 1701404 | C55: C | D55: T | E55: non-synonymous | F55: ABC transporter | G55: MSOROM7-G | H55: 4.466820988 | I55: 0.596 | J55: 0.28 | K55: 0.346 | L55: 0.556 | M55: 0.889
A56: TcIL3000_7_5940 | B56: 2229352 | C56: A | D56: G | E56: upstream gene | F56: hypothetical protein | G56: MSOROM7-G | H56: 3.754596323 | I56: 0.537 | J56: 0.346 | K56: 0.312 | L56: 0.63 | M56: 1
A57: TcIL3000_8_1770 | B57: 483018 | C57: A | D57: G | E57: upstream gene | F57: hypothetical protein | G57: MSOROM7-G | H57: 3.642685851 | I57: 0.46 | J57: 0.333 | K57: 0.692 | L57: 0.708 | M57: 0.909
A58: TcIL3000_8_5050 | B58: 1481092 | C58: C | D58: T | E58: upstream gene | F58: hypothetical protein | G58: MSOROM7-G | H58: 3.994404476 | I58: 0.507 | J58: 0.579 | K58: 0.696 | L58: 0.72 | M58: 1
A59: TcIL3000_9_210 | B59: 50094 | C59: G | D59: A | E59: upstream gene | F59: hypothetical protein | G59: MSOROM7-G | H59: 3.610711431 | I59: 0.444 | J59: 0.364 | K59: 0.667 | L59: 0.714 | M59: 0.889
A60: TcIL3000_9_2330 | B60: 813964 | C60: A | D60: G | E60: synonymous | F60: hypothetical protein | G60: MSOROM7-G | H60: 3.035171863 | I60: 0.484 | J60: 0.579 | K60: 0.444 | L60: 0.829 | M60: 0.857
A61: TcIL3000_9_2490 | B61: 855129 | C61: T | D61: C | E61: upstream gene | F61: unspecified product | G61: MSOROM7-G | H61: 3.059152678 | I61: 0.442 | J61: 0.583 | K61: 0.607 | L61: 0.8 | M61: 0.818
A62: TcIL3000_9_3930 | B62: 1353019 | C62: T | D62: C | E62: upstream gene | F62: hypothetical protein | G62: MSOROM7-G | H62: 3.634692246 | I62: 0.481 | J62: 0.864 | K62: 0.909 | L62: 0.903 | M62: 0.929
A63: TcIL3000_9_6360 | B63: 2146110 | C63: G | D63: A | E63: upstream gene | F63: unspecified product | G63: MSOROM7-G | H63: 3.602717826 | I63: 0.418 | J63: 0.382 | K63: 0.333 | L63: 0.743 | M63: 0.862
A64: TcIL3000.11.2040 | B64: 637955 | C64: C | D64: T | E64: synonymous | F64: hypothetical protein | G64: MSOROM7-H | H64: 10.93852459 | I64: 0.188 | J64: 1 | K64: 1 | L64: 1 | M64: 0.987
A65: TcIL3000.11.7990 | B65: 2202582 | C65: G | D65: A | E65: non-synonymous | F65: hypothetical protein | G65: MSOROM7-H | H65: 5.118852459 | I65: 0.556 | J65: 0.852 | K65: 0.804 | L65: 0.903 | M65: 0.929
A66: TcIL3000_0_01810 | B66: 483681 | C66: A | D66: G | E66: synonymous | F66: VSG | G66: MSOROM7-H | H66: 4.080601093 | I66: 0.585 | J66: 0.692 | K66: 0.92 | L66: 0.947 | M66: 0.882
A67: TcIL3000_0_10110 | B67: 2622364 | C67: G | D67: A | E67: upstream gene | F67: VSG | G67: MSOROM7-H | H67: 5.282786885 | I67: 0.559 | J67: 0.967 | K67: 1 | L67: 0.769 | M67: 0.944
A68: TcIL3000_0_13110 | B68: 3396265 | C68: A | D68: C | E68: non-synonymous | F68: VSG | G68: MSOROM7-H | H68: 5.979508197 | I68: 0.45 | J68: 0.741 | K68: 0.786 | L68: 0.923 | M68: 0.886
A69: TcIL3000_0_13110 | B69: 3396280 | C69: C | D69: T | E69: non-synonymous | F69: VSG | G69: MSOROM7-H | H69: 5.965846995 | I69: 0.451 | J69: 0.806 | K69: 0.8 | L69: 0.909 | M69: 0.886
A70: TcIL3000_0_23560 | B70: 6114358 | C70: T | D70: A | E70: upstream gene | F70: unspecified product | G70: MSOROM7-H | H70: 5.665300546 | I70: 0.553 | J70: 0.558 | K70: 1 | L70: 1 | M70: 0.966
A71: TcIL3000_0_34950 | B71: 9185727 | C71: T | D71: C | E71: non-synonymous | F71: unspecified product | G71: MSOROM7-H | H71: 4.995901639 | I71: 0.514 | J71: 0.722 | K71: 0.778 | L71: 0.762 | M71: 0.878
A72: TcIL3000_0_34950 | B72: 9185722 | C72: G | D72: A | E72: non-synonymous | F72: unspecified product | G72: MSOROM7-H | H72: 4.668032787 | I72: 0.535 | J72: 0.722 | K72: 0.811 | L72: 0.767 | M72: 0.875
A73: TcIL3000_0_39610 | B73: 10517270 | C73: C | D73: T | E73: upstream gene | F73: VSG | G73: MSOROM7-H | H73: 5.637978142 | I73: 0.527 | J73: 0.739 | K73: 0.667 | L73: 0.8 | M73: 0.938
A74: TcIL3000_0_41530 | B74: 10986410 | C74: C | D74: A | E74: upstream gene | F74: unspecified product | G74: MSOROM7-H | H74: 4.668032787 | I74: 0.528 | J74: 0.76 | K74: 0.833 | L74: 0.92 | M74: 0.868
A75: TcIL3000_0_50540 | B75: 13362327 | C75: A | D75: G | E75: downstream gene | F75: VSG | G75: MSOROM7-H | H75: 4.75 | I75: 0.5 | J75: 0.926 | K75: 0.84 | L75: 0.786 | M75: 0.846
A76: TcIL3000_0_50560 | B76: 13367540 | C76: G | D76: T | E76: synonymous | F76: VSG | G76: MSOROM7-H | H76: 5.829234973 | I76: 0.507 | J76: 0.84 | K76: 0.864 | L76: 0.773 | M76: 0.932
A77: TcIL3000_8_1200 | B77: 327865 | C77: G | D77: A | E77: non-synonymous | F77: DMT | G77: MSOROM7-H | H77: 6.758196721 | I77: 0.507 | J77: 0.42 | K77: 0.795 | L77: 0.951 | M77: 1
A78: TcIL3000_8_1200 | B78: 327718 | C78: G | D78: A | E78: non-synonymous | F78: DMT | G78: MSOROM7-H | H78: 6.607923497 | I78: 0.518 | J78: 0.339 | K78: 0.987 | L78: 1 | M78: 1
A79: TcIL3000_8_1200 | B79: 328042 | C79: T | D79: C | E79: non-synonymous | F79: DMT | G79: MSOROM7-H | H79: 6.621584699 | I79: 0.503 | J79: 0.568 | K79: 0.814 | L79: 0.917 | M79: 0.986
A80: TcIL3000_8_1200 | B80: 328432 | C80: C | D80: T | E80: non-synonymous | F80: DMT | G80: MSOROM7-H | H80: 5.364754098 | I80: 0.566 | J80: 0.459 | K80: 0.906 | L80: 0.915 | M80: 0.957
A81: TcIL3000_8_1200 | B81: 328350 | C81: G | D81: T | E81: non-synonymous | F81: DMT | G81: MSOROM7-H | H81: 5.4 | I81: 0.554 | J81: 0.477 | K81: 0.929 | L81: 0.907 | M81: 0.938
A82: TcIL3000_8_1200 | B82: 328372 | C82: C | D82: G | E82: non-synonymous | F82: DMT | G82: MSOROM7-H | H82: 5.3 | I82: 0.563 | J82: 0.486 | K82: 0.943 | L82: 0.926 | M82: 0.946
A83: TcIL3000_8_1200 | B83: 328374 | C83: A | D83: G | E83: non-synonymous | F83: DMT | G83: MSOROM7-H | H83: 5.2 | I83: 0.57 | J83: 0.481 | K83: 0.957 | L83: 0.925 | M83: 0.945
A84: TcIL3000_8_1200 | B84: 328338 | C84: G | D84: C | E84: non-synonymous | F84: DMT | G84: MSOROM7-H | H84: 4.7 | I84: 0.574 | J84: 0.486 | K84: 0.928 | L84: 0.83 | M84: 0.908
A85: TcIL3000_8_1200 | B85: 328337 | C85: C | D85: T | E85: synonymous | F85: DMT | G85: MSOROM7-H | H85: 4.4 | I85: 0.579 | J85: 0.468 | K85: 0.937 | L85: 0.846 | M85: 0.892
A86: TcIL3000_8_1200 | B86: 328124 | C86: A | D86: G | E86: synonymous | F86: DMT | G86: MSOROM7-H | H86: 6.116120219 | I86: 0.5 | J86: 0.509 | K86: 0.862 | L86: 0.917 | M86: 0.946
A87: TcIL3000_9_3930 | B87: 1353019 | C87: T | D87: C | E87: upstream gene | F87: hypothetical protein | G87: MSOROM7-H | H87: 5.159836066 | I87: 0.481 | J87: 0.855 | K87: 0.811 | L87: 0.796 | M87: 0.857
A88: TcIL3000_9_3930 | B88: 1353028 | C88: A | D88: G | E88: upstream gene | F88: hypothetical protein | G88: MSOROM7-H | H88: 3.520491803 | I88: 0.588 | J88: 0.915 | K88: 0.929 | L88: 0.84 | M88: 0.844
A89: TcIL3000.11.2040 | B89: 637955 | C89: C | D89: T | E89: synonymous | F89: hypothetical protein | G89: MSOROM7-I | H89: 9.261660978 | I89: 0.188 | J89: 1 | K89: 1 | L89: 1 | M89: 1
A90: TcIL3000.11.440 | B90: 85988 | C90: T | D90: C | E90: synonymous | F90: hypothetical protein | G90: MSOROM7-I | H90: 6.926910299 | I90: 0.4 | J90: 0.333 | K90: 0.35 | L90: 0.647 | M90: 1
A91: TcIL3000.11.5690 | B91: 1582614 | C91: T | D91: G | E91: upstream gene | F91: unspecified product | G91: MSOROM7-I | H91: 3.539249147 | I91: 0.576 | J91: 0.7 | K91: 0.647 | L91: 0.789 | M91: 0.885
A92: TcIL3000.11.7990 | B92: 2202582 | C92: G | D92: A | E92: non-synonymous | F92: hypothetical protein | G92: MSOROM7-I | H92: 4.073947668 | I92: 0.556 | J92: 0.846 | K92: 0.933 | L92: 0.938 | M92: 0.912
A93: TcIL3000_0_01810 | B93: 483681 | C93: A | D93: G | E93: synonymous | F93: VSG | G93: MSOROM7-I | H93: 3.869169511 | I93: 0.585 | J93: 0.8 | K93: 1 | L93: 1 | M93: 0.923
A94: TcIL3000_0_07250 | B94: 1926472 | C94: C | D94: G | E94: upstream gene | F94: VSG | G94: MSOROM7-I | H94: 3.732650739 | I94: 0.587 | J94: 0.688 | K94: 0.553 | L94: 0.846 | M94: 0.913
A95: TcIL3000_0_13110 | B95: 3396265 | C95: A | D95: C | E95: non-synonymous | F95: VSG | G95: MSOROM7-I | H95: 5.860068259 | I95: 0.45 | J95: 0.571 | K95: 0.692 | L95: 0.773 | M95: 0.963
A96: TcIL3000_0_13110 | B96: 3396280 | C96: C | D96: T | E96: non-synonymous | F96: VSG | G96: MSOROM7-I | H96: 5.814562002 | I96: 0.451 | J96: 0.667 | K96: 0.75 | L96: 0.81 | M96: 0.96
A97: TcIL3000_0_28781 | B97: 7490433 | C97: G | D97: A | E97: upstream gene | F97: VSG | G97: MSOROM7-I | H97: 6.666666667 | I97: 0.524 | J97: 0 | K97: 0.273 | L97: 0.727 | M97: 1
A98: TcIL3000_0_29740 | B98: 7718143 | C98: A | D98: G | E98: non-synonymous | F98: VSG | G98: MSOROM7-I | H98: 3.960182025 | I98: 0.529 | J98: 0.833 | K98: 0.909 | L98: 0.938 | M98: 0.875
A99: TcIL3000_0_29740 | B99: 7718151 | C99: A | D99: G | E99: synonymous | F99: VSG | G99: MSOROM7-I | H99: 3.436860068 | I99: 0.5 | J99: 0.857 | K99: 0.909 | L99: 0.867 | M99: 0.8
A100: TcIL3000_0_39610 | B100: 10517258 | C100: A | D100: G | E100: upstream gene | F100: VSG | G100: MSOROM7-I | H100: 4.540386803 | I100: 0.403 | J100: 0.5 | K100: 0.643 | L100: 0.923 | M100: 0.8
A101: TcIL3000_0_39610 | B101: 10517270 | C101: C | D101: T | E101: upstream gene | F101: VSG | G101: MSOROM7-I | H101: 4.142207053 | I101: 0.527 | J101: 0.667 | K101: 0.692 | L101: 0.917 | M101: 0.889
A102: TcIL3000_0_41530 | B102: 10986410 | C102: C | D102: A | E102: upstream gene | F102: unspecified product | G102: MSOROM7-I | H102: 4.517633675 | I102: 0.528 | J102: 1 | K102: 1 | L102: 0.778 | M102: 0.923
A103: TcIL3000_0_50540 | B103: 13362327 | C103: A | D103: G | E103: downstream gene | F103: VSG | G103: MSOROM7-I | H103: 4.517633675 | I103: 0.5 | J103: 0.909 | K103: 0.8 | L103: 1 | M103: 0.895
A104: TcIL3000_0_50560 | B104: 13367540 | C104: G | D104: T | E104: synonymous | F104: VSG | G104: MSOROM7-I | H104: 4.961319681 | I104: 0.507 | J104: 0.5 | K104: 1 | L104: 0.905 | M104: 0.941
A105: TcIL3000_0_52520 | B105: 13922640 | C105: T | D105: C | E105: upstream gene | F105: unspecified product | G105: MSOROM7-I | H105: 3.027303754 | I105: 0.569 | J105: 0.741 | K105: 0.704 | L105: 0.821 | M105: 0.833
A106: TcIL3000_10_13700 | B106: 3754052 | C106: A | D106: G | E106: non-synonymous | F106: transmembrane product | G106: MSOROM7-I | H106: 4.278725825 | I106: 0.549 | J106: 0.222 | K106: 0.625 | L106: 0.864 | M106: 0.923
A107: TcIL3000_10_13700 | B107: 3754212 | C107: C | D107: T | E107: non-synonymous | F107: transmembrane product | G107: MSOROM7-I | H107: 3.118316268 | I107: 0.61 | J107: 0.167 | K107: 0.533 | L107: 0.765 | M107: 0.882
A108: TcIL3000_10_4960 | B108: 1390166 | C108: C | D108: A | E108: upstream gene | F108: unspecified product | G108: MSOROM7-I | H108: 3.118316268 | I108: 0.595 | J108: 0.75 | K108: 0.541 | L108: 0.778 | M108: 0.867
A109: TcIL3000_8_410 | B109: 82250 | C109: G | D109: A | E109: non-synonymous | F109: transmembrane product | G109: MSOROM7-I | H109: 4.927189989 | I109: 0.381 | J109: 0.571 | K109: 0.364 | L109: 0.8 | M109: 0.812
A110: TcIL3000_9_3930 | B110: 1353019 | C110: T | D110: C | E110: upstream gene | F110: hypothetical protein | G110: MSOROM7-I | H110: 5.632536974 | I110: 0.481 | J110: 0.8 | K110: 0.8 | L110: 0.791 | M110: 0.974
A111: TcIL3000_9_3930 | B111: 1353028 | C111: A | D111: G | E111: upstream gene | F111: hypothetical protein | G111: MSOROM7-I | H111: 4.415244596 | I111: 0.588 | J111: 0.833 | K111: 0.846 | L111: 0.791 | M111: 0.974
A114: Gene ID | B114: position on chromosome | C114: Reference Allele | D114: Alternative Allele | E114: Impact | F114: Gene product | G114: Line affected | H114: Allele frequencies
H115: TRT15 | I115: TRT15p10-ISM
A116: TcIL3000.11.4410 | B116: 1280459 | C116: G | D116: A | E116: synonymous | F116: hypothetical protein | G116: TRT15p10-ISM | H116: 0.575 | I116: 0.25
A117: TcIL3000.11.500 | B117: 109631 | C117: G | D117: T | E117: synonymous | F117: ABC transporter | G117: TRT15p10-ISM | H117: 0.5 | I117: 0.176
A118: TcIL3000_0_50560 | B118: 13368085 | C118: A | D118: G | E118: synonymous | F118: VSG | G118: TRT15p10-ISM | H118: 0.826 | I118: 0.545

Sheet Table S4
A1: Long deletions shared by two or more MSOROM7 resistant lines
A2: Long deletions shared by one or more MSOROM7 resistant lines and TRT15p10-ISM
A3: Long deletions shared by one or more MSOROM7 resistant lines and TC2
A5: Gene ID | B5: Gene product | C5: MSOROM7-G4 | D5: MSOROM7-H5 | E5: MSOROM7-I5 | F5: TRT15 | G5: TRT15p5-ISM | H5: TRT15p10-ISM | I5: TC2 (Resistant)
A6: TcIL3000_0_58630 | B6: unspecified product | E6: Deletion | F6: Deletion | G6: Deletion | H6: Deletion
A7: TcIL3000_0_36600 | B7: hypothetical protein unlikely | G7: Deletion | H7: Deletion
A8: TcIL3000_0_49500 | B8: unspecified product | G8: Deletion | H8: Deletion
A9: TcIL3000_0_52230 | B9: hypothetical protein unlikely | G9: Deletion | H9: Deletion
A10: TcIL3000_0_60530 | B10: unspecified product | G10: Deletion | H10: Deletion
A11: TcIL3000_0_ncRNA044 | B11: unspecified product | G11: Deletion | H11: Deletion
A12: TcIL3000_0_tRNA023 | B12: transfer RNA-Gly | G12: Deletion | H12: Deletion
A13: TcIL3000_9_4250 | B13: hypothetical protein unlikely | G13: Deletion | H13: Deletion
A14: TcIL3000_0_12130 | B14: unspecified product | C14: Deletion | D14: Deletion | E14: Deletion
A15: TcIL3000_0_ncRNA006 | B15: unspecified product | C15: Deletion | D15: Deletion | E15: Deletion | I15: Deletion
A16: TcIL3000_0_ncRNA067 | B16: unspecified product | C16: Deletion | D16: Deletion | E16: Deletion
A17: TcIL3000_0_58340 | B17: unspecified product | C17: Deletion | E17: Deletion | F17: Deletion | H17: Deletion
A18: TcIL3000_0_08990 | B18: unspecified product | C18: Deletion | E18: Deletion
A19: TcIL3000_0_14250 | B19: hypothetical protein unlikely | C19: Deletion | E19: Deletion
A20: TcIL3000_0_19810 | B20: unspecified product | C20: Deletion | E20: Deletion
A21: TcIL3000_0_20660 | B21: hypothetical protein unlikely | C21: Deletion | E21: Deletion
A22: TcIL3000_0_28310 | B22: unspecified product | C22: Deletion | E22: Deletion
A23: TcIL3000_0_ncRNA013a | B23: unspecified product | C23: Deletion | E23: Deletion
A24: TcIL3000_7_4960 | B24: unspecified product | C24: Deletion | E24: Deletion
A25: TcIL3000_9_180 | B25: unspecified product | C25: Deletion | E25: Deletion
A26: TcIL3000_0_45530 | B26: unspecified product | C26: Deletion | D26: Deletion
A27: TcIL3000_0_45680 | B27: hypothetical protein unlikely | C27: Deletion | D27: Deletion
A28: TcIL3000_0_53710 | B28: hypothetical protein unlikely | C28: Deletion | D28: Deletion
A29: TcIL3000_6_1670 | B29: unspecified product | C29: Deletion | D29: Deletion
A30: TcIL3000_0_21890 | B30: unspecified product | C30: Deletion | H30: Deletion
A31: TcIL3000.11.2840 | B31: unspecified product | C31: Deletion
A32: TcIL3000_0_01920 | B32: unspecified product | C32: Deletion
A33: TcIL3000_0_04630 | B33: hypothetical protein unlikely | C33: Deletion
A34: TcIL3000_0_21300 | B34: hypothetical protein unlikely | C34: Deletion
A35: TcIL3000_0_33640 | B35: unspecified product | C35: Deletion
A36: TcIL3000_0_45260 | B36: unspecified product | C36: Deletion
A37: TcIL3000_0_49920 | B37: hypothetical protein unlikely | C37: Deletion
A38: TcIL3000_0_52760 | B38: unspecified product | C38: Deletion
A39: TcIL3000_3_470 | B39: unspecified product | C39: Deletion
A40: TcIL3000_5_1090 | B40: hypothetical protein unlikely | C40: Deletion
A41: TcIL3000_8_1460 | B41: unspecified product | C41: Deletion
A42: TcIL3000_8_6410 | B42: hypothetical protein unlikely | C42: Deletion
A43: TcIL3000_8_7040 | B43: hypothetical protein conserved | C43: Deletion
A44: TcIL3000_8_tRNA010 | B44: transfer RNA-Ile | C44: Deletion
A45: TcIL3000.11.9790 | B45: unspecified product | D45: Deletion | E45: Deletion
A46: TcIL3000_0_00780 | B46: Transposase | D46: Deletion | E46: Deletion
A47: TcIL3000_0_03670 | B47: unspecified product | D47: Deletion | E47: Deletion
A48: TcIL3000_0_31180 | B48: unspecified product | D48: Deletion | E48: Deletion
A49: TcIL3000_0_51450 | B49: unspecified product | D49: Deletion | E49: Deletion
A50: TcIL3000_0_59550 | B50: unspecified product | D50: Deletion | E50: Deletion
A51: TcIL3000_0_ncRNA036 | B51: unspecified product | E51: Deletion | H51: Deletion
A52: TcIL3000_0_06560 | B52: hypothetical protein unlikely | E52: Deletion
A53: TcIL3000_0_08210 | B53: ecotin | E53: Deletion
A54: TcIL3000_0_30290 | B54: hypothetical protein unlikely | E54: Deletion
A55: TcIL3000_0_36650 | B55: unspecified product | E55: Deletion
A56: TcIL3000_0_38890 | B56: unspecified product | E56: Deletion
A57: TcIL3000_0_41340 | B57: unspecified product | E57: Deletion
A58: TcIL3000_0_43270 | B58: variant surface glycoprotein | E58: Deletion
A59: TcIL3000_0_51460 | B59: unspecified product | E59: Deletion
A60: TcIL3000_0_59640 | B60: unspecified product | E60: Deletion
A61: TcIL3000_0_60110 | B61: hypothetical protein unlikely | E61: Deletion
A62: TcIL3000_0_ncRNA030 | B62: unspecified product | E62: Deletion
A63: TcIL3000_0_ncRNA049 | B63: unspecified product | E63: Deletion
A64: TcIL3000_0_ncRNA064 | B64: unspecified product | E64: Deletion | I64: Deletion
A65: TcIL3000_0_ncRNA50 | B65: unspecified product | E65: Deletion
A66: TcIL3000_0_rRNA038 | B66: unspecified product | E66: Deletion
A67: TcIL3000_1_1030 | B67: hypothetical protein conserved | E67: Deletion
A68: TcIL3000_6_3030 | B68: zinc finger protein ZFP1 putative | E68: Deletion
A69: TcIL3000_8_1130 | B69: hypothetical protein unlikely | E69: Deletion
A70: TcIL3000_9_2020 | B70: hypothetical protein unlikely | E70: Deletion
A71: TcIL3000_0_49050 | B71: hypothetical protein unlikely | D71: Deletion
A72: TcIL3000_0_ncRNA005 | B72: unspecified product | D72: Deletion | I72: Deletion
A73: TcIL3000_0_tRNA033 | B73: transfer RNA-Cys | D73: Deletion
A74: TcIL3000_4_ncRNA002 | B74: unspecified product | D74: Deletion
A75: TcIL3000_0_01970 | B75: hypothetical protein unlikely | H75: Deletion
A76: TcIL3000_0_02390 | B76: unspecified product | H76: Deletion
A77: TcIL3000_0_04800 | B77: unspecified product | H77: Deletion
A78: TcIL3000_0_04840 | B78: unspecified product | H78: Deletion
A79: TcIL3000_0_05830 | B79: hypothetical protein unlikely | H79: Deletion
A80: TcIL3000_0_10330 | B80: unspecified product | H80: Deletion
A81: TcIL3000_0_14930 | B81: hypothetical protein unlikely | H81: Deletion
A82: TcIL3000_0_17150 | B82: unspecified product | H82: Deletion
A83: TcIL3000_0_20670 | B83: unspecified product | H83: Deletion
A84: TcIL3000_0_20770 | B84: hypothetical protein unlikely | H84: Deletion
A85: TcIL3000_0_23950 | B85: unspecified product | H85: Deletion
A86: TcIL3000_0_28290 | B86: unspecified product | H86: Deletion
A87: TcIL3000_0_42960 | B87: hypothetical protein unlikely | H87: Deletion
A88: TcIL3000_0_46860 | B88: hypothetical protein unlikely | H88: Deletion
A89: TcIL3000_0_47500 | B89: hypothetical protein unlikely | H89: Deletion
A90: TcIL3000_0_52750 | B90: unspecified product | H90: Deletion
A91: TcIL3000_0_53690 | B91: unspecified product | H91: Deletion
A92: TcIL3000_0_57940 | B92: unspecified product | H92: Deletion
A93: TcIL3000_0_60140 | B93: unspecified product | H93: Deletion
A94: TcIL3000_0_60720 | B94: unspecified product | H94: Deletion
A95: TcIL3000_0_ncRNA019 | B95: unspecified product | H95: Deletion
A96: TcIL3000_0_ncRNA026 | B96: unspecified product | H96: Deletion
A97: TcIL3000_0_rRNA023 | B97: unspecified product | H97: Deletion
A98: TcIL3000_0_rRNA028 | B98: unspecified product | H98: Deletion
A99: TcIL3000_0_rRNA036 | B99: unspecified product | H99: Deletion
A100: TcIL3000_0_tRNA026 | B100: transfer RNA-Gln | H100: Deletion
A101: TcIL3000_0_tRNA028 | B101: transfer RNA-Ile | H101: Deletion
A102: TcIL3000_5_4070 | B102: hypothetical protein unlikely | H102: Deletion

Sheet Table S5
A1: At least one additional copy in MSOROM7-G
A2: At least one additional copy in MSOROM7-H
A3: At least one additional copy in MSOROM7-I
A4: Shared increase in gene copy number between one or more MSOROM7 resistant lines and TRT15p10-ISM
A5: Shared increase in gene copy number between one or more MSOROM7 resistant lines and TC1 or Zambian resistant strains
C7: Gene copy number
A8: Gene ID | B8: Gene function | C8: MSOROM7 | D8: MSOROM7-G | E8: Differences | F8: MSOROM7-H | G8: Differences | H8: MSOROM7-I | I8: Differences | J8: TRT15 | K8: TRT15P10ISM | L8: Differences | M8: TC1 Sensitive | N8: TC1 Resistant | O8: Differences | P8: Zambian Sensitive | Q8: Zambian Resistant | R8: Differences
A9: TcIL3000_0_60820 | B9: glutamic acid alanine-rich protein | C9: 3.001 | D9: 4.991 | E9: =D9-C9 -> 1.99 | F9: 4.347 | G9: =F9-C9 -> 1.346 | H9: 5.009 | I9: =H9-C9 -> 2.008 | J9: 2.764 | K9: 4.2 | L9: =K9-J9 -> 1.436 | P9: 1.109 | Q9: 2.378 | R9: =Q9-P9 -> 1.269
A10: TcIL3000_0_rRNA042 | B10: rRNA | C10: 13.987 | D10: 23.264 | E10: 9.277 | F10: 16.066 | G10: 2.079 | H10: 19.182 | I10: 5.195 | J10: 29.075 | K10: 35.243 | L10: 6.168 | P10: 27.672 | Q10: 41.053 | R10: 13.381
A11: TcIL3000_0_13290 | B11: Transferrin receptor-like ESAG6-like | C11: 2.135 | D11: 3.424 | E11: 1.289 | F11: 3.261 | G11: 1.126 | H11: 3.266 | I11: 1.131 | J11: 1.796 | K11: 2.119 | L11: 0.323 | M11: 4.25 | N11: 6.15 | O11: =N11-M11 -> 1.9
A12: TcIL3000_0_51990 | B12: Retrotransposon hot spot protein | C12: 2.045 | D12: 3.223 | E12: 1.178 | F12: 4.225 | G12: 2.18 | H12: 2.975 | I12: 0.93 | J12: 0.461 | K12: 0.415 | L12: -0.046 | M12: 1.463 | N12: 3.336 | O12: =N12-M12 -> 1.873
A13: TcIL3000_0_39450 | B13: VSG | C13: 5.265 | D13: 7.318 | E13: 2.053 | F13: 8.038 | G13: 2.773 | H13: 7.737 | I13: 2.472 | J13: 0.689 | K13: 0.566 | L13: -0.123 | M13: 1.17 | N13: 3.013 | O13: =N13-M13 -> 1.843
A14: TcIL3000_0_15450 | B14: Retrotransposon hot spot protein | C14: 3.527 | D14: 5.149 | E14: 1.622 | F14: 4.752 | G14: 1.225 | H14: 4.872 | I14: 1.345 | J14: 3.818 | K14: 5.375 | L14: 1.557 | M14: 0.852 | N14: 1.988 | O14: =N14-M14 -> 1.136
A15: TcIL3000_0_11310 | B15: unnamed | C15: 6.754 | D15: 15.511 | E15: 8.757 | F15: 15.278 | G15: 8.524 | H15: 14.063 | I15: 7.309 | J15: 10.616 | K15: 15.618 | L15: 5.002 | M15: 0.262 | N15: 2.283 | O15: =N15-M15 -> 2.021
A16: TcIL3000_0_15070 | B16: unnamed | C16: 31.487 | D16: 69.481 | E16: 37.994 | F16: 58.597 | G16: 27.11 | H16: 64.044 | I16: 32.557 | J16: 35.941 | K16: 28.599 | L16: -7.342
A17: TcIL3000_0_29280 | B17: unlikely | C17: 23.296 | D17: 63.166 | E17: 39.87 | F17: 53.64 | G17: 30.344 | H17: 54.846 | I17: 31.55 | J17: 30.678 | K17: 25.845 | L17: -4.833
A18: TcIL3000_0_rRNA051 | B18: rRNA | C18: 51.403 | D18: 81.84 | E18: 30.437 | F18: 77.505 | G18: 26.102 | H18: 75.717 | I18: 24.314 | J18: 91.949 | K18: 71.085 | L18: -20.864
A19: TcIL3000_0_03710 | B19: unnamed | C19: 26.44 | D19: 56.197 | E19: 29.757 | F19: 52.238 | G19: 25.798 | H19: 45.716 | I19: 19.276 | J19: 10.404 | K19: 8.805 | L19: -1.599
A20: TcIL3000_0_03560 | B20: atp-dependent dead h rna helicase | C20: 12.141 | D20: 35.897 | E20: 23.756 | F20: 35.455 | G20: 23.314 | H20: 31.311 | I20: 19.17 | J20: 7.819 | K20: 23.242 | L20: 15.423
A21: TcIL3000_0_25490 | B21: hypothetical | C21: 17.783 | D21: 52.995 | E21: 35.212 | F21: 48.403 | G21: 30.62 | H21: 36.778 | I21: 18.995 | J21: 17.012 | K21: 45.332 | L21: 28.32
A22: TcIL3000_0_32540 | B22: atp-dependent dead h rna helicase | C22: 12.771 | D22: 35.06 | E22: 22.289 | F22: 34.768 | G22: 21.997 | H22: 30.896 | I22: 18.125 | J22: 6.249 | K22: 17.856 | L22: 11.607
A23: TcIL3000_0_04340 | B23: VSG | C23: 6.393 | D23: 20.147 | E23: 13.754 | F23: 27.389 | G23: 20.996 | H23: 19.302 | I23: 12.909 | J23: 10.467 | K23: 22.981 | L23: 12.514
A24: TcIL3000_0_01230 | B24: atp-dependent dead h rna helicase | C24: 9.879 | D24: 25.07 | E24: 15.191 | F24: 23.982 | G24: 14.103 | H24: 20.979 | I24: 11.1 | J24: 4.641 | K24: 12.873 | L24: 8.232
A25: TcIL3000_0_46140 | B25: VSG | C25: 4.658 | D25: 16.546 | E25: 11.888 | F25: 25.188 | G25: 20.53 | H25: 15.677 | I25: 11.019 | J25: 9.781 | K25: 24.814 | L25: 15.033
A26: TcIL3000_10_8910 | B26: histone h2b | C26: 15.803 | D26: 22.522 | E26: 6.719 | F26: 24.007 | G26: 8.204 | H26: 24.576 | I26: 8.773 | J26: 16.641 | K26: 19.03 | L26: 2.389
A27: TcIL3000_0_32470 | B27: unnamed | C27: 11.343 | D27: 22.404 | E27: 11.061 | F27: 21.669 | G27: 10.326 | H27: 19.567 | I27: 8.224 | J27: 4.669 | K27: 9.204 | L27: 4.535
A28: TcIL3000_0_32460 | B28: hypothetical | C28: 1.256 | D28: 14.32 | E28: 13.064 | F28: 33.609 | G28: 32.353 | H28: 9.457 | I28: 8.201 | J28: 5.838 | K28: 8.204 | L28: 2.366
A29: TcIL3000_0_43370 | B29: unnamed | C29: 5.175 | D29: 19.078 | E29: 13.903 | F29: 20.358 | G29: 15.183 | H29: 13.345 | I29: 8.17 | J29: 3.644 | K29: 7.62 | L29: 3.976
A30: TcIL3000_0_12620 | B30: VSG | C30: 6.873 | D30: 15.003 | E30: 8.13 | F30: 19.62 | G30: 12.747 | H30: 14.687 | I30: 7.814 | J30: 6.321 | K30: 12.579 | L30: 6.258
A31: TcIL3000_0_30870 | B31: atp-dependent dead h rna helicase | C31: 8.789 | D31: 17.71 | E31: 8.921 | F31: 17.691 | G31: 8.902 | H31: 16.563 | I31: 7.774 | J31: 4.251 | K31: 8.951 | L31: 4.7
A32: TcIL3000_0_60190 | B32: unnamed | C32: 12.768 | D32: 24.773 | E32: 12.005 | F32: 26.273 | G32: 13.505 | H32: 20.135 | I32: 7.367 | J32: 21.66 | K32: 20.762 | L32: -0.898
A33: TcIL3000_0_06915 | B33: VSG | C33: 2.485 | D33: 10.167 | E33: 7.682 | F33: 15.735 | G33: 13.25 | H33: 9.32 | I33: 6.835 | J33: 8.462 | K33: 18.511 | L33: 10.049
A34: TcIL3000_0_32490 | B34: unnamed | C34: 10.773 | D34: 21.938 | E34: 11.165 | F34: 22.79 | G34: 12.017 | H34: 17.514 | I34: 6.741 | J34: 4.476 | K34: 10.4 | L34: 5.924
A35: TcIL3000_0_51830 | B35: hypothetical | C35: 21.926 | D35: 31.983 | E35: 10.057 | F35: 31.917 | G35: 9.991 | H35: 28.202 | I35: 6.276 | J35: 10.071 | K35: 11.496 | L35: 1.425
A36: TcIL3000_0_54700 | B36: VSG | C36: 4.701 | D36: 10.648 | E36: 5.947 | F36: 14.279 | G36: 9.578 | H36: 10.869 | I36: 6.168 | J36: 10.023 | K36: 12.375 | L36: 2.352
A37: TcIL3000_0_17570 | B37: atp-dependent dead h rna helicase | C37: 6.619 | D37: 12.847 | E37: 6.228 | F37: 12.788 | G37: 6.169 | H37: 12.587 | I37: 5.968 | J37: 3.102 | K37: 7.554 | L37: 4.452
A38: TcIL3000_0_10990 | B38: transferrin receptor- esag6-like | C38: 22.461 | D38: 25.845 | E38: 3.384 | F38: 27.766 | G38: 5.305 | H38: 28.397 | I38: 5.936 | J38: 0.375 | K38: 0.311 | L38: -0.064
A39: TcIL3000_0_50530 | B39: unnamed | C39: 1.161 | D39: 12.73 | E39: 11.569 | F39: 28.018 | G39: 26.857 | H39: 7.041 | I39: 5.88 | J39: 2.847 | K39: 6.798 | L39: 3.951
A40: TcIL3000_0_19770 | B40: VSG | C40: 1.595 | D40: 8.706 | E40: 7.111 | F40: 10.756 | G40: 9.161 | H40: 7.436 | I40: 5.841 | J40: 8.161 | K40: 15.481 | L40: 7.32
A41: TcIL3000_0_05180 | B41: VSG | C41: 2.712 | D41: 9.795 | E41: 7.083 | F41: 10.357 | G41: 7.645 | H41: 8.307 | I41: 5.595 | J41: 3.926 | K41: 5.933 | L41: 2.007
A42: TcIL3000_0_32450 | B42: cathepsin b-like protease | C42: 8.42 | D42: 14.587 | E42: 6.167 | F42: 12.551 | G42: 4.131 | H42: 14.015 | I42: 5.595 | J42: 2.337 | K42: 1.876 | L42: -0.461
A43: TcIL3000_0_12660 | B43: VSG | C43: 11.273 | D43: 14.912 | E43: 3.639 | F43: 14.478 | G43: 3.205 | H43: 16.852 | I43: 5.579 | J43: 2.954 | K43: 3.256 | L43: 0.302
A44: TcIL3000_BAC4B1_002 | B44: VSG | C44: 4.218 | D44: 10.375 | E44: 6.157 | F44: 12.707 | G44: 8.489 | H44: 9.741 | I44: 5.523 | J44: 9.888 | K44: 20.017 | L44: 10.129
A45: TcIL3000_0_03110 | B45: unlikely | C45: 2.562 | D45: 8.574 | E45: 6.012 | F45: 11.781 | G45: 9.219 | H45: 7.938 | I45: 5.376 | J45: 2.398 | K45: 7.211 | L45: 4.813
A46: TcIL3000_0_05190 | B46: VSG | C46: 3.284 | D46: 8.631 | E46: 5.347 | F46: 9.979 | G46: 6.695 | H46: 8.44 | I46: 5.156 | J46: 6.489 | K46: 10.075 | L46: 3.586
A47: TcIL3000_0_14380 | B47: VSG | C47: 2.387 | D47: 8.604 | E47: 6.217 | F47: 12.659 | G47: 10.272 | H47: 7.499 | I47: 5.112 | J47: 5.327 | K47: 10.066 | L47: 4.739
A48: TcIL3000_0_60590 | B48: VSG | C48: 17.812 | D48: 20.44 | E48: 2.628 | F48: 25.105 | G48: 7.293 | H48: 22.888 | I48: 5.076 | J48: 2.677 | K48: 2.723 | L48: 0.046
A49: TcIL3000_0_18520 | B49: VSG | C49: 3.444 | D49: 9.287 | E49: 5.843 | F49: 10.417 | G49: 6.973 | H49: 8.452 | I49: 5.008 | J49: 2.817 | K49: 5.806 | L49: 2.989
A50: TcIL3000_0_04880 | B50: unnamed | C50: 2.567 | D50: 5.85 | E50: 3.283 | F50: 10.424 | G50: 7.857 | H50: 7.449 | I50: 4.882 | J50: 4.295 | K50: 11.261 | L50: 6.966
A51: TcIL3000_0_10980 | B51: transferrin receptor- esag6-like | C51: 12.373 | D51: 15.398 | E51: 3.025 | F51: 18.342 | G51: 5.969 | H51: 17.172 | I51: 4.799 | J51: 0.463 | K51: 0.401 | L51: -0.062
A52: TcIL3000_0_60650 | B52: VSG | C52: 12.954 | D52: 17.324 | E52: 4.37 | F52: 18.825 | G52: 5.871 | H52: 17.622 | I52: 4.668 | J52: 1.884 | K52: 2.209 | L52: 0.325
A53: TcIL3000_0_56700 | B53: hypothetical | C53: 2.938 | D53: 14.443 | E53: 11.505 | F53: 12.424 | G53: 9.486 | H53: 7.557 | I53: 4.619 | J53: 5.663 | K53: 8.506 | L53: 2.843
A54: TcIL3000_0_39850 | B54: VSG | C54: 1.973 | D54: 5.808 | E54: 3.835 | F54: 10.377 | G54: 8.404 | H54: 6.577 | I54: 4.604 | J54: 4.641 | K54: 6.456 | L54: 1.815
A55: TcIL3000_0_39770 | B55: VSG | C55: 6.375 | D55: 9.855 | E55: 3.48 | F55: 10.647 | G55: 4.272 | H55: 10.926 | I55: 4.551 | J55: 3.966 | K55: 3.118 | L55: -0.848
A56: TcIL3000_0_57450 | B56: VSG | C56: 19.248 | D56: 19.823 | E56: 0.575 | F56: 26.286 | G56: 7.038 | H56: 23.769 | I56: 4.521 | J56: 12.008 | K56: 10.815 | L56: -1.193
A57: TcIL3000_0_rRNA052 | B57: rRNA | C57: 43.796 | D57: 51.419 | E57: 7.623 | F57: 46.788 | G57: 2.992 | H57: 48.305 | I57: 4.509 | J57: 52.875 | K57: 37.44 | L57: -15.435
A58: TcIL3000_0_28630 | B58: VSG | C58: 11.128 | D58: 14.177 | E58: 3.049 | F58: 16.958 | G58: 5.83 | H58: 15.548 | I58: 4.42 | J58: 1.184 | K58: 0.983 | L58: -0.201
A59: TcIL3000_0_04910 | B59: VSG | C59: 2.083 | D59: 6.528 | E59: 4.445 | F59: 7.752 | G59: 5.669 | H59: 6.307 | I59: 4.224 | J59: 7.507 | K59: 12.075 | L59: 4.568
A60: TcIL3000_0_60580 | B60: cell surface-expressed gene family | C60: 18.27 | D60: 22.34 | E60: 4.07 | F60: 25.789 | G60: 7.519 | H60: 22.443 | I60: 4.173 | J60: 2.501 | K60: 3.485 | L60: 0.984
A61: TcIL3000_0_38010 | B61: VSG | C61: 1.908 | D61: 5.493 | E61: 3.585 | F61: 7.225 | G61: 5.317 | H61: 5.957 | I61: 4.049 | J61: 4.848 | K61: 7.008 | L61: 2.16
A62: TcIL3000_0_47460 | B62: hypothetical | C62: 8.67 | D62: 14.634 | E62: 5.964 | F62: 16.524 | G62: 7.854 | H62: 12.574 | I62: 3.904 | J62: 13.902 | K62: 12.741 | L62: -1.161
A63: TcIL3000_0_43530 | B63: VSG | C63: 3.946 | D63: 8.992 | E63: 5.046 | F63: 11.48 | G63: 7.534 | H63: 7.836 | I63: 3.89 | J63: 6.352 | K63: 9.137 | L63: 2.785
A64: TcIL3000_0_60660 | B64: cell surface-expressed gene family | C64: 12.975 | D64: 16.5 | E64: 3.525 | F64: 19.596 | G64: 6.621 | H64: 16.829 | I64: 3.854 | J64: 1.631 | K64: 0.886 | L64: -0.745
A65: TcIL3000_0_rRNA032 | B65: rRNA | C65: 11.278 | D65: 17.771 | E65: 6.493 | F65: 16.025 | G65: 4.747 | H65: 15.13 | I65: 3.852 | J65: 0.195 | K65: 0.202 | L65: 0.007
A66: TcIL3000_0_ncRNA062 | B66: ncRNA | C66: 4.176 | D66: 6.463 | E66: 2.287 | F66: 5.465 | G66: 1.289 | H66: 8.025 | I66: 3.849 | J66: 5.749 | K66: 7.359 | L66: 1.61
A67: TcIL3000_0_43520 | B67: VSG | C67: 1.709 | D67: 5.734 | E67: 4.025 | F67: 7.435 | G67: 5.726 | H67: 5.538 | I67: 3.829 | J67: 3.77 | K67: 6.723 | L67: 2.953
A68: TcIL3000_0_60560 | B68: unnamed | C68: 16.116 | D68: 21.889 | E68: 5.773 | F68: 23.525 | G68: 7.409 | H68: 19.936 | I68: 3.82 | J68: 2.967 | K68: 2.862 | L68: -0.105
A69: TcIL3000_0_28660 | B69: hypothetical | C69: 6.488 | D69: 8.41 | E69: 1.922 | F69: 13.515 | G69: 7.027 | H69: 10.269 | I69: 3.781 | J69: 1.306 | K69: 1.662 | L69: 0.356
A70: TcIL3000_0_26630 | B70: VSG | C70: 7.635 | D70: 9.935 | E70: 2.3 | F70: 12.448 | G70: 4.813 | H70: 11.382 | I70: 3.747 | J70: 1.143 | K70: 1.347 | L70: 0.204
A71: TcIL3000_0_23600 | B71: brucei specific protein | C71: 3.421 | D71: 7.631 | E71: 4.21 | F71: 6.379 | G71: 2.958 | H71: 7.132 | I71: 3.711 | J71: 5.094 | K71: 6.328 | L71: 1.234
A72: TcIL3000_0_40930 | B72: VSG | C72: 9.773 | D72: 12.883 | E72: 3.11 | F72: 13.78 | G72: 4.007 | H72: 13.479 | I72: 3.706 | J72: 6.357 | K72: 5.714 | L72: -0.643
A73: TcIL3000_0_01560 | B73: Transferrin+receptor-like+ESAG6-like | C73: 3.161 | D73: 6.805 | E73: =D73-C73 -> 3.644 | F73: 7.304 | G73: =F73-C73 -> 4.143 | H73: 6.845 | I73: =H73-C73 -> 3.684 | J73: 3.79 | K73: 3.749 | L73: =K73-J73 -> -0.041
A74: TcIL3000_0_48020 | B74: VSG | C74: 6.335 | D74: 8.184 | E74: 1.849 | F74: 11.254 | G74: 4.919 | H74: 9.969 | I74: 3.634 | J74: 0.133 | K74: 0.303 | L74: 0.17
A75: TcIL3000_0_rRNA034 | B75: rRNA | C75: 5.413 | D75: 11.189 | E75: 5.776 | F75: 8.995 | G75: 3.582 | H75: 8.971 | I75: 3.558 | J75: 0.109 | K75: 0.02 | L75: -0.089
A76: TcIL3000_0_38020 | B76: VSG | C76: 1.407 | D76: 5.519 | E76: 4.112 | F76: 6.608 | G76: 5.201 | H76: 4.949 | I76: 3.542 | J76: 2.949 | K76: 6.414 | L76: 3.465
A77: TcIL3000_BAC4B1_001 | B77: VSG | C77: 1.637 | D77: 5.921 | E77: 4.284 | F77: 7.081 | G77: 5.444 | H77: 5.151 | I77: 3.514 | J77: 5.008 | K77: 8.832 | L77: 3.824
A78: TcIL3000_0_13240 | B78: unnamed | C78: 2.996 | D78: 7.93 | E78: 4.934 | F78: 10.271 | G78: 7.275 | H78: 6.458 | I78: 3.462 | J78: 9.432 | K78: 7.658 | L78: -1.774
A79: TcIL3000_0_25280 | B79: VSG | C79: 2.789 | D79: 6.665 | E79: 3.876 | F79: 7.543 | G79: 4.754 | H79: 6.232 | I79: 3.443 | J79: 3.942 | K79: 5.705 | L79: 1.763
A80: TcIL3000_0_04890 | B80: VSG | C80: 1.505 | D80: 4.532 | E80: 3.027 | F80: 6.55 | G80: 5.045 | H80: 4.938 | I80: 3.433 | J80: 5.307 | K80: 8.866 | L80: 3.559
A81: TcIL3000_5_4880 | B81: histone h4 | C81: 13.377 | D81: 16.512 | E81: 3.135 | F81: 13.457 | G81: 0.08 | H81: 16.546 | I81: 3.169 | J81: 0.314 | K81: 0.247 | L81: -0.067
A82: TcIL3000_0_15090 | B82: cell surface glycoprotein | C82: 5.518 | D82: 9.039 | E82: 3.521 | F82: 10.791 | G82: 5.273 | H82: 8.595 | I82: 3.077 | J82: 3.088 | K82: 2.068 | L82: -1.02
A83: TcIL3000_0_06850 | B83: unnamed | C83: 4.325 | D83: 6.921 | E83: 2.596 | F83: 7.074 | G83: 2.749 | H83: 7.39 | I83: 3.065 | J83: 3.375 | K83: 4.587 | L83: 1.212
A84: TcIL3000_0_48340 | B84: VSG | C84: 6.392 | D84: 10.353 | E84: 3.961 | F84: 7.455 | G84: 1.063 | H84: 9.438 | I84: 3.046 | J84: 0.105 | K84: 0.055 | L84: -0.05
A85: TcIL3000_0_18530 | B85: VSG | C85: 1.985 | D85: 6.085 | E85: 4.1 | F85: 6.425 | G85: 4.44 | H85: 4.969 | I85: 2.984 | J85: 2.385 | K85: 5.42 | L85: 3.035
A86: TcIL3000_0_32480 | B86: unnamed | C86: 6.775 | D86: 10.865 | E86: 4.09 | F86: 10.382 | G86: 3.607 | H86: 9.744 | I86: 2.969 | J86: 3.503 | K86: 6.132 | L86: 2.629
A87: TcIL3000_0_48160 | B87: unnamed | C87: 13.501 | D87: 18.721 | E87: 5.22 | F87: 11.18 | G87: -2.321 | H87: 16.456 | I87: 2.955 | J87: 0.379 | K87: 0.339 | L87: -0.04
A88: TcIL3000_0_48100 | B88: hypothetical | C88: 8.737 | D88: 8.768 | E88: 0.031 | F88: 9.852 | G88: 1.115 | H88: 11.667 | I88: 2.93 | J88: 0.239 | K88: 0.145 | L88: -0.094
A89: TcIL3000_0_57040 | B89: transferrin receptor- esag6-like | C89: 8.082 | D89: 9.826 | E89: 1.744 | F89: 11.883 | G89: 3.801 | H89: 10.96 | I89: 2.878 | J89: 0.572 | K89: 0.607 | L89: 0.035
A90: TcIL3000_0_38000 | B90: unnamed | C90: 4.868 | D90: 7.896 | E90: 3.028 | F90: 9.484 | G90: 4.616 | H90: 7.716 | I90: 2.848 | J90: 4.751 | K90: 3.279 | L90: -1.472
A91: TcIL3000_0_39780 | B91: VSG | C91: 1.034 | D91: 4.404 | E91: 3.37 | F91: 4.366 | G91: 3.332 | H91: 3.863 | I91: 2.829 | J91: 0.89 | K91: 0.636 | L91: -0.254
A92: TcIL3000_0_27040 | B92: unnamed | C92: 8.179 | D92: 11.514 | E92: 3.335 | F92: 11.456 | G92: 3.277 | H92: 10.968 | I92: 2.789 | J92: 1.537 | K92: 1.185 | L92: -0.352
A93: TcIL3000_0_04900 | B93: VSG | C93: 1.951 | D93: 4.242 | E93: 2.291 | F93: 6.471 | G93: 4.52 | H93: 4.733 | I93: 2.782 | J93: 5.655 | K93: 10.745 | L93: 5.09
A94: TcIL3000_0_37410 | B94: VSG | C94: 2.69 | D94: 5.402 | E94: 2.712 | F94: 5.598 | G94: 2.908 | H94: 5.409 | I94: 2.719 | J94: 0.096 | K94: 0.14 | L94: 0.044
A95: TcIL3000_0_54690 | B95: VSG | C95: 2.043 | D95: 4.417 | E95: 2.374 | F95: 5.289 | G95: 3.246 | H95: 4.691 | I95: 2.648 | J95: 5.1 | K95: 5.561 | L95: 0.461
A96: TcIL3000_0_40170 | B96: unnamed | C96: 10.406 | D96: 16.66 | E96: 6.254 | F96: 8.314 | G96: -2.092 | H96: 13.048 | I96: 2.642 | J96: 26.565 | K96: 22.33 | L96: -4.235
A97: TcIL3000_0_23610 | B97: unnamed | C97: 3.39 | D97: 6.295 | E97: 2.905 | F97: 5.11 | G97: 1.72 | H97: 6.011 | I97: 2.621 | J97: 3.344 | K97: 5.079 | L97: 1.735
A98: TcIL3000_0_rRNA031 | B98: rRNA | C98: 11.495 | D98: 16.478 | E98: 4.983 | F98: 15.404 | G98: 3.909 | H98: 14.086 | I98: 2.591 | J98: 0.376 | K98: 0.178 | L98: -0.198
A99: TcIL3000_0_05200 | B99: VSG | C99: 1.416 | D99: 4.353 | E99: 2.937 | F99: 5.73 | G99: 4.314 | H99: 3.999 | I99: 2.583 | J99: 3.679 | K99: 7.504 | L99: 3.825
A100: TcIL3000_0_11740 | B100: VSG | C100: 3.412 | D100: 4.937 | E100: 1.525 | F100: 5.402 | G100: 1.99 | H100: 5.984 | I100: 2.572 | J100: 5.85 | K100: 8.78 | L100: 2.93
A101: TcIL3000_0_11300 | B101: unnamed | C101: 6.331 | D101: 9.274 | E101: 2.943 | F101: 9.789 | G101: 3.458 | H101: 8.899 | I101: 2.568 | J101: 6.327 | K101: 7.201 | L101: 0.874
A102: TcIL3000_BAC13H6_003 | B102: VSG | C102: 0.958 | D102: 4.406 | E102: 3.448 | F102: 5.358 | G102: 4.4 | H102: 3.483 | I102: 2.525 | J102: 3.092 | K102: 6.633 | L102: 3.541
A103: TcIL3000_0_57460 | B103: retrotransposon hot spot protein | C103: 6.863 | D103: 8.146 | E103: 1.283 | F103: 8.293 | G103: 1.43 | H103: 9.366 | I103: 2.503 | J103: 5.467 | K103: 5.632 | L103: 0.165
A104: TcIL3000_0_25110 | B104: unnamed | C104: 17.773 | D104: 22.208 | E104: 4.435 | F104: 26.311 | G104: 8.538 | H104: 20.275 | I104: 2.502 | J104: 16.544 | K104: 13.174 | L104: -3.37
A105: TcIL3000_0_18650 | B105: unnamed | C105: 9.89 | D105: 15.804 | E105: 5.914 | F105: 15.244 | G105: 5.354 | H105: 12.386 | I105: 2.496 | J105: 3.254 | K105: 2.071 | L105: -1.183
A106: TcIL3000_0_25260 | B106: VSG | C106: 2.138 | D106: 4.884 | E106: 2.746 | F106: 6.247 | G106: 4.109 | H106: 4.594 | I106: 2.456 | J106: 2.142 | K106: 2.038 | L106: -0.104
A107: TcIL3000_0_17020 | B107: cell surface-expressed gene family | C107: 4.356 | D107: 6.94 | E107: 2.584 | F107: 5.518 | G107: 1.162 | H107: 6.795 | I107: 2.439 | J107: 3.947 | K107: 4.828 | L107: 0.881
A108: TcIL3000_0_23590 | B108: unnamed | C108: 4.127 | D108: 7.538 | E108: 3.411 | F108: 5.427 | G108: 1.3 | H108: 6.559 | I108: 2.432 | J108: 3.957 | K108: 5.927 | L108: 1.97
A109: TcIL3000_0_06810 | B109: VSG | C109: 1.701 | D109: 3.824 | E109: 2.123 | F109: 5.703 | G109: 4.002 | H109: 4.119 | I109: 2.418 | J109: 3.949 | K109: 5.719 | L109: 1.77
A110: TcIL3000_0_26580 | B110: unnamed | C110: 4.605 | D110: 9.006 | E110: 4.401 | F110: 9.312 | G110: 4.707 | H110: 7.02 | I110: 2.415 | J110: 4.079 | K110: 2.171 | L110: -1.908
A111: TcIL3000_0_25290 | B111: VSG | C111: 1.722 | D111: 4.227 | E111: 2.505 | F111: 4.975 | G111: 3.253 | H111: 4.131 | I111: 2.409 | J111: 1.935 | K111: 2.734 | L111: 0.799
A112: TcIL3000_0_58950 | B112: vsg- congolense-specific orf | C112: 0.891 | D112: 3.282 | E112: 2.391 | F112: 2.92 | G112: 2.029 | H112: 3.299 | I112: 2.408 | J112: 0.176 | K112: 0.02 | L112: -0.156
A113: TcIL3000_0_22660 | B113: VSG | C113: 1.156 | D113: 3.424 | E113: 2.268 | F113: 2.913 | G113: 1.757 | H113: 3.493 | I113: 2.337 | J113: 1.845 | K113: 1.547 | L113: -0.298
A114: TcIL3000_0_44610 | B114: VSG | C114: 3.225 | D114: 6.475 | E114: 3.25 | F114: 6.343 | G114: 3.118 | H114: 5.555 | I114: 2.33 | J114: 1.018 | K114: 0.751 | L114: -0.267
A115: TcIL3000_0_02940 | B115: unnamed | C115: 2.319 | D115: 4.84 | E115: 2.521 | F115: 6.631 | G115: 4.312 | H115: 4.564 | I115: 2.245 | J115: 1.232 | K115: 0.834 | L115: -0.398
A116: TcIL3000_0_48120 | B116: nucleobase nucleoside transporter; nucleobase transporter | C116: 8.639 | D116: 11.187 | E116: 2.548 | F116: 9.253 | G116: 0.614 | H116: 10.882 | I116: 2.243 | J116: 0.012 | K116: 0.025 | L116: 0.013
A117: TcIL3000_0_19460 | B117: VSG | C117: 1.458 | D117: 3.352 | E117: 1.894 | F117: 5 | G117: 3.542 | H117: 3.7 | I117: 2.242 | J117: 2.534 | K117: 4.12 | L117: 1.586
A118: TcIL3000_0_03680 | B118: reverse transcriptase (rna-dependent dna polymerase) | C118: 4.229 | D118: 5.808 | E118: 1.579 | F118: 5.208 | G118: 0.979 | H118: 6.421 | I118: 2.192 | J118: 4.181 | K118: 5.907 | L118: 1.726
A119: TcIL3000_0_37420 | B119: unnamed | C119: 1.928 | D119: 5.668 | E119: 3.74 | F119: 6.195 | G119: 4.267 | H119: 4.102 | I119: 2.174 | J119: 1.228 | K119: 3.105 | L119: 1.877
A120: TcIL3000_0_24920 | B120: unnamed | C120: 0.666 | D120: 3.708 | E120: 3.042 | F120: 2.81 | G120: 2.144 | H120: 2.818 | I120: 2.152 | J120: 1.095 | K120: 0.903 | L120: -0.192
A121: TcIL3000_0_06840 | B121: hypothetical | C121: 7.33 | D121: 13.109 | E121: 5.779 | F121: 10.234 | G121: 2.904 | H121: 9.442 | I121: 2.112 | J121: 6.566 | K121: 9.094 | L121: 2.528
A122: TcIL3000_0_32255 | B122: VSG | C122: 1.38 | D122: 3.374 | E122: 1.994 | F122: 5.192 | G122: 3.812 | H122: 3.489 | I122: 2.109 | J122: 3.195 | K122: 4.66 | L122: 1.465
A123: TcIL3000_0_14530 | B123: Histone 2A | C123: 4.069 | D123: 5.363 | E123: 1.294 | F123: 5.494 | G123: 1.425 | H123: 6.173 | I123: 2.104 | J123: 1.525 | K123: 1.319 | L123: -0.206
A124: TcIL3000_0_13870 | B124: unnamed | C124: 1.617 | D124: 4.045 | E124: 2.428 | F124: 3.964 | G124: 2.347 | H124: 3.706 | I124: 2.089 | J124: 2.93 | K124: 7.213 | L124: 4.283
A125: TcIL3000_0_12020 | B125: VSG | C125: 2.302 | D125: 4.791 | E125: 2.489 | F125: 4.281 | G125: 1.979 | H125: 4.369 | I125: 2.067 | J125: 0.84 | K125: 1.2 | L125: 0.36
A126: TcIL3000_0_21410 | B126: VSG | C126: 0.936 | D126: 3.499 | E126: 2.563 | F126: 2.704 | G126: 1.768 | H126: 2.992 | I126: 2.056 | J126: 0.017 | K126: 0.044 | L126: 0.027
A127: TcIL3000_0_06820 | B127: unnamed | C127: 4.582 | D127: 7.598 | E127: 3.016 | F127: 7.308 | G127: 2.726 | H127: 6.623 | I127: 2.041 | J127: 3.861 | K127: 3.433 | L127: -0.428
A128: TcIL3000_0_51540 | B128: unnamed | C128: 4.369 | D128: 7.232 | E128: 2.863 | F128: 8.314 | G128: 3.945 | H128: 6.396 | I128: 2.027 | J128: 1.598 | K128: 1.306 | L128: -0.292
A129: TcIL3000_0_40320 | B129: vsg- congolense-specific orf | C129: 2.344 | D129: 5.776 | E129: 3.432 | F129: 4.356 | G129: 2.012 | H129: 4.369 | I129: 2.025 | J129: 0.143 | K129: 0 | L129: -0.143
A130: TcIL3000_0_01360 | B130: vsg- congolense-specific orf | C130: 2.462 | D130: 6.747 | E130: 4.285 | F130: 5.136 | G130: 2.674 | H130: 4.435 | I130: 1.973 | J130: 0.606 | K130: 0.6 | L130: -0.006
A131: TcIL3000_0_02270 | B131: unnamed | C131: 2.566 | D131: 3.672 | E131: 1.106 | F131: 4.593 | G131: 2.027 | H131: 4.537 | I131: 1.971 | J131: 0.147 | K131: 0.043 | L131: -0.104
A132: TcIL3000_0_60230 | B132: VSG | C132: 5.382 | D132: 6.735 | E132: 1.353 | F132: 8.037 | G132: 2.655 | H132: 7.351 | I132: 1.969 | J132: 10.863 | K132: 12.354 | L132: 1.491
A133: TcIL3000_0_13140 | B133: Transferrin+receptor-like+ESAG6-like | C133: 1.709 | D133: 3.485 | E133: 1.776 | F133: 3.513 | G133: 1.804 | H133: 3.676 | I133: 1.967 | J133: 0.379 | K133: 0.447 | L133: 0.068
A134: TcIL3000_0_24980 | B134: VSG | C134: 0.82 | D134: 1.883 | E134: 1.063 | F134: 3.809 | G134: 2.989 | H134: 2.773 | I134: 1.953 | J134: 2.002 | K134: 3.925 | L134: 1.923
A135: TcIL3000_0_45320 | B135: vsg- congolense-specific orf | C135: 0.647 | D135: 2.823 | E135: 2.176 | F135: 3.359 | G135: 2.712 | H135: 2.593 | I135: 1.946 | J135: 0.84 | K135: 0.381 | L135: -0.459
A136: TcIL3000_0_57430 | B136: unnamed | C136: 3.224 | D136: 3.034 | E136: -0.19 | F136: 5.171 | G136: 1.947 | H136: 5.165 | I136: 1.941 | J136: 0 | K136: 0 | L136: 0
A137: TcIL3000_0_28670 | B137: hypothetical | C137: 10.44 | D137: 11.225 | E137: =D137-C137 -> 0.785 | F137: 12.323 | G137: =F137-C137 -> 1.883 | H137: 12.357 | I137: =H137-C137 -> 1.917 | J137: 1.353 | K137: 0.958 | L137: =K137-J137 -> -0.395
A138: TcIL3000_0_38730 | B138: unnamed | C138: 5.707 | D138: 7.785 | E138: 2.078 | F138: 7.491 | G138: 1.784 | H138: 7.623 | I138: 1.916 | J138: 7.893 | K138: 5.912 | L138: -1.981
A139: TcIL3000_0_12610 | B139: unnamed | C139: 1.658 | D139: 2.668 | E139: 1.01 | F139: 4.861 | G139: 3.203 | H139: 3.557 | I139: 1.899 | J139: 8.643 | K139: 21.023 | L139: 12.38
A140: TcIL3000_0_60810 | B140: unnamed | C140: 2.681 | D140: 3.918 | E140: 1.237 | F140: 4.003 | G140: 1.322 | H140: 4.561 | I140: 1.88 | J140: 2.061 | K140: 3.128 | L140: 1.067
A141: TcIL3000_0_16860 | B141: unnamed | C141: 0.764 | D141: 2.228 | E141: 1.464 | F141: 2.407 | G141: 1.643 | H141: 2.635 | I141: 1.871 | J141: 0.756 | K141: 1.522 | L141: 0.766
A142: TcIL3000_0_57810 | B142: vsg- congolense-specific orf | C142: 0.954 | D142: 2.204 | E142: 1.25 | F142: 2.878 | G142: 1.924 | H142: 2.813 | I142: 1.859 | J142: 0.674 | K142: 0.37 | L142: -0.304
A143: TcIL3000_0_18510 | B143: VSG | C143: 0.923 | D143: 3.036 | E143: 2.113 | F143: 4.376 | G143: 3.453 | H143: 2.755 | I143: 1.832 | J143: 3.029 | K143: 3.401 | L143: 0.372
A144: TcIL3000_0_44930 | B144: cell surface-expressed gene family | C144: 2.353 | D144: 4.042 | E144: 1.689 | F144: 4.879 | G144: 2.526 | H144: 4.127 | I144: 1.774 | J144: 1.388 | K144: 1.348 | L144: -0.04
A145: TcIL3000_0_13810 | B145: unnamed | C145: 5.177 | D145: 6.886 | E145: 1.709 | F145: 6.306 | G145: 1.129 | H145: 6.945 | I145: 1.768 | J145: 1.537 | K145: 1.728 | L145: 0.191
A146: TcIL3000_0_48080 | B146: VSG | C146: 12.209 | D146: 12.142 | E146: -0.067 | F146: 13.53 | G146: 1.321 | H146: 13.974 | I146: 1.765 | J146: 4.059 | K146: 3.975 | L146: -0.084
A147: TcIL3000_0_52100 | B147: unnamed | C147: 1.416 | D147: 2.635 | E147: 1.219 | F147: 3.451 | G147: 2.035 | H147: 3.136 | I147: 1.72 | J147: 0.973 | K147: 0.734 | L147: -0.239
A148: TcIL3000_0_15620 | B148: unnamed | C148: 3.585 | D148: 4.662 | E148: 1.077 | F148: 5.085 | G148: 1.5 | H148: 5.284 | I148: 1.699 | J148: 0.55 | K148: 0.527 | L148: -0.023
A149: TcIL3000_0_06240 | B149: unnamed | C149: 3.359 | D149: 4.836 | E149: 1.477 | F149: 4.741 | G149: 1.382 | H149: 5.027 | I149: 1.668 | J149: 0.853 | K149: 0.781 | L149: -0.072
A150: TcIL3000_0_60240 | B150: unnamed | C150: 5.413 | D150: 8.811 | E150: 3.398 | F150: 8.147 | G150: 2.734 | H150: 7.066 | I150: 1.653 | J150: 5.599 | K150: 3.811 | L150: -1.788
A151: TcIL3000_0_22320 | B151: unnamed | C151: 0.722 | D151: 2.242 | E151: 1.52 | F151: 2.188 | G151: 1.466 | H151: 2.369 | I151: 1.647 | J151: 0.366 | K151: 0.294 | L151: -0.072
A152: TcIL3000_0_14170 | B152: Histone 2A | C152: 4.606 | D152: 5.496 | E152: 0.89 | F152: 5.133 | G152: 0.527 | H152: 6.241 | I152: 1.635 | J152: 0.711 | K152: 0.898 | L152: 0.187
A153: TcIL3000_0_48070 | B153: unnamed | C153: 4.696 | D153: 6.647 | E153: 1.951 | F153: 5.06 | G153: 0.364 | H153: 6.32 | I153: 1.624 | J153: 0.837 | K153: 0.903 | L153: 0.066
A154: TcIL3000_0_49970 | B154: VSG- congolense-specific orf | C154: 0.799 | D154: 3.27 | E154: 2.471 | F154: 2.686 | G154: 1.887 | H154: 2.391 | I154: 1.592 | J154: 0.351 | K154: 0.092 | L154: -0.259
A155: TcIL3000_0_05750 | B155: hypothetical | C155: 0.566 | D155: 1.542 | E155: 0.976 | F155: 2.505 | G155: 1.939 | H155: 2.142 | I155: 1.576 | J155: 4.718 | K155: 6.192 | L155: 1.474
A156: TcIL3000_0_43150 | B156: unnamed | C156: 0.911 | D156: 2.528 | E156: 1.617 | F156: 1.919 | G156: 1.008 | H156: 2.468 | I156: 1.557 | J156: 0.665 | K156: 0.685 | L156: 0.02
A157: TcIL3000_0_45060 | B157: vsg- congolense-specific orf | C157: 0.989 | D157: 2.586 | E157: 1.597 | F157: 2.127 | G157: 1.138 | H157: 2.537 | I157: 1.548 | J157: 0.045 | K157: 0.056 | L157: 0.011
A158: TcIL3000_0_13130 | B158: Transferrin+receptor-like+ESAG6-like | C158: 1.303 | D158: 2.888 | E158: 1.585 | F158: 3.211 | G158: 1.908 | H158: 2.824 | I158: 1.521 | J158: 0.094 | K158: 0.241 | L158: 0.147
A159: TcIL3000_10_1740 | B159: elongation factor 1-alpha (ef-1-alpha) | C159: 8.608 | D159: 10.573 | E159: 1.965 | F159: 10.377 | G159: 1.769 | H159: 10.123 | I159: 1.515 | J159: 14.203 | K159: 15.146 | L159: 0.943
A160: TcIL3000_0_15980 | B160: vsg- congolense-specific orf | C160: 3.32 | D160: 4.12 | E160: 0.8 | F160: 4.674 | G160: 1.354 | H160: 4.828 | I160: 1.508 | J160: 1.811 | K160: 1.64 | L160: -0.171
A161: TcIL3000_0_45490 | B161: unnamed | C161: 5.606 | D161: 7.775 | E161: 2.169 | F161: 7.343 | G161: 1.737 | H161: 7.101 | I161: 1.495 | J161: 5.231 | K161: 7.101 | L161: 1.87
A162: TcIL3000_0_28650 | B162: unnamed | C162: 2.69 | D162: 3.676 | E162: 0.986 | F162: 5.432 | G162: 2.742 | H162: 4.166 | I162: 1.476 | J162: 1.466 | K162: 1.488 | L162: 0.022
A163: TcIL3000_0_35720 | B163: cathepsin b-like protease | C163: 2.772 | D163: 5.035 | E163: 2.263 | F163: 4.148 | G163: 1.376 | H163: 4.246 | I163: 1.474 | J163: 1.696 | K163: 1.377 | L163: -0.319
A164: TcIL3000_0_39700 | B164: VSG | C164: 4.55 | D164: 5.288 | E164: 0.738 | F164: 7.718 | G164: 3.168 | H164: 6.024 | I164: 1.474 | J164: 1.374 | K164: 1.504 | L164: 0.13
A165: TcIL3000_0_44600 | B165: VSG | C165: 10.703 | D165: 12.328 | E165: 1.625 | F165: 13.095 | G165: 2.392 | H165: 12.174 | I165: 1.471 | J165: 5.577 | K165: 7.707 | L165: 2.13
A166: TcIL3000_0_26500 | B166: unnamed | C166: 1.202 | D166: 3.116 | E166: 1.914 | F166: 4.024 | G166: 2.822 | H166: 2.669 | I166: 1.467 | J166: 1.392 | K166: 0.977 | L166: -0.415
A167: TcIL3000_0_04080 | B167: VSG- congolense-specific orf | C167: 1.484 | D167: 4.524 | E167: 3.04 | F167: 2.898 | G167: 1.414 | H167: 2.94 | I167: 1.456 | J167: 0.041 | K167: 0 | L167: -0.041
A168: TcIL3000_0_50480 | B168: unnamed | C168: 2.414 | D168: 3.603 | E168: 1.189 | F168: 3.556 | G168: 1.142 | H168: 3.869 | I168: 1.455 | J168: 0.84 | K168: 1.273 | L168: 0.433
A169: TcIL3000_0_54680 | B169: VSG | C169: 0.743 | D169: 1.811 | E169: 1.068 | F169: 3.364 | G169: 2.621 | H169: 2.183 | I169: 1.44 | J169: 2.519 | K169: 4.179 | L169: 1.66
A170: TcIL3000_0_60610 | B170: unnamed | C170: 4.392 | D170: 5.6 | E170: 1.208 | F170: 7.204 | G170: 2.812 | H170: 5.808 | I170: 1.416 | J170: 0.709 | K170: 0.597 | L170: -0.112
A171: TcIL3000_0_30650 | B171: unnamed | C171: 1.836 | D171: 4.317 | E171: 2.481 | F171: 4.38 | G171: 2.544 | H171: 3.23 | I171: 1.394 | J171: 4.103 | K171: 3.678 | L171: -0.425
A172: TcIL3000_0_46290 | B172: vsg- congolense-specific orf | C172: 1.453 | D172: 2.996 | E172: 1.543 | F172: 2.729 | G172: 1.276 | H172: 2.839 | I172: 1.386 | J172: 0.499 | K172: 0.32 | L172: -0.179
A173: TcIL3000_0_34700 | B173: Galactosyltransferase | C173: 1.58 | D173: 3.47 | E173: 1.89 | F173: 3.032 | G173: 1.452 | H173: 2.951 | I173: 1.371 | J173: 0.55 | K173: 0.493 | L173: -0.057
A174: TcIL3000_0_36710 | B174: unnamed | C174: 0.884 | D174: 2.855 | E174: 1.971 | F174: 3.054 | G174: 2.17 | H174: 2.254 | I174: 1.37 | J174: 1.695 | K174: 1.923 | L174: 0.228
A175: TcIL3000_0_ncRNA058 | B175: ncRNA | C175: 3.304 | D175: 5.039 | E175: 1.735 | F175: 3.838 | G175: 0.534 | H175: 4.666 | I175: 1.362 | J175: 3.587 | K175: 3.799 | L175: 0.212
A176: TcIL3000_0_50700 | B176: VSG | C176: 0.2 | D176: 1.148 | E176: 0.948 | F176: 1.497 | G176: 1.297 | H176: 1.554 | I176: 1.354 | J176: 0.473 | K176: 0.517 | L176: 0.044
A177: TcIL3000_0_60600 | B177: unnamed | C177: 12.748 | D177: 14.657 | E177: 1.909 | F177: 15.562 | G177: 2.814 | H177: 14.088 | I177: 1.34 | J177: 1.694 | K177: 2.736 | L177: 1.042
A178: TcIL3000_0_25270 | B178: VSG | C178: 0.517 | D178: 1.972 | E178: 1.455 | F178: 2.836 | G178: 2.319 | H178: 1.849 | I178: 1.332 | J178: 2.808 | K178: 4.942 | L178: 2.134
A179: TcIL3000_0_06830 | B179: hypothetical | C179: 4.731 | D179: 5.266 | E179: 0.535 | F179: 6.317 | G179: 1.586 | H179: 6.051 | I179: 1.32 | J179: 3.376 | K179: 3.77 | L179: 0.394
A180: TcIL3000_5_5310 | B180: unnamed | C180: 2.279 | D180: 3.047 | E180: 0.768 | F180: 3.732 | G180: 1.453 | H180: 3.596 | I180: 1.317 | J180: 0.109 | K180: 0.089 | L180: -0.02
A181: TcIL3000_0_29770 | B181: unnamed | C181: 0.433 | D181: 1.402 | E181: 0.969 | F181: 2.147 | G181: 1.714 | H181: 1.741 | I181: 1.308 | J181: 0.058 | K181: 0.081 | L181: 0.023
A182: TcIL3000_0_55840 | B182: cysteine peptidase precursor | C182: 2.638 | D182: 5.068 | E182: 2.43 | F182: 4.79 | G182: 2.152 | H182: 3.934 | I182: 1.296 | J182: 1.389 | K182: 1.21 | L182: -0.179
A183: TcIL3000_0_58700 | B183: vsg- congolense-specific orf | C183: 1.55 | D183: 3.498 | E183: 1.948 | F183: 3.037 | G183: 1.487 | H183: 2.835 | I183: 1.285 | J183: 0.601 | K183: 0.358 | L183: -0.243
A184: TcIL3000_0_10900 | B184: VSG | C184: 1.978 | D184: 3.059 | E184: 1.081 | F184: 2.756 | G184: 0.778 | H184: 3.261 | I184: 1.283 | J184: 0.733 | K184: 0.864 | L184: 0.131
A185: TcIL3000_0_39760 | B185: VSG | C185: 1.178 | D185: 2.547 | E185: 1.369 | F185: 2.213 | G185: 1.035 | H185: 2.444 | I185: 1.266 | J185: 0.947 | K185: 0.821 | L185: -0.126
A186: TcIL3000_0_ncRNA028 | B186: ncRNA | C186: 1.298 | D186: 2.471 | E186: 1.173 | F186: 3.023 | G186: 1.725 | H186: 2.564 | I186: 1.266 | J186: 1.87 | K186: 1.755 | L186: -0.115
A187: TcIL3000_0_60740 | B187: Putative periplasmic protein kinase ArgK | C187: 4.491 | D187: 5.668 | E187: 1.177 | F187: 6.41 | G187: 1.919 | H187: 5.75 | I187: 1.259 | J187: 0.534 | K187: 0.615 | L187: 0.081
A188: TcIL3000_BAC4B1_003 | B188: VSG | C188: 0.648 | D188: 1.79 | E188: 1.142 | F188: 2.696 | G188: 2.048 | H188: 1.905 | I188: 1.257 | J188: 2.979 | K188: 3.982 | L188: 1.003
A189: TcIL3000_0_46420 | B189: preprotein translocase subunit SecA | C189: 2.344 | D189: 3.067 | E189: 0.723 | F189: 3.769 | G189: 1.425 | H189: 3.578 | I189: 1.234 | J189: 1.453 | K189: 1.32 | L189: -0.133
A190: TcIL3000_0_58280 | B190: VSG | C190: 1.667 | D190: 2.762 | E190: 1.095 | F190: 3.165 | G190: 1.498 | H190: 2.894 | I190: 1.227 | J190: 0.036 | K190: 0.071 | L190: 0.035
A191: TcIL3000_0_27420 | B191: vsg- congolense-specific orf | C191: 0.606 | D191: 3.133 | E191: 2.527 | F191: 1.946 | G191: 1.34 | H191: 1.827 | I191: 1.221 | J191: 0.97 | K191: 0.598 | L191: -0.372
A192: TcIL3000_0_43130 | B192: Transferrin+receptor-like+ESAG6-like | C192: 4.468 | D192: 5.911 | E192: 1.443 | F192: 5.946 | G192: 1.478 | H192: 5.688 | I192: 1.22 | J192: 1.024 | K192: 0.584 | L192: -0.44
A193: TcIL3000_0_ncRNA008 | B193: ncRNA | C193: 0.511 | D193: 1.947 | E193: 1.436 | F193: 1.712 | G193: 1.201 | H193: 1.723 | I193: 1.212 | J193: 1.412 | K193: 3.853 | L193: 2.441
A194: TcIL3000_0_20240 | B194: vsg- congolense-specific orf | C194: 1.267 | D194: 2.056 | E194: 0.789 | F194: 2.811 | G194: 1.544 | H194: 2.467 | I194: 1.2 | J194: 0.549 | K194: 0.194 | L194: -0.355
A195: TcIL3000_0_34000 | B195: hypothetical | C195: 0.907 | D195: 2.521 | E195: 1.614 | F195: 2.144 | G195: 1.237 | H195: 2.103 | I195: 1.196 | J195: 1.506 | K195: 1.718 | L195: 0.212
A196: TcIL3000_0_48110 | B196: VSG | C196: 6.138 | D196: 7.506 | E196: 1.368 | F196: 6.657 | G196: 0.519 | H196: 7.329 | I196: 1.191 | J196: 0.717 | K196: 0.456 | L196: -0.261
A197: TcIL3000_0_40310 | B197: VSG | C197: 0.529 | D197: 2.369 | E197: 1.84 | F197: 1.779 | G197: 1.25 | H197: 1.716 | I197: 1.187 | J197: 0.113 | K197: 0.028 | L197: -0.085
A198: TcIL3000_0_48360 | B198: VSG | C198: 0.265 | D198: 1.519 | E198: 1.254 | F198: 1.366 | G198: 1.101 | H198: 1.447 | I198: 1.182 | J198: 0.08 | K198: 0.031 | L198: -0.049
A199: TcIL3000_0_04200 | B199: VSG | C199: 2.122 | D199: 3.863 | E199: 1.741 | F199: 3.814 | G199: 1.692 | H199: 3.302 | I199: 1.18 | J199: 0.237 | K199: 0.181 | L199: -0.056
A200: TcIL3000_0_60730 | B200: C2H2 type zinc-finger | C200: 1.561 | D200: 2.409 | E200: 0.848 | F200: 2.963 | G200: 1.402 | H200: 2.732 | I200: 1.171 | J200: 0.043 | K200: 0.114 | L200: 0.071
A201: TcIL3000_0_53355 | B201: VSG | C201: 0.797 | D201: 2.672 | E201: =D201-C201 -> 1.875 | F201: 2.725 | G201: =F201-C201 -> 1.928 | H201: 1.944 | I201: =H201-C201 -> 1.147 | J201: 2.106 | K201: 1.642 | L201: =K201-J201 -> -0.464
... 79 more rows

Sheet Table S6
A1: LIST OF GENES
A3: ATP synthases
A5: TcIL3000_0_13350 ATP synthase subunit C
A6: TcIL3000_0_21670 ATP synthase subunit C
A7: TcIL3000_4_700 vacuolar ATP synthase catalytic subunit a
A8: TcIL3000_5_1320 Archaeal/vacuolar-type H+-ATPase subunit I/STV1
A9: TcIL3000_5_240 Vacuolar ATP synthase putative
A10: TcIL3000_6_4420 ATP epsilon chain
A11: TcIL3000_6_4480 V-type ATPase, C subunit, putative
A12: TcIL3000_7_6050 ATP synthase F1 alpha subunit
A13: TcIL3000_7_970 ATPase subunit 9
A14: TcIL3000_8_2100 vacuolar type h+ ATPase subunit
A15: TcIL3000_8_2290 (H)-ATPase G subunit, putative
A16: TcIL3000_0_29580 ATP synthase (F/14-kDa) subunit
A17: TcIL3000_10_11650 vacuolar ATP synthase subunit c
A18: TcIL3000_10_11830 ATP12, ATP synthase F1-assembly protein
A19: TcIL3000_10_3090 ATP synthase subunit D
A20: TcIL3000_10_50 mitochondrial ATP synthase f1 subunit gamma
A21: TcIL3000_10_590 ATP synthase
A22: TcIL3000_10_70 vacuolar ATP synthase 16 kDa proteolipid subunit
A23: TcIL3000_11_9840 Archaeal/vacuolar-type H+-ATPase subunit E
A24: TcIL3000_11_12320 vacuolar ATP synthase subunit b
A26: Topoisomerases
A28: TcIL3000_0_04850 DNA Topoisomerase II - mitochondrial ?, orthologue of Tb09_160_4090
A29: TcIL3000_0_13890 DNA topoisomerase IA
A30: TcIL3000_0_29220 C-terminal topoisomerase domain
A31: TcIL3000_4_830 DNA topoisomerase IB
A32: TcIL3000_10_1610 DNA topoisomerase IA
A33: TcIL3000_11_12150 DNA topoisomerase II-like protein - mitochondrial ?, orthologue of Tb11_01_3390
A34: TcIL3000_11_12160 DNA topoisomerase II - mitochondrial?, orthologue of Tb11_01_3390
A35: TcIL3000_11_9530 DNA topoisomerase I
A36: TcIL3000_11_9990 DNA topoisomerase I
A38: ABC transporters
A40: TcIL3000_0_01280 multidrug resistance associated protein partial
A41: TcIL3000_0_01290 multidrug resistance associated protein
A42: TcIL3000_0_08100
A43: TcIL3000_0_08390 ABC-type multidrug transport system
A44: TcIL3000_0_14710
A45: TcIL3000_0_18170
A46: TcIL3000_0_29870
A47: TcIL3000_0_30940
A48: TcIL3000_0_34420 amino acid abc transporter permease
A49: TcIL3000_0_36360
A50: TcIL3000_0_36380
A51: TcIL3000_0_43390
A52: TcIL3000_0_46010
A53: TcIL3000_2_1440
A54: TcIL3000_3_2420
A55: TcIL3000_4_3740 multidrug resistance associated protein
A56: TcIL3000_6_2290
A57: TcIL3000_7_4990
A58: TcIL3000_8_2160 multidrug resistance associated protein
A59: TcIL3000_8_2170 multidrug resistance associated protein
A60: TcIL3000_9_2160
A61: TcIL3000_9_2170
A62: TcIL3000_10_10100
A63: TcIL3000_10_13320
A64: TcIL3000_10_2630
A65: TcIL3000_10_6590
A66: TcIL3000_10_8460
A67: TcIL3000_10_9180
A68: TcIL3000_11_1020
A69: TcIL3000_11_16840
A70: TcIL3000_11_2910
A71: TcIL3000_11_500
A72: TcIL3000_11_6640
A73: TcIL3000_11_6660
A75: Other transporters
A77: TcIL3000_0_07180 Cation/H+ exchanger
A78: TcIL3000_0_11460 calcium uniporter mitochondrial
A79: TcIL3000_0_12050 amino acid transporter
A80: TcIL3000_0_13920 amino acid transporter
A81: TcIL3000_0_13930 amino acid transporter
A82: TcIL3000_0_13940 amino acid transporter
A83: TcIL3000_0_13950 amino acid transporter
A84: TcIL3000_0_13960 amino acid transporter
A85: TcIL3000_0_13970 amino acid transporter
A86: TcIL3000_0_13980 amino acid transporter
A87: TcIL3000_0_13990 amino acid transporter
A88: TcIL3000_0_14000 amino acid transporter
A89: TcIL3000_0_28490 mitochondrial carrier
A90: TcIL3000_0_32640 acyl carrier protein
A91: TcIL3000_0_33330 mitochondrial carrier
A92: TcIL3000_0_34190 mitochondrial carrier
A93: TcIL3000_0_37060 mitochondrial carrier
A94: TcIL3000_0_46530 ADP/ATP transporter on adenylate translocase
A95: TcIL3000_0_46540 Mitochondrial carrier
A96: TcIL3000_0_48430 amino acid transporter
A97: TcIL3000_0_50290 mitochondrial carrier
A98: TcIL3000_0_57240 mitochondrial carrier
A99: TcIL3000_2_330 putative mitochondrial carrier
A100: TcIL3000_3_1890 putative mitochondrial carrier
A101: TcIL3000_4_1250 ADP/ATP transporter on adenylate translocase
A102: TcIL3000_5_1470 putative mitochondrial carrier
A103: TcIL3000_8_3400 putative mitochondrial carrier
A104: TcIL3000_8_4200 putative mitochondrial carrier
A105: TcIL3000_8_5610 ADP/ATP transporter on adenylate translocase
A106: TcIL3000_9_3880 putative mitochondrial phosphate transporter
A107: TcIL3000_9_4510 Mitochondrial carrier
A108: TcIL3000_9_5000 putative mitochondrial carrier
A109: TcIL3000_10_10930 mitochondrial carrier
A110: TcIL3000_10_12160 mitochondrial carrier
A111: TcIL3000_10_12690 ADP/ATP transporter on adenylate translocase
A112: TcIL3000_10_12700 putative ADP/ATP translocase 1
A113: TcIL3000_10_13490 ADP/ATP transporter on adenylate translocase
A114: TcIL3000_10_4100 putative mitochondrial carrier
A115: TcIL3000_11_5530 mitochondrial carrier
A116: TcIL3000_11_5540 mitochondrial carrier
A117: TcIL3000_11_15680 Nucleotidyltransferase
A119: Mitochondrial proteins
A121: TcIL3000_0_00440 Nitro FMN reductase
A122: TcIL3000_0_03810 Oxidoreductase like protein
A123: TcIL3000_0_14770 electron transfer flavoprotein
A124: TcIL3000_0_21540 Cytochrome P450
A125: TcIL3000_0_27380 NAD(P)H-flavin reductase
A126: TcIL3000_0_42050 Rieske domain
A127: TcIL3000_0_42100 BAX inhibitor (BI)-1/YccA-like protein family
A128: TcIL3000_1_1680 putative cytochrome C oxidase subunit IV
A129: TcIL3000_1_940 putative cytochrome c oxidase assembly factor
A130: TcIL3000_3_1270 Rieske domain
A131: TcIL3000_5_70 NADH dehydrogenase [ubiquinone] flavoprotein 1
A132: TcIL3000_6_2050 Flavinator of succinate dehydrogenase
A133: TcIL3000_6_980 putative alkyl-dihydroxyacetone phosphate synthase
A134: TcIL3000_7_2050 putative NADH-cytochrome b5 reductase
A135: TcIL3000_7_4820 putative Monooxygenase
A136: TcIL3000_7_5250 putative NADH-ubiquinone oxidoreductase, mitochondrial
A137: TcIL3000_8_4910 putative cytochrome c
A138: TcIL3000_8_6450 putative succinate dehydrogenase flavoprotein
A139: TcIL3000_9_2010 putative succinate dehydrogenase
A140: TcIL3000_9_4150 putative 3-demethylubiquinone-9 3-methyltransferase
A141: TcIL3000_9_6080 ubiquinol-cytochrome c reductase, iron-sulfur subunit
A142: TcIL3000_9_6470 NADH dehydrogenase (ubiquinone) 1 alpha subcomplex
A143: TcIL3000_10_11160 NADH:ubiquinone oxidoreductase; Provisional
A144: TcIL3000_10_140 cytochrome c oxidase subunit Vib
A145: TcIL3000_10_2580 cytochrome c oxidase assembly protein
A146: TcIL3000_10_6090 putative alternative oxidase
A147: TcIL3000_10_7180 putative cytochrome c oxidase subunit IX
A148: TcIL3000_10_7660 putative kinetoplast DNA-associated protein
A149: TcIL3000_10_7740 putative kinetoplast DNA-associated protein
A150: TcIL3000_10_8200 putative NADH dehydrogenase
A151: TcIL3000_10_8590 Alternative oxidase
A152: TcIL3000_10_9440 Flavin_utilizing monoxygenases
A153: TcIL3000_11_10770 Rieske domain
A154: TcIL3000_11_1250 NADH dehydrogenase subunit B
A155: TcIL3000_11_1260 putative NADH-ubiquinone oxidoreductase 20 kDa subunit,mitochondrial precursor
A156: TcIL3000_11_1490 Mitochondrial RNA binding protein MRP
A157: TcIL3000_11_4790 SURF1 superfamily
A158: TcIL3000_11_6200 BAX inhibitor (BI)-1/YccA-like protein family
A159: TcIL3000_11_6230 BAX inhibitor (BI)-1/YccA-like protein family
A160: TcIL3000_11_6740 Cytochrome P450
A162: Polymerases
A164: TcIL3000_0_60760 Family A polymerase
A165: TcIL3000_5_2940 mitochondrial DNA polymerase beta-pak
A166: TcIL3000_7_3180 mitochondrial DNA polymerase I protein c
A167: TcIL3000_8_690 putative DNA polymerase sigma
A168: TcIL3000_11_3070 putative mitochondrial DNA polymerase I protein D
A169: TcIL3000_11_4800 DNA polymerase I-like protein B
A170: TcIL3000_11_5840 putative DNA polymerase theta
A171: TcIL3000_11_6160 DNA-dependent RNA polymerase
A172: TcIL3000_11_15160 DNA polymerase alpha/epsilon, subunit B
A173: TcIL3000_11_3420 DNA-directed RNA polymerase III subunit Rpc5
A175: Others
A177: TcIL3000.11.10010 unspecified product
A178: TcIL3000.11.10870 hypothetical protein
A179: TcIL3000.11.15970 unspecified product
A180: TcIL3000.11.2040 hypothetical protein
A181: TcIL3000.11.440 hypothetical protein
A182: TcIL3000.11.4410 hypothetical protein
A183: TcIL3000.11.60 electron transfer flavoprotein
A184: TcIL3000.11.7990 hypothetical protein
A185: TcIL3000_0_01810 VSG
A186: TcIL3000_0_13110 VSG
A187: TcIL3000_0_24100 V-ATPase assembly factor (RAV1)
A188: TcIL3000_0_29740 VSG
A189: TcIL3000_0_30770 transmembrane product
A190: TcIL3000_0_34920 Transmembrane product
A191: TcIL3000_0_34950 unspecified product
A192: TcIL3000_0_50560 VSG
A193: TcIL3000_1_1980 serine peptidase
A194: TcIL3000_10_10070 hypothetical protein
A195: TcIL3000_10_13700 transmembrane product
A196: TcIL3000_3_1580 hypothetical protein
A197: TcIL3000_3_1640 serinethreonine-protein kinase
A198: TcIL3000_4_1890 Transmembrane product
A199: TcIL3000_4_2150 Transmembrane product
A200: TcIL3000_5_2100 unspecified product
A201: TcIL3000_6_3410 small glutamine-rich tetratricopeptide (SGT)
A202: TcIL3000_7_120 hypothetical protein
A203: TcIL3000_7_2020 hypothetical protein
A204: TcIL3000_8_110 Lipoyltransferase
A205: TcIL3000_8_1200 DMT
A206: TcIL3000_8_410 Transmembrane product
A207: TcIL3000_9_2330 hypothetical protein

Sheet Table S7
A1: Shared allele frequency between TC1 and TC2
A2: Shared allele frequency between TC1 and Zambia
A3: Shared allele frequency between TC2 and Zambia
H5: Resistant | AL5: Intermediate | AR5: Sensitive | BF5: Averaged allele frequency shifts between resistant and sensitive strains
H6: Zambia | U6: TC1 | AJ6: NA | AK6: TC2 | AL6: Zambia | AQ6: TC1 | AR6: Zambia | AY6: TC1 | BD6: TC2
A7: Allele frequency shift ≥ 0.25 between resistant and sensitive parasites in subpopulation(s) | B7: Gene ID | C7: position on chromosome | D7: Reference Allele | E7: Aleternative Allele | F7: Impact | G7: Gene product | H7: TRT573R | I7: TRT37 | J7: MPHITA4028 | K7: KAPEYA | L7: ALICK339C6 | M7: YOBO2007C2 | N7: MSOROM19 | O7: LOMBO3020 | P7: KASANDA | Q7: KAPEVE27PC2 | R7: CHIPOPELA | S7: TRT15 | T7: TRT1 | U7: MALI-1312-95 | V7: YATU-F187 | W7: WETEJA-F015 | X7: PAUWE77 | Y7: PAUWE73 | Z7: POUSS | AA7: BEKA | AB7: ALME | AC7: KONT2-155 | AD7: KONT2-133 | AE7: KONT1-129 | AF7: SA268 | AG7: SA267 | AH7: SA95-3308 | AI7: KARAN | AJ7: BANANCL2 | AK7: DJUMA | AL7: TRT59 | AM7: TRT12 | AN7: TRT46 | AO7: TRT44 | AP7: TRT38 | AQ7: MALI25239 | AR7: TRT5 | AS7: YOBO2038C2 | AT7: TRT61 | AU7: TRT54 | AV7: TRT42 | AW7: TRT17C1 | AX7: J4J4K1 | AY7: GUTR37 | AZ7: GUTR28 | BA7: EATRO1157C2 | BB7: TOGO2264 | BC7: TOGO222 | BD7: IL1180 | BE7: MSOROM7 | BF7: TC1 | BG7: TC2 | BH7: Zambia
A8: Zambia | B8: TcIL3000_3_2420 | C8: 924389 | D8: T | E8: C | F8: synonymous | G8: ABC transporter | H8: 0.5 | I8: 0.459 | J8: 0.462 | K8: 0.4 | L8: 0.391 | M8: 0.438 | N8: 0.417 | O8: 0.348 | P8: 0.538 | Q8: 0.6 | R8: 0.6 | S8: 0.471 | T8: 0.708 | U8: 0 | V8: 0 | W8: 0 | X8: 0 | Y8: 0 | Z8: 0 | AA8: 0 | AB8: 0 | AC8: 0 | AD8: 0 | AE8: 0 | AF8: 0 | AG8: 0 | AH8: 0 | AI8: 0 | AJ8: 0.266 | AK8: 0 | AL8: 0.667 | AM8: 0.609 | AN8: 0.5 | AO8: 0 | AP8: 0 | AQ8: 0 | AR8: 0 | AS8: 0.421 | AT8: 0 | AU8: 0 | AV8: 0 | AW8: 0 | AX8: 0 | AY8: 0 | AZ8: 0 | BA8: 0 | BB8: 0.014 | BC8: 0 | BD8: 0 | BE8: 0 | BF8: =ABS(AVERAGE(U8:AI8,AQ8)-AVERAGE(AY8:BC8)) -> 0.0028 | BG8: =ABS(AVERAGE(BD8:BE8)-AK8) -> 0 | BH8: =ABS(AVERAGE(H8:T8,AL8:AP8)-AVERAGE(AR8:AX8)) -> 0.3903015873
A9: Zambia | B9: TcIL3000_7_4990 | C9: 1701310 | D9: A | E9: G | F9: synonymous | G9: ABC transporter | H9: 0.529 | I9: 0.632 | J9: 0.778 | K9: 0.452 | L9: 0.647 | M9: 0.5 | N9: 0.639 | O9: 0 | P9: 0.294 | Q9: 0.556 | R9: 0.609 | S9: 0 | T9: 0 | U9: 0.024 | V9: 0.013 | W9: 0 | X9: 0 | Y9: 0 | Z9: 0 | AA9: 0 | AB9: 0 | AC9: 0 | AD9: 0.037 | AE9: 0 | AF9: 0 | AG9: 0 | AH9: 0 | AI9: 0 | AJ9: 0.981 | AK9: 0 | AL9: 0.444 | AM9: 0.348 | AN9: 0.478 | AO9: 0 | AP9: 0 | AQ9: 0.048 | AR9: 0 | AS9: 0 | AT9: 0 | AU9: 0 | AV9: 0 | AW9: 0 | AX9: 0 | AY9: 0 | AZ9: 0 | BA9: 0 | BB9: 0 | BC9: 0 | BD9: 0 | BE9: 0.025 | BF9: 0.007625 | BG9: 0.0125 | BH9: 0.3836666667
A10: TC2, Zambia | B10: TcIL3000_3_2420 | C10: 922427 | D10: A | E10: G | F10: synonymous | G10: ABC transporter | H10: 0.412 | I10: 0.233 | J10: 0.667 | K10: 0 | L10: 0 | M10: 0.611 | N10: 0 | O10: 0.382 | P10: 0.632 | Q10: 0 | R10: 0 | S10: 0.394 | T10: 0.5 | U10: 1 | V10: 0.991 | W10: 1 | X10: 1 | Y10: 1 | Z10: 1 | AA10: 1 | AB10: 0.977 | AC10: 1 | AD10: 1 | AE10: 1 | AF10: 1 | AG10: 1 | AH10: 1 | AI10: 1 | AJ10: 0.618 | AK10: 0.75 | AL10: 0.3 | AM10: 0.636 | AN10: 0.538 | AO10: 0.273 | AP10: 1 | AQ10: 1 | AR10: 0.333 | AS10: 0.474 | AT10: 0.417 | AU10: 1 | AV10: 1 | AW10: 1 | AX10: 1 | AY10: 1 | AZ10: 1 | BA10: 1 | BB10: 1 | BC10: 1 | BD10: 0.472 | BE10: 0 | BF10: 0.002 | BG10: 0.514 | BH10: 0.3808412698
A11: Zambia | B11: TcIL3000_7_4990 | C11: 1701277 | D11: G | E11: A | F11: synonymous | G11: ABC transporter | H11: 0.581 | I11: 0.6 | J11: 1 | K11: 0.433 | L11: 0.692 | M11: 0.542 | N11: 0.618 | O11: 0 | P11: 0.333 | Q11: 0.667 | R11: 0.667 | S11: 0 | T11: 0 | U11: 0.022 | V11: 0.012 | W11: 0 | X11: 0 | Y11: 0 | Z11: 0 | AA11: 0 | AB11: 0 | AC11: 0 | AD11: 0 | AE11: 0 | AF11: 0 | AG11: 0 | AH11: 0 | AI11: 0.026 | AJ11: 0.991 | AK11: 0 | AL11: 0.412 | AM11: 0.346 | AN11: 0.48 | AO11: 0 | AP11: 0 | AQ11: 0 | AR11: 0.286 | AS11: 0 | AT11: 0 | AU11: 0 | AV11: 0 | AW11: 0 | AX11: 0 | AY11: 0 | AZ11: 0 | BA11: 0 | BB11: 0 | BC11: 0.024 | BD11: 0 | BE11: 0 | BF11: 0.00105 | BG11: 0 | BH11: 0.3686428571
A12: Zambia | B12: TcIL3000_3_2420 | C12: 923603 | D12: T | E12: C | F12: synonymous | G12: ABC transporter | H12: 0.474 | I12: 0.667 | J12: 0.438 | K12: 0.556 | L12: 0.333 | M12: 0.548 | N12: 0.371 | O12: 0.37 | P12: 0.609 | Q12: 0.333 | R12: 0.208 | S12: 0.657 | T12: 0.441 | U12: 0 | V12: 0.015 | W12: 0 | X12: 0.05 | Y12: 0 | Z12: 0.045 | AA12: 0.042 | AB12: 0 | AC12: 0 | AD12: 0 | AE12: 0 | AF12: 0 | AG12: 0 | AH12: 0 | AI12: 0.028 | AJ12: 0.025 | AK12: 0 | AL12: 0.765 | AM12: 0.444 | AN12: 0.462 | AO12: 0 | AP12: 0 | AQ12: 0.095 | AR12: 0.143 | AS12: 0.321 | AT12: 0 | AU12: 0 | AV12: 0 | AW12: 0 | AX12: 0 | AY12: 0 | AZ12: 0.045 | BA12: 0 | BB12: 0.02 | BC12: 0.022 | BD12: 0.014 | BE12: 0.009 | BF12: 0.0002125 | BG12: 0.0115 | BH12: 0.3601587302
A13: Zambia | B13: TcIL3000_3_2420 | C13: 923525 | D13: T | E13: C | F13: synonymous | G13: ABC transporter | H13: 0.35 | I13: 0.676 | J13: 0.588 | K13: 0.545 | L13: 0.333 | M13: 0.486 | N13: 0.391 | O13: 0.522 | P13: 0.5 | Q13: 0.5 | R13: 0.286 | S13: 0.719 | T13: 0.419 | U13: 0 | V13: 0.034 | W13: 0.037 | X13: 0.053 | Y13: 0 | Z13: 0 | AA13: 0.032 | AB13: 0 | AC13: 0 | AD13: 0 | AE13: 0 | AF13: 0 | AG13: 0 | AH13: 0 | AI13: 0 | AJ13: 0.365 | AK13: 0 | AL13: 0.688 | AM13: 0.522 | AN13: 0.515 | AO13: 0 | AP13: 0 | AQ13: 0 | AR13: 0.5 | AS13: 0.118 | AT13: 0 | AU13: 0 | AV13: 0 | AW13: 0 | AX13: 0 | AY13: 0 | AZ13: 0 | BA13: 0 | BB13: 0 | BC13: 0 | BD13: 0 | BE13: 0 | BF13: 0.00975 | BG13: 0 | BH13: 0.3583809524
A14: Zambia | B14: TcIL3000_3_2420 | C14: 922223 | D14: T | E14: A | F14: synonymous | G14: ABC transporter | H14: 0.5 | I14: 0.703 | J14: 0.5 | K14: 0.625 | L14: 0.524 | M14: 0.424 | N14: 0.519 | O14: 0.538 | P14: 0.577 | Q14: 0.444 | R14: 0.591 | S14: 0.556 | T14: 0.4 | U14: 0 | V14: 0 | W14: 0 | X14: 0 | Y14: 0.036 | Z14: 0 | AA14: 0 | AB14: 0 | AC14: 0 | AD14: 0 | AE14: 0 | AF14: 0 | AG14: 0 | AH14: 0 | AI14: 0 | AJ14: 0.423 | AK14: 0 | AL14: 0.5 | AM14: 0.379 | AN14: 0.524 | AO14: 0 | AP14: 0 | AQ14: 0 | AR14: 0.444 | AS14: 0.308 | AT14: 0 | AU14: 0 | AV14: 0 | AW14: 0 | AX14: 0 | AY14: 0 | AZ14: 0 | BA14: 0 | BB14: 0 | BC14: 0 | BD14: 0.011 | BE14: 0 | BF14: 0.00225 | BG14: 0.0055 | BH14: 0.3539047619
A15: Zambia | B15: TcIL3000_3_2420 | C15: 923534 | D15: T | E15: C | F15: synonymous | G15: ABC transporter | H15: 0.385 | I15: 0.667 | J15: 0.588 | K15: 0.5 | L15: 0.385 | M15: 0.474 | N15: 0.386 | O15: 0.5 | P15: 0.462 | Q15: 0.538 | R15: 0.261 | S15: 0.697 | T15: 0.455 | U15: 0 | V15: 0 | W15: 0 | X15: 0 | Y15: 0.059 | Z15: 0 | AA15: 0.036 | AB15: 0 | AC15: 0 | AD15: 0 | AE15: 0 | AF15: 0.02 | AG15: 0 | AH15: 0 | AI15: 0 | AJ15: 0.35 | AK15: 0 | AL15: 0.684 | AM15: 0.522 | AN15: 0.548 | AO15: 0 | AP15: 0 | AQ15: 0 | AR15: 0.556 | AS15: 0.118 | AT15: 0 | AU15: 0 | AV15: 0 | AW15: 0 | AX15: 0 | AY15: 0 | AZ15: 0 | BA15: 0 | BB15: 0 | BC15: 0 | BD15: 0 | BE15: 0 | BF15: 0.0071875 | BG15: 0 | BH15: 0.351047619
A16: Zambia | B16: TcIL3000_3_2420 | C16: 922118 | D16: C | E16: A | F16: synonymous | G16: ABC transporter | H16: 0.514 | I16: 0.537 | J16: 0.533 | K16: 0.542 | L16: 0.571 | M16: 0.448 | N16: 0.493 | O16: 0.571 | P16: 0.409 | Q16: 0.5 | R16: 0.5 | S16: 0.444 | T16: 0.452 | U16: 0 | V16: 0 | W16: 0.04 | X16: 0.056 | Y16: 0.038 | Z16: 0 | AA16: 0 | AB16: 0 | AC16: 0 | AD16: 0 | AE16: 0 | AF16: 0.021 | AG16: 0.03 | AH16: 0 | AI16: 0 | AJ16: 0.39 | AK16: 0 | AL16: 0.55 | AM16: 0.464 | AN16: 0.656 | AO16: 0 | AP16: 0 | AQ16: 0 | AR16: 0.538 | AS16: 0.207 | AT16: 0 | AU16: 0 | AV16: 0 | AW16: 0 | AX16: 0 | AY16: 0 | AZ16: 0 | BA16: 0 | BB16: 0.036 | BC16: 0 | BD16: 0 | BE16: 0.01 | BF16: 0.0043625 | BG16: 0.005 | BH16: 0.3482380952
A17: Zambia | B17: TcIL3000_3_2420 | C17: 923688 | D17: C | E17: T | F17: missense | G17: ABC transporter | H17: 0.5 | I17: 0.632 | J17: 0.471 | K17: 0.556 | L17: 0.364 | M17: 0.514 | N17: 0.411 | O17: 0.364 | P17: 0.6 | Q17: 0.25 | R17: 0.3 | S17: 0.667 | T17: 0.423 | U17: 0 | V17: 0.013 | W17: 0.04 | X17: 0 | Y17: 0 | Z17: 0 | AA17: 0.042 | AB17: 0 | AC17: 0 | AD17: 0 | AE17: 0.056 | AF17: 0 | AG17: 0 | AH17: 0 | AI17: 0 | AJ17: 0 | AK17: 0 | AL17: 0.833 | AM17: 0.5 | AN17: 0.579 | AO17: 0 | AP17: 0.028 | AQ17: 0 | AR17: 0.25 | AS17: 0.455 | AT17: 0 | AU17: 0 | AV17: 0 | AW17: 0 | AX17: 0 | AY17: 0 | AZ17: 0 | BA17: 0 | BB17: 0 | BC17: 0 | BD17: 0 | BE17: 0 | BF17: 0.0094375 | BG17: 0 | BH17: 0.3432857143
A18: TC2, Zambia | B18: TcIL3000_7_4990 | C18: 1700788 | D18: G | E18: A | F18: synonymous | G18: ABC transporter | H18: 0.5 | I18: 1 | J18: 0.333 | K18: 0.379 | L18: 0.571 | M18: 1 | N18: 1 | O18: 0.381 | P18: 1 | Q18: 1 | R18: 1 | S18: 0 | T18: 0 | U18: 0 | V18: 0.011 | W18: 0 | X18: 0 | Y18: 0 | Z18: 0 | AA18: 0 | AB18: 0.083 | AC18: 0 | AD18: 0 | AE18: 0 | AF18: 0.016 | AG18: 0.029 | AH18: 0 | AI18: 0.018 | AJ18: 0.987 | AK18: 0.2 | AL18: 0.684 | AM18: 1 | AN18: 1 | AO18: 0.562 | AP18: 1 | AQ18: 0.029 | AR18: 0.667 | AS18: 0.417 | AT18: 0.516 | AU18: 0 | AV18: 0.538 | AW18: 0 | AX18: 0.316 | AY18: 0 | AZ18: 0 | BA18: 0 | BB18: 0.016 | BC18: 0 | BD18: 0.603 | BE18: 1 | BF18: 0.008425 | BG18: 0.6015 | BH18: 0.3388730159
A19: Zambia | B19: TcIL3000_7_4990 | C19: 1701254 | D19: G | E19: A | F19: missense | G19: ABC transporter | H19: 0.5 | I19: 0.65 | J19: 1 | K19: 0.353 | L19: 0.615 | M19: 0.538 | N19: 0.652 | O19: 0 | P19: 0.214 | Q19: 0.667 | R19: 0.577 | S19: 0 | T19: 0 | U19: 0 | V19: 0.013 | W19: 0 | X19: 0 | Y19: 0 | Z19: 0.071 | AA19: 0 | AB19: 0 | AC19: 0 | AD19: 0 | AE19: 0 | AF19: 0 | AG19: 0 | AH19: 0 | AI19: 0 | AJ19: 0.983 | AK19: 0 | AL19: 0.5 | AM19: 0.393 | AN19: 0.519 | AO19: 0 | AP19: 0 | AQ19: 0 | AR19: 0.429 | AS19: 0 | AT19: 0 | AU19: 0 | AV19: 0 | AW19: 0 | AX19: 0 | AY19: 0 | AZ19: 0 | BA19: 0 | BB19: 0 | BC19: 0.029 | BD19: 0 | BE19: 0 | BF19: 0.00055 | BG19: 0 | BH19: 0.3374920635
A20: Zambia | B20: TcIL3000_3_2420 | C20: 924542 | D20: T | E20: C | F20: synonymous | G20: ABC transporter | H20: 0.457 | I20: 0.182 | J20: 0.476 | K20: 0.538 | L20: 0.517 | M20: 0.379 | N20: 0.349 | O20: 0.304 | P20: 0.5 | Q20: 0.625 | R20: 0.692 | S20: 0.667 | T20: 0.52 | U20: 0 | V20: 0.01 | W20: 0 | X20: 0.056 | Y20: 0 | Z20: 0 | AA20: 0 | AB20: 0.024 | AC20: 0 | AD20: 0 | AE20: 0 | AF20: 0 | AG20: 0 | AH20: 0 | AI20: 0 | AJ20: 0.352 | AK20: 0 | AL20: 0.765 | AM20: 0.321 | AN20: 0.65 | AO20: 0 | AP20: 0 | AQ20: 0 | AR20: 0.4 | AS20: 0.381 | AT20: 0 | AU20: 0 | AV20: 0 | AW20: 0 | AX20: 0 | AY20: 0 | AZ20: 0 | BA20: 0 | BB20: 0.029 | BC20: 0 | BD20: 0 | BE20: 0 | BF20: 0.000175 | BG20: 0 | BH20: 0.3296507937
A21: Zambia | B21: TcIL3000_3_2420 | C21: 924871 | D21: T | E21: C | F21: missense | G21: ABC transporter | H21: 0.433 | I21: 0.391 | J21: 0.458 | K21: 0.737 | L21: 0.211 | M21: 0.587 | N21: 0.475 | O21: 0.444 | P21: 0.5 | Q21: 0.875 | R21: 0.471 | S21: 0.433 | T21: 0.513 | U21: 0 | V21: 0 | W21: 0 | X21: 0 | Y21: 0.05 | Z21: 0 | AA21: 0 | AB21: 0 | AC21: 0 | AD21: 0 | AE21: 0 | AF21: 0 | AG21: 0.027 | AH21: 0 | AI21: 0.013 | AJ21: 0.29 | AK21: 0 | AL21: 0.55 | AM21: 0.64 | AN21: 0.474 | AO21: 0 | AP21: 0 | AQ21: 0 | AR21: 0.4 | AS21: 0.474 | AT21: 0.018 | AU21: 0 | AV21: 0 | AW21: 0 | AX21: 0 | AY21: 0 | AZ21: 0 | BA21: 0 | BB21: 0 | BC21: 0 | BD21: 0 | BE21: 0 | BF21: 0.005625 | BG21: 0 | BH21: 0.3276825397
A22: Zambia | B22: TcIL3000_3_2420 | C22: 921199 | D22: G | E22: A | F22: missense | G22: ABC transporter | H22: 0.469 | I22: 0.632 | J22: 0.647 | K22: 0.516 | L22: 0.385 | M22: 0.348 | N22: 0.493 | O22: 0.667 | P22: 0.556 | Q22: 0.5 | R22: 0.5 | S22: 0.422 | T22: 0.387 | U22: 0 | V22: 0 | W22: 0 | X22: 0 | Y22: 0 | Z22: 0 | AA22: 0 | AB22: 0 | AC22: 0 | AD22: 0 | AE22: 0 | AF22: 0 | AG22: 0 | AH22: 0 | AI22: 0 | AJ22: 0.338 | AK22: 0 | AL22: 0.6 | AM22: 0.529 | AN22: 0.441 | AO22: 0 | AP22: 0 | AQ22: 0 | AR22: 0.333 | AS22: 0.5 | AT22: 0.023 | AU22: 0 | AV22: 0 | AW22: 0 | AX22: 0 | AY22: 0 | AZ22: 0 | BA22: 0 | BB22: 0 | BC22: 0 | BD22: 0 | BE22: 0 | BF22: 0 | BG22: 0 | BH22: 0.3272698413
A23: Zambia | B23: TcIL3000_3_2420 | C23: 922397 | D23: C | E23: T | F23: synonymous | G23: ABC transporter | H23: 0.514 | I23: 0.737 | J23: 0.429 | K23: 0.61 | L23: 0.462 | M23: 0.389 | N23: 0.512 | O23: 0.688 | P23: 0.45 | Q23: 0.357 | R23: 0.581 | S23: 0.606 | T23: 0.5 | U23: 0 | V23: 0.01 | W23: 0 | X23: 0 | Y23: 0 | Z23: 0 | AA23: 0 | AB23: 0 | AC23: 0 | AD23: 0 | AE23: 0 | AF23: 0.02 | AG23: 0 | AH23: 0 | AI23: 0 | AJ23: 0.416 | AK23: 0 | AL23: 0.7 | AM23: 0.286 | AN23: 0.436 | AO23: 0 | AP23: 0 | AQ23: 0 | AR23: 0.571 | AS23: 0.389 | AT23: 0 | AU23: 0 | AV23: 0 | AW23: 0 | AX23: 0 | AY23: 0 | AZ23: 0 | BA23: 0 | BB23: 0.013 | BC23: 0 | BD23: 0 | BE23: 0.018 | BF23: 0.000725 | BG23: 0.009 | BH23: 0.3215793651
A24: Zambia | B24: TcIL3000_3_2420 | C24: 924750 | D24: G | E24: T | F24: missense | G24: ABC transporter | H24: 0.419 | I24: 0.318 | J24: 0.389 | K24: 0.625 | L24: 0.421 | M24: 0.541 | N24: 0.432 | O24: 0.609 | P24: 0.524 | Q24: 0.833 | R24: 0.5 | S24: 0.355 | T24: 0.583 | U24: 0 | V24: 0.032 | W24: 0 | X24: 0 | Y24: 0 | Z24: 0.062 | AA24: 0 | AB24: 0 | AC24: 0 | AD24: 0.028 | AE24: 0.038 | AF24: 0 | AG24: 0.07 | AH24: 0.042 | AI24: 0 | AJ24: 0.322 | AK24: 0 | AL24: 0.4 | AM24: 0.63 | AN24: 0.425 | AO24: 0 | AP24: 0 | AQ24: 0 | AR24: 0.333 | AS24: 0.545 | AT24: 0 | AU24: 0 | AV24: 0 | AW24: 0 | AX24: 0 | AY24: 0 | AZ24: 0 | BA24: 0 | BB24: 0.017 | BC24: 0.019 | BD24: 0.013 | BE24: 0.024 | BF24: 0.0098 | BG24: 0.0185 | BH24: 0.3192380952
A25: Zambia | B25: TcIL3000_3_2420 | C25: 924626 | D25: T | E25: C | F25: synonymous | G25: ABC transporter | H25: 0.447 | I25: 0.16 | J25: 0.474 | K25: 0.467 | L25: 0.4 | M25: 0.469 | N25: 0.388 | O25: 0.385 | P25: 0.542 | Q25: 0.625 | R25: 0.636 | S25: 0.595 | T25: 0.621 | U25: 0 | V25: 0 | W25: 0.032 | X25: 0.048 | Y25: 0 | Z25: 0 | AA25: 0.053 | AB25: 0 | AC25: 0 | AD25: 0 | AE25: 0 | AF25: 0 | AG25: 0.027 | AH25: 0 | AI25: 0 | AJ25: 0.342 | AK25: 0 | AL25: 0.632 | AM25: 0.286 | AN25: 0.581 | AO25: 0 | AP25: 0 | AQ25: 0 | AR25: 0.4 | AS25: 0.368 | AT25: 0 | AU25: 0 | AV25: 0 | AW25: 0 | AX25: 0 | AY25: 0 | AZ25: 0 | BA25: 0 | BB25: 0 | BC25: 0 | BD25: 0 | BE25: 0.01 | BF25: 0.01 | BG25: 0.005 | BH25: 0.3185079365
A26: Zambia | B26: TcIL3000_3_2420 | C26: 925928 | D26: G | E26: A | F26: synonymous | G26: ABC transporter | H26: 0.571 | I26: 0.417 | J26: 0.75 | K26: 0.436 | L26: 0.562 | M26: 0.37 | N26: 0.417 | O26: 0.406 | P26: 0.474 | Q26: 0.533 | R26: 0.5 | S26: 0.488 | T26: 0.486 | U26: 0 | V26: 0 | W26: 0 | X26: 0 | Y26: 0 | Z26: 0 | AA26: 0 | AB26: 0 | AC26: 0 | AD26: 0 | AE26: 0.05 | AF26: 0.033 | AG26: 0 | AH26: 0 | AI26: 0 | AJ26: 0.339 | AK26: 0 | AL26: 0.412 | AM26: 0.792 | AN26: 0.595 | AO26: 0 | AP26: 0 | AQ26: 0 | AR26: 0.5 | AS26: 0.467 | AT26: 0 | AU26: 0 | AV26: 0 | AW26: 0 | AX26: 0 | AY26: 0 | AZ26: 0 | BA26: 0 | BB26: 0 | BC26: 0 | BD26: 0 | BE26: 0.008 | BF26: 0.0051875 | BG26: 0.004 | BH26: 0.3179126984
A27: Zambia | B27: TcIL3000_3_2420 | C27: 925946 | D27: C | E27: T | F27: synonymous | G27: ABC transporter | H27: 0.556 | I27: 0.483 | J27: 0.692 | K27: 0.45 | L27: 0.5 | M27: 0.378 | N27: 0.427 | O27: 0.438 | P27: 0.474 | Q27: 0.538 | R27: 0.486 | S27: 0.487 | T27: 0.538 | U27: 0 | V27: 0 | W27: 0 | X27: 0 | Y27: 0 | Z27: 0 | AA27: 0 | AB27: 0 | AC27: 0.036 | AD27: 0 | AE27: 0 | AF27: 0.017 | AG27: 0 | AH27: 0 | AI27: 0 | AJ27: 0.33 | AK27: 0 | AL27: 0.412 | AM27: 0.792 | AN27: 0.583 | AO27: 0 | AP27: 0 | AQ27: 0 | AR27: 0.438 | AS27: 0.556 | AT27: 0 | AU27: 0 | AV27: 0 | AW27: 0 | AX27: 0 | AY27: 0 | AZ27: 0 | BA27: 0 | BB27: 0 | BC27: 0 | BD27: 0 | BE27: 0 | BF27: 0.0033125 | BG27: 0 | BH27: 0.3154444444
A28: Zambia | B28: TcIL3000_3_2420 | C28: 923756 | D28: T | E28: A | F28: missense | G28: ABC transporter | H28: 0.441 | I28: 0.64 | J28: 0.65 | K28: 0.576 | L28: 0.5 | M28: 0.514 | N28: 0.377 | O28: 0.5 | P28: 0.556 | Q28: 0.214 | R28: 0.273 | S28: 0.571 | T28: 0.391 | U28: 0 | V28: 0.014 | W28: 0.071 | X28: 0.059 | Y28: 0 | Z28: 0 | AA28: 0.04 | AB28: 0.033 | AC28: 0 | AD28: 0 | AE28: 0.067 | AF28: 0 | AG28: 0 | AH28: 0.053 | AI28: 0.026 | AJ28: 0.271 | AK28: 0 | AL28: 0.6 | AM28: 0.714 | AN28: 0.35 | AO28: 0 | AP28: 0 | AQ28: 0.037 | AR28: 0.333 | AS28: 0.538 | AT28: 0 | AU28: 0 | AV28: 0 | AW28: 0 | AX28: 0 | AY28: 0 | AZ28: 0 | BA28: 0 | BB28: 0 | BC28: 0 | BD28: 0 | BE28: 0 | BF28: 0.025 | BG28: 0 | BH28: 0.3126269841
A29: Zambia | B29: TcIL3000_3_2420 | C29: 925427 | D29: C | E29: T | F29: synonymous | G29: ABC transporter | H29: 0.483 | I29: 0.524 | J29: 0.636 | K29: 0.64 | L29: 0.545 | M29: 0.643 | N29: 0.411 | O29: 0.333 | P29: 0.833 | Q29: 0.417 | R29: 0.562 | S29: 0.556 | T29: 0.208 | U29: 0 | V29: 0.016 | W29: 0 | X29: 0 | Y29: 0 | Z29: 0 | AA29: 0 | AB29: 0 | AC29: 0 | AD29: 0 | AE29: 0 | AF29: 0 | AG29: 0 | AH29: 0 | AI29: 0 | AJ29: 0.272 | AK29: 0 | AL29: 0.409 | AM29: 0.444 | AN29: 0.543 | AO29: 0 | AP29: 0 | AQ29: 0 | AR29: 0.6 | AS29: 0.429 | AT29: 0 | AU29: 0 | AV29: 0 | AW29: 0 | AX29: 0 | AY29: 0 | AZ29: 0 | BA29: 0 | BB29: 0 | BC29: 0 | BD29: 0 | BE29: 0 | BF29: 0.001 | BG29: 0 | BH29: 0.3078333333
A30: Zambia | B30: TcIL3000_3_2420 | C30: 924739 | D30: C | E30: T | F30: missense | G30: ABC transporter | H30: 0.448 | I30: 1 | J30: 1 | K30: 0.593 | L30: 0.474 | M30: 0.541 | N30: 0.447 | O30: 0.609 | P30: 0.524 | Q30: 0.833 | R30: 0.542 | S30: 0.364 | T30: 0.645 | U30: 0.19 | V30: 0 | W30: 0 | X30: 0 | Y30: 0 | Z30: 0 | AA30: 0 | AB30: 0 | AC30: 0 | AD30: 0 | AE30: 0 | AF30: 0 | AG30: 0 | AH30: 0 | AI30: 0 | AJ30: 0.34 | AK30: 0 | AL30: 0.381 | AM30: 1 | AN30: 0.439 | AO30: 0 | AP30: 0.48 | AQ30: 0 | AR30: 1 | AS30: 0.545 | AT30: 0 | AU30: 0.318 | AV30: 0 | AW30: 0 | AX30: 0 | AY30: 0 | AZ30: 0 | BA30: 0 | BB30: 0.018 | BC30: 0 | BD30: 0 | BE30: 0 | BF30: 0.008275 | BG30: 0 | BH30: 0.3071904762
A31: Zambia | B31: TcIL3000_3_2420 | C31: 921790 | D31: A | E31: G | F31: missense | G31: ABC transporter | H31: 0.444 | I31: 0.667 | J31: 0 | K31: 0 | L31: 0 | M31: 0.667 | N31: 0.406 | O31: 0.393 | P31: 0.647 | Q31: 0.444 | R31: 0.545 | S31: 0.568 | T31: 0.385 | U31: 0 | V31: 0 | W31: 0 | X31: 0 | Y31: 0 | Z31: 0 | AA31: 0 | AB31: 0 | AC31: 0 | AD31: 0 | AE31: 0 | AF31: 0 | AG31: 0 | AH31: 0 | AI31: 0 | AJ31: 0 | AK31: 0 | AL31: 0.471 | AM31: 0 | AN31: 0.521 | AO31: 0 | AP31: 0 | AQ31: 0 | AR31: 0 | AS31: 0.278 | AT31: 0 | AU31: 0 | AV31: 0 | AW31: 0 | AX31: 0 | AY31: 0 | AZ31: 0 | BA31: 0 | BB31: 0 | BC31: 0 | BD31: 0 | BE31: 0 | BF31: 0 | BG31: 0 | BH31: 0.3023968254
A32: Zambia | B32: TcIL3000_3_2420 | C32: 924607 | D32: C | E32: T | F32: missense | G32: ABC transporter | H32: 0.485 | I32: 0.217 | J32: 0.45 | K32: 0.517 | L32: 0.375 | M32: 0.379 | N32: 0.403 | O32: 0.417 | P32: 0.421 | Q32: 0.571 | R32: 0.6 | S32: 0.615 | T32: 0.586 | U32: 0 | V32: 0 | W32: 0 | X32: 0 | Y32: 0.111 | Z32: 0 | AA32: 0.056 | AB32: 0 | AC32: 0.045 | AD32: 0 | AE32: 0 | AF32: 0.018 | AG32: 0 | AH32: 0 | AI32: 0 | AJ32: 0.351 | AK32: 0 | AL32: 0.625 | AM32: 0.318 | AN32: 0.6 | AO32: 0 | AP32: 0 | AQ32: 0 | AR32: 0.5 | AS32: 0.333 | AT32: 0.017 | AU32: 0 | AV32: 0 | AW32: 0 | AX32: 0 | AY32: 0 | AZ32: 0 | BA32: 0 | BB32: 0.032 | BC32: 0 | BD32: 0 | BE32: 0.009 | BF32: 0.007975 | BG32: 0.0045 | BH32: 0.2996269841
A33: Zambia | B33: TcIL3000_3_2420 | C33: 922680 | D33: G | E33: T | F33: missense | G33: ABC transporter | H33: 0.5 | I33: 0.632 | J33: 0.312 | K33: 0.444 | L33: 0.667 | M33: 0.5 | N33: 0.365 | O33: 0.444 | P33: 0.462 | Q33: 0.222 | R33: 0.643 | S33: 0.543 | T33: 0.417 | U33: 0 | V33: 0.012 | W33: 0 | X33: 0.062 | Y33: 0 | Z33: 0.036 | AA33: 0 | AB33: 0 | AC33: 0 | AD33: 0 | AE33: 0 | AF33: 0 | AG33: 0 | AH33: 0 | AI33: 0 | AJ33: 0.352 | AK33: 0 | AL33: 0.714 | AM33: 0.481 | AN33: 0.6 | AO33: 0 | AP33: 0 | AQ33: 0 | AR33: 0.818 | AS33: 0.188 | AT33: 0 | AU33: 0 | AV33: 0 | AW33: 0 | AX33: 0 | AY33: 0 | AZ33: 0 | BA33: 0 | BB33: 0.013 | BC33: 0 | BD33: 0 | BE33: 0 | BF33: 0.004275 | BG33: 0 | BH33: 0.2977301587
A34: Zambia | B34: TcIL3000_3_2420 | C34: 925444 | D34: T | E34: C | F34: missense | G34: ABC transporter | H34: 0.429 | I34: 0.476 | J34: 0.556 | K34: 0.696 | L34: 0.524 | M34: 0.64 | N34: 0.429 | O34: 0.308 | P34: 0.846 | Q34: 0.444 | R34: 0.56 | S34: 0.611 | T34: 0.2 | U34: 0 | V34: 0 | W34: 0 | X34: 0 | Y34: 0 | Z34: 0 | AA34: 0 | AB34: 0 | AC34: 0 | AD34: 0 | AE34: 0.043 | AF34: 0 | AG34: 0 | AH34: 0 | AI34: 0 | AJ34: 0.226 | AK34: 0 | AL34: 0.381 | AM34: 0.462 | AN34: 0.531 | AO34: 0 | AP34: 0 | AQ34: 0 | AR34: 0.636 | AS34: 0.444 | AT34: 0 | AU34: 0 | AV34: 0 | AW34: 0 | AX34: 0 | AY34: 0 | AZ34: 0 | BA34: 0 | BB34: 0 | BC34: 0.04 | BD34: 0 | BE34: 0 | BF34: 0.0053125 | BG34: 0 | BH34: 0.2953253968
A35: Zambia | B35: TcIL3000_3_2420 | C35: 921527 | D35: T | E35: C | F35: synonymous | G35: ABC transporter | H35: 0 | I35: 0.5 | J35: 0.333 | K35: 0 | L35: 0 | M35: 0.346 | N35: 0 | O35: 0.438 | P35: 0.778 | Q35: 0 | R35: 0 | S35: 0 | T35: 0 | U35: 1 | V35: 1 | W35: 1 | X35: 1 | Y35: 1 | Z35: 1 | AA35: 1 | AB35: 1 | AC35: 1 | AD35: 1 | AE35: 1 | AF35: 0.976 | AG35: 1 | AH35: 1 | AI35: 1 | AJ35: 0.628 | AK35: 0 | AL35: 0 | AM35: 0.368 | AN35: 0.036 | AO35: 0.333 | AP35: 0.714 | AQ35: 1 | AR35: 0.143 | AS35: 0 | AT35: 0.023 | AU35: 0.75 | AV35: 1 | AW35: 1 | AX35: 0.643 | AY35: 1 | AZ35: 1 | BA35: 1 | BB35: 1 | BC35: 1 | BD35: 0 | BE35: 0 | BF35: 0.0015 | BG35: 0 | BH35: 0.2947619048
A36: Zambia | B36: TcIL3000_3_2420 | C36: 923949 | D36: G | E36: A | F36: missense | G36: ABC transporter | H36: 0.448 | I36: 0.522 | J36: 0.5 | K36: 0.5 | L36: 0.8 | M36: 0.423 | N36: 0.604 | O36: 0.333 | P36: 0.571 | Q36: 0.444 | R36: 0.409 | S36: 0.596 | T36: 0.409 | U36: 0 | V36: 0 | W36: 0 | X36: 0.059 | Y36: 0 | Z36: 0 | AA36: 0 | AB36: 0 | AC36: 0 | AD36: 0 | AE36: 0 | AF36: 0 | AG36: 0.043 | AH36: 0 | AI36: 0 | AJ36: 0 | AK36: 0 | AL36: 0.5 | AM36: 0.5 | AN36: 0.382 | AO36: 0 | AP36: 0 | AQ36: 0 | AR36: 0.667 | AS36: 0.364 | AT36: 0 | AU36: 0 | AV36: 0 | AW36: 0 | AX36: 0 | AY36: 0 | AZ36: 0 | BA36: 0 | BB36: 0 | BC36: 0 | BD36: 0 | BE36: 0 | BF36: 0.006375 | BG36: 0 | BH36: 0.2938809524
A37: Zambia | B37: TcIL3000_3_2420 | C37: 923806 | D37: A | E37: G | F37: missense | G37: ABC transporter | H37: 0.455 | I37: 0.533 | J37: 0.571 | K37: 0.515 | L37: 0.333 | M37: 0.483 | N37: 0.419 | O37: 0.444 | P37: 0.65 | Q37: 0.25 | R37: 0.364 | S37: 0.55 | T37: 0.263 | U37: 0 | V37: 0.466 | W37: 0.5 | X37: 0.562 | Y37: 0.4 | Z37: 0.043 | AA37: 0 | AB37: 0 | AC37: 0 | AD37: 0 | AE37: 0 | AF37: 0 | AG37: 0 | AH37: 0.042 | AI37: 0 | AJ37: 0.606 | AK37: 0 | AL37: 0.579 | AM37: 0.481 | AN37: 0.318 | AO37: 0 | AP37: 0.028 | AQ37: 0.038 | AR37: 0.4 | AS37: 0.381 | AT37: 0 | AU37: 0 | AV37: 0 | AW37: 0 | AX37: 0 | AY37: 0.364 | AZ37: 0 | BA37: 0.5 | BB37: 0 | BC37: 0 | BD37: 0 | BE37: 0 | BF37: 0.0446125 | BG37: 0 | BH37: 0.2904285714
A38: Zambia | B38: TcIL3000_3_2420 | C38: 925454 | D38: T | E38: C | F38: synonymous | G38: ABC transporter | H38: 0.407 | I38: 0.5 | J38: 0.556 | K38: 0.652 | L38: 0.524 | M38: 0.667 | N38: 0.413 | O38: 0.308 | P38: 0.846 | Q38: 0.4 | R38: 0.56 | S38: 0.615 | T38: 0.217 | U38: 0 | V38: 0.016 | W38: 0 | X38: 0 | Y38: 0 | Z38: 0 | AA38: 0.029 | AB38: 0 | AC38: 0 | AD38: 0 | AE38: 0 | AF38: 0 | AG38: 0.065 | AH38: 0 | AI38: 0 | AJ38: 0.226 | AK38: 0 | AL38: 0.364 | AM38: 0.447 | AN38: 0.515 | AO38: 0 | AP38: 0 | AQ38: 0 | AR38: 0.636 | AS38: 0.438 | AT38: 0.016 | AU38: 0 | AV38: 0 | AW38: 0 | AX38: 0 | AY38: 0 | AZ38: 0 | BA38: 0 | BB38: 0 | BC38: 0 | BD38: 0 | BE38: 0.012 | BF38: 0.006875 | BG38: 0.006 | BH38: 0.2882301587
A39: Zambia | B39: TcIL3000_3_2420 | C39: 921039 | D39: A | E39: G | F39: missense | G39: ABC transporter | H39: 0.519 | I39: 0.444 | J39: 0.625 | K39: 0.391 | L39: 0.333 | M39: 0.6 | N39: 0.5 | O39: 0.529 | P39: 0.667 | Q39: 0.167 | R39: 0.529 | S39: 0.5 | T39: 0.609 | U39: 0.04 | V39: 0.016 | W39: 0 | X39: 0 | Y39: 0 | Z39: 0 | AA39: 0 | AB39: 0 | AC39: 0 | AD39: 0 | AE39: 0 | AF39: 0.02 | AG39: 0 | AH39: 0 | AI39: 0 | AJ39: 0.265 | AK39: 0 | AL39: 0.846 | AM39: 0.333 | AN39: 0.44 | AO39: 0 | AP39: 0 | AQ39: 0 | AR39: 0.6 | AS39: 0.529 | AT39: 0 | AU39: 0 | AV39: 0 | AW39: 0 | AX39: 0 | AY39: 0 | AZ39: 0 | BA39: 0 | BB39: 0 | BC39: 0 | BD39: 0 | BE39: 0.016 | BF39: 0.00475 | BG39: 0.008 | BH39: 0.2849365079
A40: Zambia | B40: TcIL3000_3_2420 | C40: 924323 | D40: T | E40: C | F40: synonymous | G40: ABC transporter | H40: 0.464 | I40: 0.643 | J40: 0.533 | K40: 0.273 | L40: 0.35 | M40: 0.438 | N40: 0.512 | O40: 0.312 | P40: 0.538 | Q40: 0.5 | R40: 0.625 | S40: 0.37 | T40: 0.52 | U40: 0.034 | V40: 0 | W40: 0 | X40: 0 | Y40: 0 | Z40: 0 | AA40: 0 | AB40: 0 | AC40: 0 | AD40: 0 | AE40: 0 | AF40: 0 | AG40: 0 | AH40: 0 | AI40: 0 | AJ40: 0.298 | AK40: 0 | AL40: 0.571 | AM40: 0.625 | AN40: 0.536 | AO40: 0 | AP40: 0 | AQ40: 0 | AR40: 0.545 | AS40: 0.5 | AT40: 0 | AU40: 0 | AV40: 0 | AW40: 0 | AX40: 0 | AY40: 0 | AZ40: 0 | BA40: 0 | BB40: 0.019 | BC40: 0 | BD40: 0 | BE40: 0 | BF40: 0.001675 | BG40: 0 | BH40: 0.2846031746
A41: Zambia | B41: TcIL3000_3_2420 | C41: 921401 | D41: T | E41: C | F41: synonymous | G41: ABC transporter | H41: 0.394 | I41: 0.5 | J41: 0.583 | K41: 0.462 | L41: 0.462 | M41: 0.536 | N41: 0.509 | O41: 0.5 | P41: 0.444 | Q41: 0.5 | R41: 0.517 | S41: 0.372 | T41: 0.367 | U41: 0 | V41: 0 | W41: 0 | X41: 0 | Y41: 0 | Z41: 0 | AA41: 0 | AB41: 0 | AC41: 0 | AD41: 0 | AE41: 0 | AF41: 0 | AG41: 0 | AH41: 0 | AI41: 0 | AJ41: 0.345 | AK41: 0 | AL41: 0.5 | AM41: 0.6 | AN41: 0.469 | AO41: 0 | AP41: 0 | AQ41: 0 | AR41: 0.455 | AS41: 0.556 | AT41: 0 | AU41: 0 | AV41: 0 | AW41: 0 | AX41: 0 | AY41: 0 | AZ41: 0.038 | BA41: 0 | BB41: 0 | BC41: 0 | BD41: 0 | BE41: 0 | BF41: 0.0076 | BG41: 0 | BH41: 0.2841825397
A42: Zambia | B42: TcIL3000_6_2290 | C42: 659965 | D42: C | E42: T | F42: missense | G42: ABC transporter | H42: 0.516 | I42: 0.542 | J42: 0.444 | K42: 0.593 | L42: 0.714 | M42: 0.182 | N42: 0.319 | O42: 0.706 | P42: 0.375 | Q42: 0.7 | R42: 0.4 | S42: 0 | T42: 0 | U42: 0 | V42: 0 | W42: 0 | X42: 0 | Y42: 0 | Z42: 0 | AA42: 0 | AB42: 0 | AC42: 0 | AD42: 0 | AE42: 0 | AF42: 0.028 | AG42: 0 | AH42: 0.056 | AI42: 0 | AJ42: 0.01 | AK42: 0 | AL42: 0.385 | AM42: 0.579 | AN42: 0 | AO42: 0 | AP42: 0 | AQ42: 0 | AR42: 0.5 | AS42: 0 | AT42: 0 | AU42: 0 | AV42: 0 | AW42: 0 | AX42: 0.045 | AY42: 0 | AZ42: 0 | BA42: 0 | BB42: 0 | BC42: 0 | BD42: 0 | BE42: 0 | BF42: 0.00525 | BG42: 0 | BH42: 0.2807539683
A43: Zambia | B43: TcIL3000_3_2420 | C43: 924630 | D43: A | E43: G | F43: missense | G43: ABC transporter | H43: 0.429 | I43: 0.192 | J43: 1 | K43: 0.452 | L43: 0.409 | M43: 1 | N43: 0.382 | O43: 1 | P43: 1 | Q43: 0.625 | R43: 0.636 | S43: 0.568 | T43: 0.621 | U43: 0 | V43: 0.472 | W43: 0 | X43: 0 | Y43: 0 | Z43: 1 | AA43: 0.412 | AB43: 0.755 | AC43: 0.44 | AD43: 0.353 | AE43: 0.273 | AF43: 0 | AG43: 0 | AH43: 1 | AI43: 0.521 | AJ43: 1 | AK43: 0 | AL43: 0.571 | AM43: 1 | AN43: 0.581 | AO43: 0 | AP43: 0 | AQ43: 0.357 | AR43: 1 | AS43: 0.368 | AT43: 0 | AU43: 0.375 | AV43: 0.364 | AW43: 0 | AX43: 0 | AY43: 0 | AZ43: 0 | BA43: 0.316 | BB43: 0.377 | BC43: 0.977 | BD43: 0 | BE43: 0.009 | BF43: 0.0149375 | BG43: 0.0045 | BH43: 0.2804444444
A44: Zambia | B44: TcIL3000_3_2420 | C44: 924314 | D44: A | E44: G | F44: synonymous | G44: ABC transporter | H44: 0.5 | I44: 0.643 | J44: 0.571 | K44: 0.273 | L44: 0.3 | M44: 0.389 | N44: 0.532 | O44: 0.267 | P44: 0.467 | Q44: 0.5 | R44: 0.636 | S44: 0.357 | T44: 0.5 | U44: 0.031 | V44: 0 | W44: 0 | X44: 0 | Y44: 0 | Z44: 0 | AA44: 0.029 | AB44: 0 | AC44: 0 | AD44: 0 | AE44: 0 | AF44: 0 | AG44: 0.031 | AH44: 0 | AI44: 0 | AJ44: 0.011 | AK44: 0 | AL44: 0.55 | AM44: 0.588 | AN44: 0.517 | AO44: 0 | AP44: 0 | AQ44: 0 | AR44: 0.462 | AS44: 0.529 | AT44: 0 | AU44: 0 | AV44: 0 | AW44: 0 | AX44: 0 | AY44: 0 | AZ44: 0 | BA44: 0 | BB44: 0 | BC44: 0 | BD44: 0 | BE44: 0 | BF44: 0.0056875 | BG44: 0 | BH44: 0.2800952381
A45: Zambia | B45: TcIL3000_10_9180 | C45: 2517864 | D45: G | E45: A | F45: synonymous | G45: ABC transporter | H45: 0.958 | I45: 0.583 | J45: 0.7 | K45: 0.333 | L45: 0.389 | M45: 0.355 | N45: 0.449 | O45: 0 | P45: 1 | Q45: 0 | R45: 0.409 | S45: 0 | T45: 0 | U45: 0 | V45: 0.444 | W45: 0.643 | X45: 0.4 | Y45: 0.6 | Z45: 0 | AA45: 0 | AB45: 0 | AC45: 0 | AD45: 0 | AE45: 0 | AF45: 0 | AG45: 0 | AH45: 0.647 | AI45: 0 | AJ45: 0 | AK45: 0 | AL45: 1 | AM45: 0.333 | AN45: 0.576 | AO45: 0 | AP45: 0 | AQ45: 0 | AR45: 0.25 | AS45: 0.545 | AT45: 0 | AU45: 0 | AV45: 0 | AW45: 0 | AX45: 0 | AY45: 0 | AZ45: 0 | BA45: 0 | BB45: 0 | BC45: 0 | BD45: 0 | BE45: 0 | BF45: 0.170875 | BG45: 0 | BH45: 0.2800396825
A46: Zambia | B46: TcIL3000_3_2420 | C46: 921032 | D46: G | E46: A | F46: synonymous | G46: ABC transporter | H46: 0.5 | I46: 0.5 | J46: 0 | K46: 0 | L46: 0 | M46: 0.556 | N46: 0.463 | O46: 0.529 | P46: 0.692 | Q46: 0.143 | R46: 0.529 | S46: 0.483 | T46: 0.714 | U46: 0 | V46: 0 | W46: 0 | X46: 0 | Y46: 0 | Z46: 0 | AA46: 0 | AB46: 0 | AC46: 0 | AD46: 0 | AE46: 0 | AF46: 0 | AG46: 0 | AH46: 0 | AI46: 0 | AJ46: 0 | AK46: 0.083 | AL46: 0.733 | AM46: 0 | AN46: 0.478 | AO46: 0 | AP46: 0 | AQ46: 0 | AR46: 0 | AS46: 0.5 | AT46: 0 | AU46: 0 | AV46: 0 | AW46: 0 | AX46: 0 | AY46: 0 | AZ46: 0 | BA46: 0 | BB46: 0 | BC46: 0.034 | BD46: 0 | BE46: 0 | BF46: 0.0068 | BG46: 0.083 | BH46: 0.2796825397
A47: Zambia | B47: TcIL3000_3_2420 | C47: 924315 | D47: C | E47: A | F47: missense | G47: ABC transporter | H47: 0.464 | I47: 0.643 | J47: 0.571 | K47: 0.286 | L47: 0.3 | M47: 0.444 | N47: 0.556 | O47: 0.267 | P47: 0.438 | Q47: 0.5 | R47: 0.619 | S47: 0.333 | T47: 0.5 | U47: 0.031 | V47: 0 | W47: 0 | X47: 0 | Y47: 0 | Z47: 0 | AA47: 0 | AB47: 0 | AC47: 0 | AD47: 0 | AE47: 0 | AF47: 0.02 | AG47: 0.031 | AH47: 0 | AI47: 0 | AJ47: 0 | AK47: 0 | AL47: 0.55 | AM47: 0.588 | AN47: 0.517 | AO47: 0 | AP47: 0 | AQ47: 0 | AR47: 0.462 | AS47: 0.529 | AT47: 0 | AU47: 0 | AV47: 0 | AW47: 0 | AX47: 0 | AY47: 0 | AZ47: 0 | BA47: 0 | BB47: 0.038 | BC47: 0 | BD47: 0 | BE47: 0 | BF47: 0.002475 | BG47: 0 | BH47: 0.2793174603
A48: Zambia | B48: TcIL3000_3_2420 | C48: 923884 | D48: T | E48: C | F48: missense | G48: ABC transporter | H48: 0.469 | I48: 0.5 | J48: 0.6 | K48: 0.5 | L48: 0.375 | M48: 0.444 | N48: 0.542 | O48: 0.333 | P48: 0.632 | Q48: 0.3 | R48: 0.409 | S48: 0.612 | T48: 0.278 | U48: 0 | V48: 0.015 | W48: 0 | X48: 0 | Y48: 0 | Z48: 0 | AA48: 0 | AB48: 0.04 | AC48: 0.067 | AD48: 0 | AE48: 0 | AF48: 0.022 | AG48: 0.044 | AH48: 0 | AI48: 0 | AJ48: 0.263 | AK48: 0 | AL48: 0.588 | AM48: 0.44 | AN48: 0.367 | AO48: 0 | AP48: 0 | AQ48: 0 | AR48: 0.5 | AS48: 0.438 | AT48: 0 | AU48: 0 | AV48: 0 | AW48: 0 | AX48: 0 | AY48: 0 | AZ48: 0 | BA48: 0 | BB48: 0 | BC48: 0.025 | BD48: 0 | BE48: 0.014 | BF48: 0.00675 | BG48: 0.007 | BH48: 0.2765
A49: Zambia | B49: TcIL3000_3_2420 | C49: 924290 | D49: T | E49: C | F49: synonymous | G49: ABC transporter | H49: 0.458 | I49: 0.75 | J49: 0.462 | K49: 0.217 | L49: 0.333 | M49: 0.526 | N49: 0.52 | O49: 0.188 | P49: 0.588 | Q49: 0.417 | R49: 0.476 | S49: 0.471 | T49: 0.556 | U49: 0 | V49: 0 | W49: 0 | X49: 0 | Y49: 0 | Z49: 0 | AA49: 0 | AB49: 0 | AC49: 0 | AD49: 0 | AE49: 0 | AF49: 0 | AG49: 0 | AH49: 0 | AI49: 0 | AJ49: 0.022 | AK49: 0 | AL49: 0.429 | AM49: 0.684 | AN49: 0.519 | AO49: 0 | AP49: 0 | AQ49: 0 | AR49: 0.417 | AS49: 0.611 | AT49: 0 | AU49: 0 | AV49: 0 | AW49: 0 | AX49: 0 | AY49: 0 | AZ49: 0 | BA49: 0 | BB49: 0.017 | BC49: 0 | BD49: 0 | BE49: 0 | BF49: 0.0034 | BG49: 0 | BH49: 0.275031746
A50: Zambia | B50: TcIL3000_10_9180 | C50: 2518766 | D50: G | E50: A | F50: synonymous | G50: ABC transporter | H50: 1 | I50: 0.55 | J50: 0.375 | K50: 0.3 | L50: 0.455 | M50: 0.711 | N50: 0.592 | O50: 0 | P50: 0.429 | Q50: 0 | R50: 0.5 | S50: 0 | T50: 0 | U50: 0 | V50: 0.449 | W50: 0.405 | X50: 0.333 | Y50: 0.55 | Z50: 0.053 | AA50: 0 | AB50: 0 | AC50: 0 | AD50: 0 | AE50: 0 | AF50: 0 | AG50: 0 | AH50: 0.517 | AI50: 0 | AJ50: 0 | AK50: 0 | AL50: 1 | AM50: 0.368 | AN50: 0.457 | AO50: 0 | AP50: 0 | AQ50: 0 | AR50: 0.167 | AS50: 0.538 | AT50: 0 | AU50: 0 | AV50: 0 | AW50: 0 | AX50: 0 | AY50: 0 | AZ50: 0 | BA50: 0 | BB50: 0 | BC50: 0 | BD50: 0 | BE50: 0 | BF50: 0.1441875 | BG50: 0 | BH50: 0.2735634921
A51: Zambia | B51: TcIL3000_3_2420 | C51: 923988 | D51: C | E51: G | F51: missense | G51: ABC transporter | H51: 0.556 | I51: 0.526 | J51: 0.667 | K51: 0.379 | L51: 0.8 | M51: 0.458 | N51: 0.531 | O51: 0.235 | P51: 0.571 | Q51: 0.556 | R51: 0.444 | S51: 0.632 | T51: 0.52 | U51: 0.442 | V51: 0.484 | W51: 0.652 | X51: 0.421 | Y51: 0.615 | Z51: 0 | AA51: 0.045 | AB51: 0.062 | AC51: 0 | AD51: 0 | AE51: 0 | AF51: 0 | AG51: 0 | AH51: 0 | AI51: 0.024 | AJ51: 0.657 | AK51: 0 | AL51: 0.462 | AM51: 0.4 | AN51: 0.378 | AO51: 0 | AP51: 0.053 | AQ51: 0.429 | AR51: 0.75 | AS51: 0.333 | AT51: 0 | AU51: 0 | AV51: 0.2 | AW51: 0 | AX51: 0 | AY51: 0.688 | AZ51: 0.034 | BA51: 0.667 | BB51: 0 | BC51: 0 | BD51: 0.029 | BE51: 0.016 | BF51: 0.079425 | BG51: 0.0225 | BH51: 0.2704920635
A52: Zambia | B52: TcIL3000_10_9180 | C52: 2517228 | D52: C | E52: T | F52: missense | G52: ABC transporter | H52: 1 | I52: 0.451 | J52: 0.611 | K52: 0.41 | L52: 0.636 | M52: 0.483 | N52: 0.486 | O52: 0 | P52: 0.45 | Q52: 0 | R52: 0.333 | S52: 0 | T52: 0 | U52: 0 | V52: 0 | W52: 0 | X52: 0.37 | Y52: 0.333 | Z52: 0 | AA52: 0 | AB52: 0 | AC52: 0 | AD52: 0 | AE52: 0.048 | AF52: 0 | AG52: 0.026 | AH52: 0.36 | AI52: 0 | AJ52: 0 | AK52: 0 | AL52: 1 | AM52: 0.4 | AN52: 0.522 | AO52: 0 | AP52: 0 | AQ52: 0 | AR52: 0.444 | AS52: 0.304 | AT52: 0 | AU52: 0 | AV52: 0 | AW52: 0 | AX52: 0 | AY52: 0 | AZ52: 0 | BA52: 0 | BB52: 0 | BC52: 0 | BD52: 0 | BE52: 0 | BF52: 0.0710625 | BG52: 0 | BH52: 0.2699206349
A53: Zambia | B53: TcIL3000_3_2420 | C53: 922040 | D53: A | E53: G | F53: synonymous | G53: ABC transporter | H53: 0.564 | I53: 0.512 | J53: 0 | K53: 0 | L53: 0 | M53: 0.333 | N53: 0.455 | O53: 0.542 | P53: 0.421 | Q53: 0.579 | R53: 0.55 | S53: 0.429 | T53: 0.385 | U53: 0 | V53: 0.015 | W53: 0 | X53: 0 | Y53: 0 | Z53: 0 | AA53: 0 | AB53: 0 | AC53: 0 | AD53: 0 | AE53: 0 | AF53: 0.02 | AG53: 0 | AH53: 0 | AI53: 0 | AJ53: 0.37 | AK53: 0 | AL53: 0.5 | AM53: 0 | AN53: 0.459 | AO53: 0 | AP53: 0 | AQ53: 0 | AR53: 0 | AS53: 0.364 | AT53: 0 | AU53: 0 | AV53: 0 | AW53: 0 | AX53: 0 | AY53: 0 | AZ53: 0 | BA53: 0 | BB53: 0.018 | BC53: 0 | BD53: 0 | BE53: 0.01 | BF53: 0.0014125 | BG53: 0.005 | BH53: 0.2662777778
A54: TC2, Zambia | B54: TcIL3000_7_4990 | C54: 1701372 | D54: G | E54: A | F54: missense | G54: ABC transporter | H54: 0.387 | I54: 0.533 | J54: 0.667 | K54: 0.545 | L54: 0.562 | M54: 0.565 | N54: 0.596 | O54: 0 | P54: 0.077 | Q54: 0.6 | R54: 1 | S54: 0 | T54: 0 | U54: 0 | V54: 0 | W54: 0 | X54: 0 | Y54: 0 | Z54: 0 | AA54: 0 | AB54: 0 | AC54: 0 | AD54: 0 | AE54: 0 | AF54: 0.028 | AG54: 0.059 | AH54: 0 | AI54: 0 | AJ54: 0.957 | AK54: 0 | AL54: 0.5 | AM54: 0.389 | AN54: 0.429 | AO54: 0 | AP54: 0 | AQ54: 0 | AR54: 0 | AS54: 0 | AT54: 0.324 | AU54: 0 | AV54: 0 | AW54: 0 | AX54: 0.529 | AY54: 0 | AZ54: 0 | BA54: 0 | BB54: 0 | BC54: 0 | BD54: 0 | BE54: 0.537 | BF54: 0.0054375 | BG54: 0.2685 | BH54: 0.2586984127
A55: Zambia | B55: TcIL3000_10_9180 | C55: 2517207 | D55: C | E55: G | F55: missense | G55: ABC transporter | H55: 1 | I55: 0.421 | J55: 0.6 | K55: 0.394 | L55: 0.621 | M55: 0.565 | N55: 0.535 | O55: 0 | P55: 0.353 | Q55: 0 | R55: 0.36 | S55: 0 | T55: 0 | U55: 0 | V55: 0 | W55: 0 | X55: 0.4 | Y55: 0.294 | Z55: 0 | AA55: 0 | AB55: 0 | AC55: 0 | AD55: 0 | AE55: 0 | AF55: 0 | AG55: 0 | AH55: 0.409 | AI55: 0 | AJ55: 0 | AK55: 0 | AL55: 1 | AM55: 0.455 | AN55: 0.381 | AO55: 0 | AP55: 0 | AQ55: 0 | AR55: 0.5 | AS55: 0.294 | AT55: 0 | AU55: 0 | AV55: 0 | AW55: 0 | AX55: 0 | AY55: 0 | AZ55: 0 | BA55: 0 | BB55: 0 | BC55: 0.019 | BD55: 0 | BE55: 0 | BF55: 0.0651375 | BG55: 0 | BH55: 0.2579603175
A56: Zambia | B56: TcIL3000_10_9180 | C56: 2518188 | D56: G | E56: A | F56: synonymous | G56: ABC transporter | H56: 1 | I56: 0.714 | J56: 0.562 | K56: 0.765 | L56: 0.529 | M56: 0.538 | N56: 0.557 | O56: 0 | P56: 0.444 | Q56: 0 | R56: 0.5 | S56: 0 | T56: 0 | U56: 0 | V56: 0.633 | W56: 0.667 | X56: 0.412 | Y56: 0.417 | Z56: 0 | AA56: 0 | AB56: 0 | AC56: 0 | AD56: 0 | AE56: 0 | AF56: 0 | AG56: 0 | AH56: 0.609 | AI56: 0 | AJ56: 0 | AK56: 0 | AL56: 1 | AM56: 0.75 | AN56: 0.667 | AO56: 0 | AP56: 0 | AQ56: 0 | AR56: 0.833 | AS56: 0.5 | AT56: 0 | AU56: 0 | AV56: 0 | AW56: 0 | AX56: 0 | AY56: 0 | AZ56: 0 | BA56: 0 | BB56: 0 | BC56: 0 | BD56: 0 | BE56: 0.018 | BF56: 0.171125 | BG56: 0.009 | BH56: 0.2554603175
A57: Zambia | B57: TcIL3000_3_2420 | C57: 925773 | D57: G | E57: A | F57: missense | G57: ABC transporter | H57: 0.55 | I57: 0.444 | J57: 0 | K57: 0.433 | L57: 0.333 | M57: 0.439 | N57: 0.483 | O57: 0.565 | P57: 0.522 | Q57: 0.278 | R57: 0.529 | S57: 0.543 | T57: 0.542 | U57: 0 | V57: 0.01 | W57: 0.029 | X57: 0 | Y57: 0 | Z57: 0 | AA57: 0 | AB57: 0 | AC57: 0 | AD57: 0 | AE57: 0 | AF57: 0 | AG57: 0 | AH57: 0 | AI57: 0 | AJ57: 0 | AK57: 0 | AL57: 0.294 | AM57: 0 | AN57: 0.61 | AO57: 0.059 | AP57: 0 | AQ57: 0 | AR57: 0 | AS57: 0.765 | AT57: 0.036 | AU57: 0 | AV57: 0 | AW57: 0 | AX57: 0 | AY57: 0 | AZ57: 0 | BA57: 0 | BB57: 0 | BC57: 0 | BD57: 0 | BE57: 0.011 | BF57: 0.0024375 | BG57: 0.0055 | BH57: 0.2535714286
A58: Zambia | B58: TcIL3000_3_2420 | C58: 922772 | D58: G | E58: T | F58: missense | G58: ABC transporter | H58: 0.536 | I58: 0.393 | J58: 0.308 | K58: 0.321 | L58: 0.538 | M58: 0.526 | N58: 0.39 | O58: 0.5 | P58: 0.667 | Q58: 0.188 | R58: 0.591 | S58: 0.5 | T58: 0.36 | U58: 0 | V58: 0.011 | W58: 0 | X58: 0 | Y58: 0 | Z58: 0 | AA58: 0 | AB58: 0 | AC58: 0 | AD58: 0.029 | AE58: 0 | AF58: 0 | AG58: 0 | AH58: 0 | AI58: 0 | AJ58: 0.263 | AK58: 0 | AL58: 0.714 | AM58: 0.393 | AN58: 0.651 | AO58: 0 | AP58: 0 | AQ58: 0 | AR58: 0.846 | AS58: 0.333 | AT58: 0 | AU58: 0 | AV58: 0 | AW58: 0 | AX58: 0 | AY58: 0 | AZ58: 0 | BA58: 0 | BB58: 0 | BC58: 0.032 | BD58: 0 | BE58: 0 | BF58: 0.0039 | BG58: 0 | BH58: 0.2524603175
A59: Zambia | B59: TcIL3000_10_9180 | C59: 2518608 | D59: T | E59: G | F59: synonymous | G59: ABC transporter | H59: 1 | I59: 0.556 | J59: 0.4 | K59: 0.607 | L59: 0.25 | M59: 0.568 | N59: 0.54 | O59: 0 | P59: 0.562 | Q59: 0 | R59: 0.667 | S59: 0 | T59: 0 | U59: 0 | V59: 0.547 | W59: 0.475 | X59: 0.333 | Y59: 0.586 | Z59: 0 | AA59: 0 | AB59: 0 | AC59: 0 | AD59: 0 | AE59: 0 | AF59: 0 | AG59: 0.022 | AH59: 0.5 | AI59: 0 | AJ59: 0.009 | AK59: 0 | AL59: 1 | AM59: 0.158 | AN59: 0.55 | AO59: 0 | AP59: 0 | AQ59: 0 | AR59: 0.5 | AS59: 0.409 | AT59: 0 | AU59: 0 | AV59: 0 | AW59: 0 | AX59: 0 | AY59: 0 | AZ59: 0 | BA59: 0 | BB59: 0 | BC59: 0.036 | BD59: 0 | BE59: 0.012 | BF59: 0.1467375 | BG59: 0.006 | BH59: 0.2511428571
A60: TC1 | B60: TcIL3000_7_4990 | C60: 1701253 | D60: T | E60: C | F60: synonymous | G60: ABC transporter | H60: 0.511 | I60: 1 | J60: 1 | K60: 0.353 | L60: 1 | M60: 1 | N60: 1 | O60: 0.417 | P60: 1 | Q60: 1 | R60: 1 | S60: 0 | T60: 0 | U60: 0.4 | V60: 0.519 | W60: 0.69 | X60: 0.579 | Y60: 0 | Z60: 0.643 | AA60: 0.462 | AB60: 1 | AC60: 0.368 | AD60: 0.556 | AE60: 0.286 | AF60: 0.686 | AG60: 0.5 | AH60: 1 | AI60: 0 | AJ60: 1 | AK60: 1 | AL60: 0.5 | AM60: 0.393 | AN60: 1 | AO60: 0.529 | AP60: 1 | AQ60: 0.429 | AR60: 0.429 | AS60: 0.875 | AT60: 0.432 | AU60: 0 | AV60: 1 | AW60: 0 | AX60: 0.571 | AY60: 0.75 | AZ60: 1 | BA60: 1 | BB60: 0.366 | BC60: 1 | BD60: 1 | BE60: 1 | BF60: 0.315825 | BG60: 0 | BH60: 0.2332936508
A61: TC1 | B61: TcIL3000_7_4990 | C61: 1701016 | D61: T | E61: C | F61: synonymous | G61: ABC transporter | H61: 0.464 | I61: 1 | J61: 1 | K61: 0.424 | L61: 1 | M61: 1 | N61: 0.971 | O61: 0.667 | P61: 1 | Q61: 1 | R61: 1 | S61: 0 | T61: 0 | U61: 0.556 | V61: 0.615 | W61: 0.667 | X61: 0 | Y61: 0 | Z61: 0.647 | AA61: 0.45 | AB61: 1 | AC61: 0.364 | AD61: 0.586 | AE61: 0.429 | AF61: 0.457 | AG61: 0.652 | AH61: 0.333 | AI61: 0 | AJ61: 1 | AK61: 1 | AL61: 0.5 | AM61: 0.455 | AN61: 1 | AO61: 0.583 | AP61: 1 | AQ61: 0.652 | AR61: 0.5 | AS61: 1 | AT61: 0.459 | AU61: 0 | AV61: 1 | AW61: 0 | AX61: 0.68 | AY61: 0.8 | AZ61: 1 | BA61: 0.458 | BB61: 0.442 | BC61: 0.957 | BD61: 1 | BE61: 1 | BF61: 0.2684 | BG61: 0 | BH61: 0.2059206349
A62: TC2 | B62: TcIL3000_7_4990 | C62: 1700971 | D62: C | E62: T | F62: synonymous | G62: ABC transporter | H62: 0.524 | I62: 1 | J62: 0.438 | K62: 0.375 | L62: 0.462 | M62: 1 | N62: 1 | O62: 0.571 | P62: 1 | Q62: 1 | R62: 1 | S62: 0 | T62: 0 | U62: 0 | V62: 0 | W62: 0 | X62: 0 | Y62: 0 | Z62: 0 | AA62: 0 | AB62: 0 | AC62: 0 | AD62: 0 | AE62: 0 | AF62: 0 | AG62: 0.037 | AH62: 0 | AI62: 0 | AJ62: 1 | AK62: 0.25 | AL62: 0.5 | AM62: 0.435 | AN62: 1 | AO62: 0.538 | AP62: 0.548 | AQ62: 0 | AR62: 0.429 | AS62: 0.909 | AT62: 0.523 | AU62: 0 | AV62: 0.625 | AW62: 0 | AX62: 0.652 | AY62: 0 | AZ62: 0 | BA62: 0 | BB62: 0 | BC62: 0 | BD62: 0.429 | BE62: 0.99 | BF62: 0.0023125 | BG62: 0.4595 | BH62: 0.184547619
A63: TC2 | B63: TcIL3000_3_2420 | C63: 924986 | D63: C | E63: T | F63: synonymous | G63: ABC transporter | H63: 0.436 | I63: 1 | J63: 1 | K63: 0.556 | L63: 0.407 | M63: 1 | N63: 0.419 | O63: 1 | P63: 1 | Q63: 1 | R63: 0.533 | S63: 1 | T63: 1 | U63: 1 | V63: 0.981 | W63: 1 | X63: 1 | Y63: 1 | Z63: 1 | AA63: 1 | AB63: 1 | AC63: 1 | AD63: 1 | AE63: 1 | AF63: 0.975 | AG63: 1 | AH63: 1 | AI63: 1 | AJ63: 0.992 | AK63: 0.833 | AL63: 0.765 | AM63: 1 | AN63: 0.452 | AO63: 0.52 | AP63: 0.636 | AQ63: 1 | AR63: 1 | AS63: 0.5 | AT63: 0 | AU63: 0.438 | AV63: 0.55 | AW63: 1 | AX63: 0.583 | AY63: 1 | AZ63: 1 | BA63: 1 | BB63: 1 | BC63: 1 | BD63: 0.389 | BE63: 0.456 | BF63: 0.00275 | BG63: 0.4105 | BH63: 0.1808730159
A64: TC2 | B64: TcIL3000_7_4990 | C64: 1701383 | D64: A | E64: G | F64: missense | G64: ABC transporter | H64: 0.03 | I64: 0 | J64: 0 | K64: 0 | L64: 0 | M64: 0.409 | N64: 0 | O64: 0.48 | P64: 0.909 | Q64: 0.4 | R64: 0 | S64: 0 | T64: 0 | U64: 0 | V64: 0 | W64: 0 | X64: 0 | Y64: 0 | Z64: 0 | AA64: 0 | AB64: 0.067 | AC64: 0 | AD64: 0 | AE64: 0 | AF64: 0 | AG64: 0 | AH64: 0 | AI64: 0 | AJ64: 0.011 | AK64: 0.2 | AL64: 0 | AM64: 0 | AN64: 0.581 | AO64: 0.412 | AP64: 0.625 | AQ64: 0 | AR64: 0 | AS64: 0 | AT64: 0 | AU64: 0 | AV64: 0.4 | AW64: 0 | AX64: 0 | AY64: 0 | AZ64: 0 | BA64: 0 | BB64: 0 | BC64: 0 | BD64: 0.518 | BE64: 0.376 | BF64: 0.0041875 | BG64: 0.247 | BH64: 0.1565238095
A65: TC1 | B65: TcIL3000_10_2630 | C65: 781704 | D65: C | E65: T | F65: missense | G65: ABC transporter | H65: 0 | I65: 0.588 | J65: 0 | K65: 0.756 | L65: 0.407 | M65: 0 | N65: 0.378 | O65: 0.61 | P65: 0 | Q65: 0 | R65: 0.615 | S65: 0.519 | T65: 0.658 | U65: 0.65 | V65: 1 | W65: 0.567 | X65: 0 | Y65: 0 | Z65: 0 | AA65: 0.517 | AB65: 0.314 | AC65: 0.419 | AD65: 0.394 | AE65: 0.5 | AF65: 0 | AG65: 0 | AH65: 0 | AI65: 0.645 | AJ65: 0 | AK65: 0 | AL65: 0 | AM65: 0.448 | AN65: 0 | AO65: 0 | AP65: 1 | AQ65: 0.483 | AR65: 0.444 | AS65: 0.348 | AT65: 0 | AU65: 0 | AV65: 0 | AW65: 0.46 | AX65: 0 | AY65: 0 | AZ65: 0 | BA65: 0 | BB65: 0.015 | BC65: 0 | BD65: 0 | BE65: 0 | BF65: 0.3400625 | BG65: 0 | BH65: 0.1533095238
A66: TC2 | B66: TcIL3000_10_9180 | C66: 2518182 | D66: A | E66: G | F66: synonymous | G66: ABC transporter | H66: 1 | I66: 1 | J66: 0.562 | K66: 1 | L66: 0.5 | M66: 1 | N66: 1 | O66: 0.667 | P66: 1 | Q66: 0.615 | R66: 1 | S66: 0 | T66: 0 | U66: 1 | V66: 1 | W66: 0.679 | X66: 0.438 | Y66: 0.4 | Z66: 1 | AA66: 1 | AB66: 1 | AC66: 1 | AD66: 1 | AE66: 1 | AF66: 1 | AG66: 0.973 | AH66: 1 | AI66: 1 | AJ66: 0.317 | AK66: 0.5 | AL66: 1 | AM66: 0.692 | AN66: 0.667 | AO66: 0.385 | AP66: 0 | AQ66: 1 | AR66: 0.6 | AS66: 1 | AT66: 1 | AU66: 0 | AV66: 0.429 | AW66: 0.625 | AX66: 0 | AY66: 1 | AZ66: 1 | BA66: 1 | BB66: 1 | BC66: 1 | BD66: 0.51 | BE66: 1 | BF66: 0.094375 | BG66: 0.255 | BH66: 0.1495555556
A67: TC2 | B67: TcIL3000_3_2420 | C67: 926373 | D67: G | E67: A | F67: missense | G67: ABC transporter | H67: 1 | I67: 0.679 | J67: 0.588 | K67: 0.444 | L67: 1 | M67: 0.533 | N67: 0.95 | O67: 0.371 | P67: 0.312 | Q67: 0.25 | R67: 0.95 | S67: 0.385 | T67: 0.552 | U67: 0 | V67: 0 | W67: 0 | X67: 0 | Y67: 0 | Z67: 0 | AA67: 0 | AB67: 0 | AC67: 0 | AD67: 0 | AE67: 0 | AF67: 0 | AG67: 0 | AH67: 0 | AI67: 0 | AJ67: 0.28 | AK67: 0.562 | AL67: 1 | AM67: 0.625 | AN67: 1 | AO67: 0 | AP67: 0.579 | AQ67: 0 | AR67: 0.286 | AS67: 1 | AT67: 1 | AU67: 0.792 | AV67: 0.3 | AW67: 0 | AX67: 0 | AY67: 0 | AZ67: 0 | BA67: 0 | BB67: 0 | BC67: 0 | BD67: 0.4 | BE67: 0 | BF67: 0 | BG67: 0.362 | BH67: 0.1406507937
A68: TC2 | B68: TcIL3000.11.1020 | C68: 263657 | D68: T | E68: C | F68: missense | G68: ABC transporter | H68: 0.529 | I68: 1 | J68: 1 | K68: 0.542 | L68: 0.3 | M68: 0.667 | N68: 1 | O68: 1 | P68: 0.412 | Q68: 1 | R68: 1 | S68: 0 | T68: 0 | U68: 0.984 | V68: 1 | W68: 1 | X68: 1 | Y68: 1 | Z68: 1 | AA68: 1 | AB68: 0.968 | AC68: 0.379 | AD68: 0.444 | AE68: 1 | AF68: 0.981 | AG68: 0.978 | AH68: 0.75 | AI68: 1 | AJ68: 1 | AK68: 0.6 | AL68: 0.75 | AM68: 0.458 | AN68: 0.5 | AO68: 0 | AP68: 0.591 | AQ68: 1 | AR68: 0.625 | AS68: 0.5 | AT68: 0.326 | AU68: 0.471 | AV68: 0.435 | AW68: 0.488 | AX68: 0.469 | AY68: 0.375 | AZ68: 1 | BA68: 1 | BB68: 1 | BC68: 1 | BD68: 0.577 | BE68: 0 | BF68: 0.03025 | BG68: 0.3115 | BH68: 0.1237380952
A69: TC2 | B69: TcIL3000_7_4990 | C69: 1700761 | D69: C | E69: T | F69: synonymous | G69: ABC transporter | H69: 0 | I69: 0 | J69: 0 | K69: 0 | L69: 0 | M69: 0 | N69: 0 | O69: 0.048 | P69: 0 | Q69: 0 | R69: 0.357 | S69: 0 | T69: 0 | U69: 0 | V69: 0 | W69: 0 | X69: 0 | Y69: 0 | Z69: 0 | AA69: 0 | AB69: 0 | AC69: 0 | AD69: 0 | AE69: 0 | AF69: 0.015 | AG69: 0.028 | AH69: 0 | AI69: 0 | AJ69: 0.024 | AK69: 0 | AL69: 0 | AM69: 0 | AN69: 0 | AO69: 0 | AP69: 0 | AQ69: 0 | AR69: 0 | AS69: 0 | AT69: 0.492 | AU69: 0 | AV69: 0 | AW69: 0 | AX69: 0.333 | AY69: 0 | AZ69: 0 | BA69: 0 | BB69: 0 | BC69: 0 | BD69: 0 | BE69: 0.559 | BF69: 0.0026875 | BG69: 0.2795 | BH69: 0.09535714286
A70: TC1 | B70: TcIL3000_10_9180 | C70: 2517603 | D70: T | E70: C | F70: synonymous | G70: ABC transporter | H70: 0 | I70: 0 | J70: 0 | K70: 0 | L70: 0 | M70: 0 | N70: 0 | O70: 0 | P70: 0 | Q70: 0 | R70: 0 | S70: 0 | T70: 0 | U70: 1 | V70: 0 | W70: 0.056 | X70: 0 | Y70: 0 | Z70: 0.64 | AA70: 0.652 | AB70: 0.481 | AC70: 1 | AD70: 1 | AE70: 0.524 | AF70: 0.946 | AG70: 1 | AH70: 0 | AI70: 1 | AJ70: 0.26 | AK70: 0 | AL70: 0.083 | AM70: 0 | AN70: 0 | AO70: 0 | AP70: 0 | AQ70: 0.537 | AR70: 0 | AS70: 0 | AT70: 0.613 | AU70: 0 | AV70: 0 | AW70: 0 | AX70: 0 | AY70: 0.6 | AZ70: 0 | BA70: 0.316 | BB70: 0.51 | BC70: 0 | BD70: 0 | BE70: 0 | BF70: 0.26705 | BG70: 0 | BH70: 0.08296031746
A71: TC2 | B71: TcIL3000_3_2420 | C71: 923527 | D71: C | E71: T | F71: missense | G71: ABC transporter | H71: 0.35 | I71: 1 | J71: 1 | K71: 1 | L71: 0.333 | M71: 1 | N71: 0.368 | O71: 1 | P71: 1 | Q71: 1 | R71: 0.238 | S71: 1 | T71: 0.968 | U71: 1 | V71: 1 | W71: 0.963 | X71: 1 | Y71: 1 | Z71: 1 | AA71: 0.969 | AB71: 1 | AC71: 1 | AD71: 1 | AE71: 1 | AF71: 1 | AG71: 1 | AH71: 1 | AI71: 1 | AJ71: 0.982 | AK71: 0 | AL71: 0.688 | AM71: 1 | AN71: 0.515 | AO71: 1 | AP71: 0.375 | AQ71: 1 | AR71: 1 | AS71: 0.062 | AT71: 0.5 | AU71: 0.25 | AV71: 1 | AW71: 1 | AX71: 1 | AY71: 1 | AZ71: 1 | BA71: 1 | BB71: 1 | BC71: 1 | BD71: 0 | BE71: 0.992 | BF71: 0.00425 | BG71: 0.496 | BH71: 0.08118253968
A72: TC2 | B72: TcIL3000_3_2420 | C72: 921493 | D72: A | E72: G | F72: missense | G72: ABC transporter | H72: 0.037 | I72: 0 | J72: 0 | K72: 0.833 | L72: 0 | M72: 0 | N72: 0 | O72: 0 | P72: 0 | Q72: 0.455 | R72: 0 | S72: 0 | T72: 0 | U72: 0 | V72: 0 | W72: 0.029 | X72: 0 | Y72: 0 | Z72: 0 | AA72: 0 | AB72: 0 | AC72: 0 | AD72: 0 | AE72: 0 | AF72: 0 | AG72: 0.036 | AH72: 0 | AI72: 0 | AJ72: 0.013 | AK72: 0 | AL72: 0 | AM72: 0 | AN72: 0 | AO72: 0.5 | AP72: 0.312 | AQ72: 0 | AR72: 0 | AS72: 0 | AT72: 0 | AU72: 0 | AV72: 0 | AW72: 0 | AX72: 0.286 | AY72: 0 | AZ72: 0 | BA72: 0 | BB72: 0 | BC72: 0 | BD72: 0.6 | BE72: 0.52 | BF72: =ABS(AVERAGE(U72:AI72,AQ72)-AVERAGE(AY72:BC72)) -> 0.0040625 | BG72: =ABS(AVERAGE(BD72:BE72)-AK72) -> 0.56 | BH72: =ABS(AVERAGE(H72:T72,AL72:AP72)-AVERAGE(AR72:AX72)) -> 0.07786507937
A73: TC2 | B73: TcIL3000_7_4990 | C73: 1701085 | D73: A | E73: G | F73: synonymous | G73: ABC transporter | H73: 0 | I73: 0 | J73: 0.3 | K73: 0 | L73: 0.611 | M73: 0 | N73: 0.014 | O73: 0 | P73: 0 | Q73: 0 | R73: 0 | S73: 0 | T73: 0 | U73: 0.447 | V73: 0.64 | W73: 0.969 | X73: 0 | Y73: 0 | Z73: 0.6 | AA73: 0 | AB73: 0.5 | AC73: 0.32 | AD73: 0.543 | AE73: 0 | AF73: 0.538 | AG73: 0.667 | AH73: 0.32 | AI73: 0 | AJ73: 0.01 | AK73: 0.714 | AL73: 0 | AM73: 0 | AN73: 0 | AO73: 0 | AP73: 0 | AQ73: 0 | AR73: 0 | AS73: 0 | AT73: 0 | AU73: 0 | AV73: 0.111 | AW73: 0 | AX73: 0 | AY73: 0 | AZ73: 1 | BA73: 0.962 | BB73: 0.333 | BC73: 0.478 | BD73: 0.667 | BE73: 0 | BF73: 0.2081 | BG73: 0.3805 | BH73: 0.03553174603
A74: TC2 | B74: TcIL3000_3_2420 | C74: 922052 | D74: T | E74: C | F74: synonymous | G74: ABC transporter | H74: 0.538 | I74: 1 | J74: 0.947 | K74: 0.516 | L74: 0.538 | M74: 1 | N74: 0.478 | O74: 1 | P74: 1 | Q74: 0.579 | R74: 0.55 | S74: 0.471 | T74: 0.379 | U74: 0.974 | V74: 0.985 | W74: 1 | X74: 1 | Y74: 0.935 | Z74: 1 | AA74: 1 | AB74: 0.967 | AC74: 1 | AD74: 1 | AE74: 1 | AF74: 1 | AG74: 1 | AH74: 1 | AI74: 1 | AJ74: 0.959 | AK74: 0.727 | AL74: 0.5 | AM74: 1 | AN74: 0.545 | AO74: 0 | AP74: 0.464 | AQ74: 1 | AR74: 1 | AS74: 0.333 | AT74: 0 | AU74: 0.316 | AV74: 1 | AW74: 1 | AX74: 0.667 | AY74: 1 | AZ74: 1 | BA74: 1 | BB74: 0.98 | BC74: 0.973 | BD74: 0.458 | BE74: 0.01 | BF74: 0.0007125 | BG74: 0.493 | BH74: 0.0225952381
A75: TC2 | B75: TcIL3000_10_2630 | C75: 781816 | D75: G | E75: C | F75: missense | G75: ABC transporter | H75: 0 | I75: 0 | J75: 0 | K75: 0 | L75: 0 | M75: 0 | N75: 0 | O75: 0 | P75: 0 | Q75: 0.348 | R75: 0 | S75: 0 | T75: 0 | U75: 0 | V75: 0 | W75: 0 | X75: 0 | Y75: 0.026 | Z75: 0 | AA75: 0 | AB75: 0 | AC75: 0 | AD75: 0 | AE75: 0 | AF75: 0 | AG75: 0 | AH75: 0 | AI75: 0 | AJ75: 0.005 | AK75: 0.308 | AL75: 0 | AM75: 0 | AN75: 0 | AO75: 0 | AP75: 0 | AQ75: 0 | AR75: 0 | AS75: 0 | AT75: 0 | AU75: 0 | AV75: 0.033 | AW75: 0 | AX75: 0 | AY75: 0 | AZ75: 0 | BA75: 0 | BB75: 0 | BC75: 0 | BD75: 0.51 | BE75: 1 | BF75: 0.001625 | BG75: 0.447 | BH75: 0.01461904762
A76: TC1 | B76: TcIL3000_3_2420 | C76: 921839 | D76: G | E76: A | F76: synonymous | G76: ABC transporter | H76: 0 | I76: 0 | J76: 0 | K76: 0 | L76: 0 | M76: 0 | N76: 0 | O76: 0 | P76: 0 | Q76: 0 | R76: 0 | S76: 0 | T76: 0 | U76: 1 | V76: 0 | W76: 0 | X76: 0.538 | Y76: 0.611 | Z76: 0.667 | AA76: 0 | AB76: 0 | AC76: 0.471 | AD76: 0.4 | AE76: 0 | AF76: 1 | AG76: 1 | AH76: 0.375 | AI76: 0.44 | AJ76: 0.216 | AK76: 0 | AL76: 0 | AM76: 0 | AN76: 0 | AO76: 0.333 | AP76: 0 | AQ76: 0.682 | AR76: 0 | AS76: 0.059 | AT76: 0 | AU76: 0 | AV76: 0 | AW76: 0 | AX76: 0 | AY76: 0 | AZ76: 1 | BA76: 0 | BB76: 0 | BC76: 0 | BD76: 0 | BE76: 0 | BF76: 0.249 | BG76: 0 | BH76: 0.01007142857
A77: TC2 | B77: TcIL3000_3_2420 | C77: 924939 | D77: A | E77: G | F77: missense | G77: ABC transporter | H77: 0 | I77: 0 | J77: 0 | K77: 0 | L77: 0 | M77: 0 | N77: 0 | O77: 0 | P77: 0 | Q77: 0 | R77: 0 | S77: 0 | T77: 0.033 | U77: 0.047 | V77: 0.017 | W77: 0.033 | X77: 0.033 | Y77: 0.091 | Z77: 0 | AA77: 0.174 | AB77: 0.048 | AC77: 0 | AD77: 0 | AE77: 0 | AF77: 0.047 | AG77: 0.032 | AH77: 0 | AI77: 0 | AJ77: 0.017 | AK77: 0 | AL77: 0 | AM77: 0 | AN77: 0 | AO77: 0 | AP77: 0 | AQ77: 0 | AR77: 0 | AS77: 0 | AT77: 0.021 | AU77: 0 | AV77: 0 | AW77: 0 | AX77: 0.045 | AY77: 0 | AZ77: 0 | BA77: 0 | BB77: 0 | BC77: 0.051 | BD77: 0.015 | BE77: 0.565 | BF77: 0.022425 | BG77: 0.29 | BH77: 0.007595238095
A78: TC2 | B78: TcIL3000_3_2420 | C78: 925874 | D78: G | E78: A | F78: synonymous | G78: ABC transporter | H78: 0 | I78: 0 | J78: 0 | K78: 0 | L78: 0 | M78: 0 | N78: 0 | O78: 0 | P78: 0.043 | Q78: 0 | R78: 0 | S78: 0.022 | T78: 0 | U78: 0.531 | V78: 0.415 | W78: 0 | X78: 0 | Y78: 0 | Z78: 0.444 | AA78: 0.5 | AB78: 0 | AC78: 0 | AD78: 0 | AE78: 0.533 | AF78: 0.016 | AG78: 0 | AH78: 0 | AI78: 0 | AJ78: 0 | AK78: 0 | AL78: 0 | AM78: 0 | AN78: 0 | AO78: 0 | AP78: 0 | AQ78: 0.031 | AR78: 0 | AS78: 0 | AT78: 0 | AU78: 0 | AV78: 0 | AW78: 0 | AX78: 0 | AY78: 0 | AZ78: 0 | BA78: 0 | BB78: 0.443 | BC78: 0 | BD78: 0 | BE78: 0.509 | BF78: 0.065775 | BG78: 0.2545 | BH78: 0.003611111111
A79: TC1 | B79: TcIL3000_9_2160 | C79: 708392 | D79: A | E79: G | F79: missense | G79: ABC transporter | H79: 0 | I79: 0 | J79: 0 | K79: 0 | L79: 0 | M79: 0 | N79: 0.032 | O79: 0 | P79: 0 | Q79: 0 | R79: 0 | S79: 0.686 | T79: 0.735 | U79: 0 | V79: 0.516 | W79: 1 | X79: 0.368 | Y79: 1 | Z79: 1 | AA79: 0.1 | AB79: 0 | AC79: 0 | AD79: 0 | AE79: 0 | AF79: 0 | AG79: 0 | AH79: 0 | AI79: 0 | AJ79: 0.01 | AK79: 0.333 | AL79: 0 | AM79: 0 | AN79: 0 | AO79: 0.538 | AP79: 0.64 | AQ79: 0 | AR79: 0 | AS79: 0.5 | AT79: 0.014 | AU79: 0 | AV79: 0 | AW79: 0.492 | AX79: 0 | AY79: 0 | AZ79: 0 | BA79: 0 | BB79: 0 | BC79: 0 | BD79: 0.494 | BE79: 0 | BF79: 0.249 | BG79: 0.086 | BH79: 0.002452380952
A80: TC1 | B80: TcIL3000_10_9180 | C80: 2518421 | D80: A | E80: G | F80: synonymous | G80: ABC transporter | H80: 0 | I80: 0.042 | J80: 0 | K80: 0 | L80: 0 | M80: 0 | N80: 0 | O80: 0 | P80: 0 | Q80: 0 | R80: 0 | S80: 0 | T80: 0 | U80: 1 | V80: 0 | W80: 0 | X80: 0 | Y80: 0 | Z80: 0.652 | AA80: 0.481 | AB80: 0.415 | AC80: 0.6 | AD80: 0.5 | AE80: 0.562 | AF80: 1 | AG80: 1 | AH80: 0.029 | AI80: 1 | AJ80: 0 | AK80: 0 | AL80: 0 | AM80: 0 | AN80: 0 | AO80: 0 | AP80: 0 | AQ80: 0.348 | AR80: 0 | AS80: 0 | AT80: 0 | AU80: 0 | AV80: 0 | AW80: 0 | AX80: 0 | AY80: 0.654 | AZ80: 0 | BA80: 0 | BB80: 0.444 | BC80: 0 | BD80: 0 | BE80: 0.011 | BF80: 0.2545875 | BG80: 0.0055 | BH80: 0.002333333333
A81: TC2 | B81: TcIL3000_3_2420 | C81: 922157 | D81: A | E81: G | F81: synonymous | G81: ABC transporter | H81: 0 | I81: 0 | J81: 0 | K81: 0 | L81: 0 | M81: 0 | N81: 0 | O81: 0 | P81: 0 | Q81: 0 | R81: 0 | S81: 0 | T81: 0 | U81: 0 | V81: 0.013 | W81: 0 | X81: 0 | Y81: 0 | Z81: 0 | AA81: 0 | AB81: 0 | AC81: 0 | AD81: 0 | AE81: 0 | AF81: 0 | AG81: 0.024 | AH81: 0 | AI81: 0 | AJ81: 0 | AK81: 0 | AL81: 0 | AM81: 0 | AN81: 0 | AO81: 0 | AP81: 0 | AQ81: 0 | AR81: 0 | AS81: 0 | AT81: 0.011 | AU81: 0 | AV81: 0 | AW81: 0 | AX81: 0 | AY81: 0 | AZ81: 0 | BA81: 0 | BB81: 0 | BC81: 0 | BD81: 0 | BE81: 0.505 | BF81: 0.0023125 | BG81: 0.2525 | BH81: 0.001571428571
A82: Zambia | B82: TcIL3000.11.2910 | C82: 894954 | D82: T | E82: C | F82: missense | G82: ABC transporter putativeadrenoleukodystrophy protein homolog | H82: 0 | I82: 0 | J82: 0.56 | K82: 0 | L82: 0 | M82: 0 | N82: 0.014 | O82: 0 | P82: 0 | Q82: 0 | R82: 0 | S82: 0.565 | T82: 0.81 | U82: 0.61 | V82: 1 | W82: 1 | X82: 1 | Y82: 0.917 | Z82: 1 | AA82: 1 | AB82: 1 | AC82: 1 | AD82: 1 | AE82: 1 | AF82: 1 | AG82: 1 | AH82: 1 | AI82: 0.473 | AJ82: 0.389 | AK82: 0.167 | AL82: 0 | AM82: 0 | AN82: 0.27 | AO82: 0.333 | AP82: 0 | AQ82: 1 | AR82: 0.182 | AS82: 0 | AT82: 1 | AU82: 1 | AV82: 0.438 | AW82: 1 | AX82: 0 | AY82: 0.286 | AZ82: 0.944 | BA82: 1 | BB82: 0.98 | BC82: 1 | BD82: 0.5 | BE82: 0 | BF82: 0.0955 | BG82: 0.083 | BH82: 0.3753650794
A83: Zambia | B83: TcIL3000.11.2910 | C83: 894794 | D83: A | E83: G | F83: missense | G83: ABC transporter putativeadrenoleukodystrophy protein homolog | H83: 0.333 | I83: 0.471 | J83: 0.667 | K83: 0.538 | L83: 0.227 | M83: 0.458 | N83: 0.395 | O83: 0.643 | P83: 0.714 | Q83: 0.909 | R83: 0.462 | S83: 0 | T83: 0 | U83: 0 | V83: 0 | W83: 0 | X83: 0 | Y83: 0 | Z83: 0 | AA83: 0 | AB83: 0 | AC83: 0 | AD83: 0 | AE83: 0 | AF83: 0 | AG83: 0 | AH83: 0 | AI83: 0.5 | AJ83: 0.569 | AK83: 0 | AL83: 0.4 | AM83: 0.611 | AN83: 0.684 | AO83: 0 | AP83: 0 | AQ83: 0 | AR83: 0 | AS83: 0.5 | AT83: 0 | AU83: 0 | AV83: 0 | AW83: 0 | AX83: 0 | AY83: 0 | AZ83: 0 | BA83: 0 | BB83: 0.032 | BC83: 0 | BD83: 0 | BE83: 0.031 | BF83: 0.02485 | BG83: 0.0155 | BH83: 0.3459047619
A84: Zambia | B84: TcIL3000_2_1440 | C84: 667304 | D84: G | E84: A | F84: missense | G84: ABC transporter putativemultidrug resistance protein putative | H84: 0.576 | I84: 0.542 | J84: 0.5 | K84: 0.419 | L84: 0.545 | M84: 0.429 | N84: 0.468 | O84: 0.029 | P84: 0.571 | Q84: 0.556 | R84: 0.231 | S84: 0 | T84: 0 | U84: 0 | V84: 0 | W84: 0.053 | X84: 0 | Y84: 0 | Z84: 0 | AA84: 0 | AB84: 0 | AC84: 0 | AD84: 0 | AE84: 0 | AF84: 0.019 | AG84: 0.026 | AH84: 0 | AI84: 0 | AJ84: 0.972 | AK84: 0 | AL84: 0.5 | AM84: 0.8 | AN84: 0.75 | AO84: 0.609 | AP84: 0 | AQ84: 0.04 | AR84: 0.667 | AS84: 0 | AT84: 0.026 | AU84: 0 | AV84: 0 | AW84: 0 | AX84: 0 | AY84: 0 | AZ84: 0 | BA84: 0 | BB84: 0 | BC84: 0 | BD84: 0 | BE84: 0 | BF84: 0.008625 | BG84: 0 | BH84: 0.3190555556
A85: Zambia | B85: TcIL3000_2_1440 | C85: 667509 | D85: T | E85: C | F85: missense | G85: ABC transporter putativemultidrug resistance protein putative | H85: 0.486 | I85: 0.48 | J85: 0.692 | K85: 0.455 | L85: 0.353 | M85: 0.571 | N85: 0.519 | O85: 0 | P85: 0.333 | Q85: 0.2 | R85: 0.542 | S85: 0 | T85: 0 | U85: 0 | V85: 0.009 | W85: 0 | X85: 0 | Y85: 0 | Z85: 0 | AA85: 0 | AB85: 0 | AC85: 0 | AD85: 0 | AE85: 0 | AF85: 0 | AG85: 0 | AH85: 0.033 | AI85: 0 | AJ85: 1 | AK85: 0 | AL85: 0.3 | AM85: 0.588 | AN85: 0.629 | AO85: 0.417 | AP85: 0 | AQ85: 0 | AR85: 0.5 | AS85: 0 | AT85: 0.015 | AU85: 0 | AV85: 0 | AW85: 0 | AX85: 0 | AY85: 0 | AZ85: 0 | BA85: 0 | BB85: 0.016 | BC85: 0 | BD85: 0 | BE85: 0.01 | BF85: 0.000575 | BG85: 0.005 | BH85: 0.2911507937
A86: Zambia | B86: TcIL3000_2_1440 | C86: 666864 | D86: G | E86: C | F86: missense | G86: ABC transporter putativemultidrug resistance protein putative | H86: 0.452 | I86: 1 | J86: 0.524 | K86: 0.591 | L86: 1 | M86: 1 | N86: 0.985 | O86: 0.682 | P86: 1 | Q86: 1 | R86: 1 | S86: 0 | T86: 0 | U86: 0 | V86: 0 | W86: 0 | X86: 0 | Y86: 0 | Z86: 0 | AA86: 0 | AB86: 0 | AC86: 0 | AD86: 0 | AE86: 0 | AF86: 0 | AG86: 0 | AH86: 0 | AI86: 0 | AJ86: 0.98 | AK86: 0.7 | AL86: 0.4 | AM86: 0.621 | AN86: 1 | AO86: 0.481 | AP86: 0.484 | AQ86: 0 | AR86: 0.273 | AS86: 0.542 | AT86: 0.456 | AU86: 0 | AV86: 1 | AW86: 0 | AX86: 0.5 | AY86: 0 | AZ86: 0 | BA86: 0 | BB86: 0 | BC86: 0 | BD86: 0.431 | BE86: 0.989 | BF86: 0 | BG86: 0.01 | BH86: 0.283031746
A87: TC2 | B87: TcIL3000_2_1440 | C87: 666755 | D87: A | E87: T | F87: missense | G87: ABC transporter putativemultidrug resistance protein putative | H87: 0 | I87: 0 | J87: 0 | K87: 0 | L87: 0 | M87: 0 | N87: 0.016 | O87: 0 | P87: 0 | Q87: 0 | R87: 0 | S87: 0 | T87: 0 | U87: 1 | V87: 1 | W87: 0.571 | X87: 1 | Y87: 1 | Z87: 1 | AA87: 1 | AB87: 1 | AC87: 1 | AD87: 1 | AE87: 1 | AF87: 0.462 | AG87: 0.5 | AH87: 1 | AI87: 0.561 | AJ87: 0.008 | AK87: 0.8 | AL87: 0 | AM87: 0 | AN87: 0 | AO87: 0 | AP87: 0 | AQ87: 0.2 | AR87: 0 | AS87: 0 | AT87: 0.469 | AU87: 0 | AV87: 0 | AW87: 0.465 | AX87: 0 | AY87: 0.476 | AZ87: 1 | BA87: 1 | BB87: 1 | BC87: 1 | BD87: 0.441 | BE87: 0 | BF87: 0.064325 | BG87: 0.5795 | BH87: 0.1325396825
A88: Zambia | B88: TcIL3000_10_10100 | C88: 2756379 | D88: T | E88: G | F88: missense | G88: ABC1 protein putative | H88: 0.5 | I88: 1 | J88: 1 | K88: 0.6 | L88: 0.471 | M88: 0.545 | N88: 0.986 | O88: 1 | P88: 0.562 | Q88: 0.375 | R88: 0.72 | S88: 0.65 | T88: 0.533 | U88: 1 | V88: 0.609 | W88: 1 | X88: 0.955 | Y88: 1 | Z88: 0.941 | AA88: 0.971 | AB88: 0.966 | AC88: 1 | AD88: 1 | AE88: 1 | AF88: 1 | AG88: 1 | AH88: 1 | AI88: 1 | AJ88: 0.987 | AK88: 0 | AL88: 0.611 | AM88: 1 | AN88: 1 | AO88: 1 | AP88: 0 | AQ88: 1 | AR88: 1 | AS88: 0.2 | AT88: 0.49 | AU88: 0.222 | AV88: 0.846 | AW88: 0 | AX88: 0.227 | AY88: 1 | AZ88: 1 | BA88: 1 | BB88: 0.952 | BC88: 1 | BD88: 0 | BE88: 0 | BF88: 0.025275 | BG88: 0 | BH88: 0.2709603175
A89: TC2 | B89: TcIL3000_10_10100 | C89: 2756613 | D89: G | E89: A | F89: missense | G89: ABC1 protein putative | H89: 0 | I89: 0 | J89: 0 | K89: 0 | L89: 0.667 | M89: 0.037 | N89: 0 | O89: 0 | P89: 0 | Q89: 0 | R89: 0.176 | S89: 0 | T89: 0 | U89: 0 | V89: 0 | W89: 0.069 | X89: 0 | Y89: 0 | Z89: 0.087 | AA89: 0 | AB89: 0 | AC89: 0 | AD89: 0 | AE89: 0 | AF89: 0 | AG89: 0 | AH89: 0 | AI89: 0 | AJ89: 0.011 | AK89: 0 | AL89: 0 | AM89: 0 | AN89: 0.03 | AO89: 0 | AP89: 0 | AQ89: 0 | AR89: 0 | AS89: 0 | AT89: 0.018 | AU89: 0.5 | AV89: 0.4 | AW89: 0 | AX89: 0.231 | AY89: 0 | AZ89: 0 | BA89: 0 | BB89: 0 | BC89: 0 | BD89: 0 | BE89: 0.5 | BF89: 0.00975 | BG89: 0.25 | BH89: 0.1135873016
A90: TC2 | B90: TcIL3000_10_10100 | C90: 2756589 | D90: A | E90: G | F90: missense | G90: ABC1 protein putative | H90: 0.514 | I90: 1 | J90: 1 | K90: 0.522 | L90: 1 | M90: 0.577 | N90: 0.972 | O90: 1 | P90: 0.722 | Q90: 0.75 | R90: 1 | S90: 0.593 | T90: 0.409 | U90: 1 | V90: 0.571 | W90: 1 | X90: 1 | Y90: 1 | Z90: 1 | AA90: 1 | AB90: 1 | AC90: 1 | AD90: 1 | AE90: 1 | AF90: 1 | AG90: 1 | AH90: 1 | AI90: 1 | AJ90: 1 | AK90: 0 | AL90: 0.667 | AM90: 1 | AN90: 1 | AO90: 1 | AP90: 0 | AQ90: 1 | AR90: 1 | AS90: 0.421 | AT90: 0.574 | AU90: 1 | AV90: 1 | AW90: 0.024 | AX90: 1 | AY90: 1 | AZ90: 1 | BA90: 1 | BB90: 1 | BC90: 1 | BD90: 0 | BE90: 0.531 | BF90: 0.0268125 | BG90: 0.2655 | BH90: 0.04555555556
A91: Zambia | B91: TcIL3000_6_980 | C91: 317459 | D91: C | E91: G | F91: missense | G91: alkyl-dihydroxyacetone phosphate synthase putativealkyl-DHAP synthase putativealkylglycerone-phosphate synthase putative | H91: 0.621 | I91: 0.381 | J91: 0.632 | K91: 0.562 | L91: 0.5 | M91: 0.414 | N91: 0.453 | O91: 0.5 | P91: 0.688 | Q91: 0.652 | R91: 0.571 | S91: 0 | T91: 0 | U91: 0 | V91: 0 | W91: 0 | X91: 0 | Y91: 0 | Z91: 0 | AA91: 0 | AB91: 0 | AC91: 0 | AD91: 0 | AE91: 0 | AF91: 0.026 | AG91: 0 | AH91: 0 | AI91: 0 | AJ91: 0 | AK91: 0 | AL91: 0.588 | AM91: 0.516 | AN91: 0.455 | AO91: 0 | AP91: 0 | AQ91: 0 | AR91: 0.375 | AS91: 0 | AT91: 0 | AU91: 0 | AV91: 0 | AW91: 0 | AX91: 0 | AY91: 0 | AZ91: 0 | BA91: 0 | BB91: 0 | BC91: 0 | BD91: 0 | BE91: 0 | BF91: 0.001625 | BG91: 0 | BH91: 0.3649285714
A92: Zambia | B92: TcIL3000_6_980 | C92: 317590 | D92: T | E92: C | F92: missense | G92: alkyl-dihydroxyacetone phosphate synthase putativealkyl-DHAP synthase putativealkylglycerone-phosphate synthase putative | H92: 0.519 | I92: 0.542 | J92: 0.68 | K92: 0.4 | L92: 0.615 | M92: 0.5 | N92: 0.343 | O92: 0.444 | P92: 0.5 | Q92: 0.65 | R92: 0.423 | S92: 0 | T92: 0 | U92: 0 | V92: 0 | W92: 0 | X92: 0 | Y92: 0 | Z92: 0 | AA92: 0 | AB92: 0 | AC92: 0 | AD92: 0 | AE92: 0 | AF92: 0 | AG92: 0 | AH92: 0 | AI92: 0 | AJ92: 0.018 | AK92: 0 | AL92: 0.455 | AM92: 0.406 | AN92: 0.455 | AO92: 0 | AP92: 0 | AQ92: 0 | AR92: 0.2 | AS92: 0 | AT92: 0.03 | AU92: 0 | AV92: 0 | AW92: 0 | AX92: 0 | AY92: 0 | AZ92: 0 | BA92: 0 | BB92: 0 | BC92: 0 | BD92: 0 | BE92: 0.012 | BF92: 0 | BG92: 0.006 | BH92: 0.3522539683
A93: Zambia | B93: TcIL3000_6_980 | C93: 317663 | D93: C | E93: T | F93: missense | G93: alkyl-dihydroxyacetone phosphate synthase putativealkyl-DHAP synthase putativealkylglycerone-phosphate synthase putative | H93: 0.429 | I93: 0.526 | J93: 0.583 | K93: 0.4 | L93: 0.5 | M93: 0.5 | N93: 0.366 | O93: 0.323 | P93: 0.167 | Q93: 0.8 | R93: 0.353 | S93: 0 | T93: 0 | U93: 0 | V93: 0 | W93: 0 | X93: 0 | Y93: 0 | Z93: 0.042 | AA93: 0 | AB93: 0 | AC93: 0 | AD93: 0 | AE93: 0 | AF93: 0 | AG93: 0 | AH93: 0 | AI93: 0 | AJ93: 0.008 | AK93: 0 | AL93: 0.375 | AM93: 0.345 | AN93: 0.389 | AO93: 0 | AP93: 0 | AQ93: 0 | AR93: 0.429 | AS93: 0 | AT93: 0 | AU93: 0 | AV93: 0 | AW93: 0 | AX93: 0 | AY93: 0 | AZ93: 0 | BA93: 0 | BB93: 0 | BC93: 0 | BD93: 0 | BE93: 0 | BF93: 0.002625 | BG93: 0 | BH93: 0.2751587302
A94: Zambia | B94: TcIL3000_6_980 | C94: 317651 | D94: A | E94: G | F94: missense | G94: alkyl-dihydroxyacetone phosphate synthase putativealkyl-DHAP synthase putativealkylglycerone-phosphate synthase putative | H94: 0.417 | I94: 0.5 | J94: 0.538 | K94: 0.423 | L94: 0.533 | M94: 0.562 | N94: 0.358 | O94: 0.333 | P94: 0.154 | Q94: 0.8 | R94: 0.278 | S94: 0 | T94: 0 | U94: 0 | V94: 0 | W94: 0 | X94: 0 | Y94: 0 | Z94: 0 | AA94: 0 | AB94: 0 | AC94: 0 | AD94: 0 | AE94: 0 | AF94: 0 | AG94: 0.03 | AH94: 0.042 | AI94: 0 | AJ94: 0 | AK94: 0 | AL94: 0.375 | AM94: 0.333 | AN94: 0.368 | AO94: 0 | AP94: 0 | AQ94: 0 | AR94: 0.429 | AS94: 0 | AT94: 0.012 | AU94: 0 | AV94: 0 | AW94: 0 | AX94: 0 | AY94: 0 | AZ94: 0 | BA94: 0 | BB94: 0 | BC94: 0 | BD94: 0.014 | BE94: 0.009 | BF94: 0.0045 | BG94: 0.0115 | BH94: 0.2687777778
A95: Zambia | B95: TcIL3000.11.9840 | C95: 2666308 | D95: C | E95: T | F95: missense | G95: Archaeal/vacuolar-type H+-ATPase subunit E | H95: 1 | I95: 0.286 | J95: 0.222 | K95: 0.652 | L95: 0.526 | M95: 0.542 | N95: 1 | O95: 1 | P95: 0.1 | Q95: 0 | R95: 1 | S95: 0 | T95: 0 | U95: 0 | V95: 0 | W95: 0 | X95: 0 | Y95: 0 | Z95: 0 | AA95: 0 | AB95: 0.036 | AC95: 0 | AD95: 0 | AE95: 0 | AF95: 0 | AG95: 0 | AH95: 0 | AI95: 0 | AJ95: 0.674 | AK95: 0 | AL95: 1 | AM95: 0.478 | AN95: 0.586 | AO95: 0 | AP95: 0.615 | AQ95: 0 | AR95: 0.333 | AS95: 0.619 | AT95: 0 | AU95: 0.067 | AV95: 0.75 | AW95: 0 | AX95: 0 | AY95: 0 | AZ95: 0.04 | BA95: 0 | BB95: 0 | BC95: 0.429 | BD95: 0 | BE95: 0 | BF95: 0.09155 | BG95: 0 | BH95: 0.2476746032
A96: TC1 | B96: TcIL3000.11.9840 | C96: 2666300 | D96: T | E96: C | F96: missense | G96: Archaeal/vacuolar-type H+-ATPase subunit E | H96: 0 | I96: 0 | J96: 0 | K96: 0 | L96: 0 | M96: 0.043 | N96: 0.018 | O96: 0 | P96: 0 | Q96: 0 | R96: 0 | S96: 0 | T96: 0 | U96: 1 | V96: 0 | W96: 0 | X96: 0 | Y96: 0 | Z96: 0 | AA96: 0 | AB96: 0 | AC96: 1 | AD96: 1 | AE96: 0 | AF96: 0.021 | AG96: 0 | AH96: 0 | AI96: 0.48 | AJ96: 0.312 | AK96: 0 | AL96: 0 | AM96: 0 | AN96: 0 | AO96: 0 | AP96: 0 | AQ96: 0.667 | AR96: 0 | AS96: 0 | AT96: 0 | AU96: 0 | AV96: 0 | AW96: 0 | AX96: 0 | AY96: 0 | AZ96: 0 | BA96: 0 | BB96: 0 | BC96: 0 | BD96: 0 | BE96: 0 | BF96: 0.2605 | BG96: 0 | BH96: 0.003388888889
A97: Zambia | B97: TcIL3000_6_4420 | C97: 1194261 | D97: C | E97: T | F97: missense | G97: ATP synthase epsilon chain putative | H97: 0.528 | I97: 0.5 | J97: 0.571 | K97: 0.381 | L97: 0.357 | M97: 0.538 | N97: 0.434 | O97: 0.538 | P97: 0.769 | Q97: 0 | R97: 0.406 | S97: 0.452 | T97: 0.281 | U97: 0 | V97: 0.033 | W97: 0 | X97: 0 | Y97: 0 | Z97: 0 | AA97: 0 | AB97: 0 | AC97: 0 | AD97: 0 | AE97: 0 | AF97: 0 | AG97: 0 | AH97: 0 | AI97: 0.5 | AJ97: 0.355 | AK97: 0 | AL97: 0.167 | AM97: 0.72 | AN97: 0 | AO97: 0 | AP97: 0 | AQ97: 0 | AR97: 0.429 | AS97: 0 | AT97: 0 | AU97: 0 | AV97: 0 | AW97: 0 | AX97: 0 | AY97: 0 | AZ97: 0 | BA97: 0 | BB97: 0 | BC97: 0 | BD97: 0 | BE97: 0 | BF97: 0.0333125 | BG97: 0 | BH97: 0.3077142857
A98: Zambia | B98: TcIL3000_6_4420 | C98: 1194336 | D98: G | E98: A | F98: missense | G98: ATP synthase epsilon chain putative | H98: 0.525 | I98: 0.6 | J98: 0.476 | K98: 0.385 | L98: 0.32 | M98: 0.485 | N98: 0.359 | O98: 0.594 | P98: 0.5 | Q98: 0 | R98: 0.481 | S98: 0.455 | T98: 0.314 | U98: 0 | V98: 0.011 | W98: 0 | X98: 0 | Y98: 0 | Z98: 0 | AA98: 0 | AB98: 0.029 | AC98: 0 | AD98: 0 | AE98: 0 | AF98: 0 | AG98: 0 | AH98: 0 | AI98: 0.49 | AJ98: 0.28 | AK98: 0 | AL98: 0.182 | AM98: 0.593 | AN98: 0 | AO98: 0 | AP98: 0 | AQ98: 0 | AR98: 0.6 | AS98: 0 | AT98: 0.014 | AU98: 0 | AV98: 0 | AW98: 0 | AX98: 0 | AY98: 0 | AZ98: 0 | BA98: 0 | BB98: 0 | BC98: 0 | BD98: 0 | BE98: 0 | BF98: 0.033125 | BG98: 0 | BH98: 0.2605634921
A99: TC2 | B99: TcIL3000_10_11830 | C99: 3217201 | D99: A | E99: G | F99: missense | G99: ATP synthase F1-assembly protein | H99: 0 | I99: 0 | J99: 0 | K99: 0 | L99: 0 | M99: 0 | N99: 0.015 | O99: 0.382 | P99: 0 | Q99: 0 | R99: 0 | S99: 0 | T99: 0 | U99: 0.04 | V99: 0.013 | W99: 0.034 | X99: 0 | Y99: 0.042 | Z99: 0 | AA99: 0 | AB99: 0.036 | AC99: 0 | AD99: 0 | AE99: 0 | AF99: 0.022 | AG99: 0 | AH99: 0 | AI99: 0 | AJ99: 0.01 | AK99: 0 | AL99: 0 | AM99: 0 | AN99: 0 | AO99: 0 | AP99: 0 | AQ99: 0 | AR99: 0 | AS99: 0 | AT99: 0 | AU99: 0.5 | AV99: 0 | AW99: 0 | AX99: 0 | AY99: 0 | AZ99: 0 | BA99: 0 | BB99: 0 | BC99: 0 | BD99: 0 | BE99: 1 | BF99: 0.0116875 | BG99: 0.5 | BH99: 0.04937301587
A100: TC1 | B100: TcIL3000_10_590 | C100: 156640 | D100: G | E100: C | F100: missense | G100: ATP synthase putative | H100: 0 | I100: 0 | J100: 0 | K100: 0 | L100: 0 | M100: 0 | N100: 0 | O100: 0 | P100: 0 | Q100: 0 | R100: 0 | S100: 0 | T100: 0 | U100: 0.026 | V100: 1 | W100: 0.6 | X100: 1 | Y100: 0.524 | Z100: 0 | AA100: 0 | AB100: 0 | AC100: 0 | AD100: 0 | AE100: 0 | AF100: 0.632 | AG100: 0.542 | AH100: 0.375 | AI100: 0 | AJ100: 0.248 | AK100: 0 | AL100: 0 | AM100: 0 | AN100: 0 | AO100: 0 | AP100: 0 | AQ100: 0 | AR100: 0 | AS100: 0 | AT100: 0 | AU100: 0 | AV100: 0 | AW100: 0 | AX100: 0 | AY100: 0 | AZ100: 0 | BA100: 0 | BB100: 0 | BC100: 0 | BD100: 0 | BE100: 0 | BF100: 0.2936875 | BG100: 0 | BH100: 0
A101: Zambia | B101: TcIL3000_9_6390 | C101: 2149365 | D101: G | E101: A | F101: missense | G101: ATP11 | H101: 0.593 | I101: 0.581 | J101: 0.45 | K101: 0.652 | L101: 0.333 | M101: 0.357 | N101: 0.016 | O101: 0.556 | P101: 0.762 | Q101: 0.6 | R101: 0 | S101: 0.523 | T101: 0.567 | U101: 0 | V101: 0 | W101: 0 | X101: 0.042 | Y101: 0 | Z101: 0 | AA101: 0 | AB101: 0 | AC101: 0 | AD101: 0.033 | AE101: 0 | AF101: 0.013 | AG101: 0.023 | AH101: 0.042 | AI101: 0 | AJ101: 0.414 | AK101: 0 | AL101: 0.526 | AM101: 0.467 | AN101: 0.4 | AO101: 0 | AP101: 0 | AQ101: 0 | AR101: 0.273 | AS101: 0.375 | AT101: 0 | AU101: 0 | AV101: 0.053 | AW101: 0 | AX101: 0 | AY101: 0 | AZ101: 0 | BA101: 0 | BB101: 0.017 | BC101: 0 | BD101: 0 | BE101: 0.017 | BF101: 0.0061625 | BG101: 0.0085 | BH101: 0.3100238095
A102: Zambia | B102: TcIL3000_5_4050 | C102: 1032806 | D102: C | E102: T | F102: missense | G102: delta-adaptin putativeadaptor complex protein 28AP 29 3 delta subunit 2C putative | H102: 0.348 | I102: 0.286 | J102: 0.636 | K102: 0.52 | L102: 0.526 | M102: 0.636 | N102: 1 | O102: 0.526 | P102: 0.444 | Q102: 0.467 | R102: 1 | S102: 0 | T102: 0 | U102: 0 | V102: 0 | W102: 0 | X102: 0 | Y102: 0 | Z102: 0 | AA102: 0 | AB102: 0 | AC102: 0 | AD102: 0 | AE102: 0 | AF102: 0 | AG102: 0 | AH102: 0 | AI102: 0 | AJ102: 0.753 | AK102: 0 | AL102: 0.571 | AM102: 0.176 | AN102: 0.964 | AO102: 0.368 | AP102: 0.611 | AQ102: 0 | AR102: 0.25 | AS102: 0.737 | AT102: 0.016 | AU102: 0 | AV102: 0 | AW102: 0 | AX102: 0 | AY102: 0 | AZ102: 0 | BA102: 0 | BB102: 0 | BC102: 0.03 | BD102: 0 | BE102: 0 | BF102: 0.006 | BG102: 0 | BH102: 0.3611031746
A103: Zambia | B103: TcIL3000_5_4050 | C103: 1032751 | D103: G | E103: A | F103: missense | G103: delta-adaptin putativeadaptor complex protein 28AP 29 3 delta subunit 2C putative | H103: 0.545 | I103: 0.435 | J103: 0.667 | K103: 0.52 | L103: 0.312 | M103: 0.52 | N103: 1 | O103: 0.458 | P103: 0.4 | Q103: 0.474 | R103: 0.829 | S103: 0 | T103: 0 | U103: 0 | V103: 0 | W103: 0 | X103: 0 | Y103: 0 | Z103: 0 | AA103: 0 | AB103: 0.036 | AC103: 0 | AD103: 0 | AE103: 0 | AF103: 0.019 | AG103: 0 | AH103: 0 | AI103: 0 | AJ103: 0.69 | AK103: 0 | AL103: 0.429 | AM103: 0.227 | AN103: 0.762 | AO103: 0.385 | AP103: 0.6 | AQ103: 0 | AR103: 0.333 | AS103: 0.643 | AT103: 0 | AU103: 0 | AV103: 0 | AW103: 0 | AX103: 0 | AY103: 0 | AZ103: 0 | BA103: 0 | BB103: 0 | BC103: 0 | BD103: 0 | BE103: 0 | BF103: 0.0034375 | BG103: 0 | BH103: 0.3362936508
A104: Zambia | B104: TcIL3000_5_4050 | C104: 1032274 | D104: G | E104: T | F104: missense | G104: delta-adaptin putativeadaptor complex protein 28AP 29 3 delta subunit 2C putative | H104: 0.467 | I104: 0.5 | J104: 0 | K104: 0.909 | L104: 0.562 | M104: 0.48 | N104: 0.955 | O104: 0.357 | P104: 0.375 | Q104: 0.25 | R104: 1 | S104: 0 | T104: 0 | U104: 0 | V104: 0.017 | W104: 0 | X104: 0 | Y104: 0 | Z104: 0 | AA104: 0.031 | AB104: 0.027 | AC104: 0 | AD104: 0.032 | AE104: 0 | AF104: 0 | AG104: 0 | AH104: 0 | AI104: 0 | AJ104: 0.6 | AK104: 0 | AL104: 0.4 | AM104: 0.636 | AN104: 1 | AO104: 0.45 | AP104: 0.571 | AQ104: 0 | AR104: 0.8 | AS104: 0.462 | AT104: 0 | AU104: 0 | AV104: 0 | AW104: 0 | AX104: 0 | AY104: 0 | AZ104: 0 | BA104: 0.077 | BB104: 0 | BC104: 0.054 | BD104: 0 | BE104: 0 | BF104: 0.0195125 | BG104: 0 | BH104: 0.3148253968
A105: TC2 | B105: TcIL3000_5_4050 | C105: 1032803 | D105: A | E105: G | F105: missense | G105: delta-adaptin putativeadaptor complex protein 28AP 29 3 delta subunit 2C putative | H105: 0 | I105: 0 | J105: 0 | K105: 0 | L105: 0 | M105: 0 | N105: 0 | O105: 0 | P105: 0 | Q105: 0 | R105: 0.037 | S105: 0 | T105: 0 | U105: 0 | V105: 0 | W105: 0.037 | X105: 0 | Y105: 0 | Z105: 0 | AA105: 0.043 | AB105: 0 | AC105: 0 | AD105: 0 | AE105: 0 | AF105: 0 | AG105: 0.045 | AH105: 0 | AI105: 0 | AJ105: 0.01 | AK105: 0.6 | AL105: 0 | AM105: 0 | AN105: 0 | AO105: 0 | AP105: 0 | AQ105: 0 | AR105: 0 | AS105: 0 | AT105: 0.484 | AU105: 0 | AV105: 0.455 | AW105: 0 | AX105: 0.438 | AY105: 0 | AZ105: 0 | BA105: 0 | BB105: 0 | BC105: 0 | BD105: 0.486 | BE105: 0.013 | BF105: 0.0078125 | BG105: 0.3505 | BH105: 0.1946587302
A106: TC2 | B106: TcIL3000_5_4050 | C106: 1033082 | D106: A | E106: G | F106: missense | G106: delta-adaptin putativeadaptor complex protein 28AP 29 3 delta subunit 2C putative | H106: 0.3 | I106: 0 | J106: 0.5 | K106: 0 | L106: 0.611 | M106: 0 | N106: 0 | O106: 0.364 | P106: 0 | Q106: 0 | R106: 0 | S106: 0 | T106: 0 | U106: 0 | V106: 0.019 | W106: 0 | X106: 0 | Y106: 0 | Z106: 0 | AA106: 0.048 | AB106: 0 | AC106: 0 | AD106: 0 | AE106: 0 | AF106: 0 | AG106: 0 | AH106: 0 | AI106: 0 | AJ106: 0 | AK106: 0.25 | AL106: 0.3 | AM106: 0 | AN106: 0 | AO106: 0 | AP106: 0 | AQ106: 0 | AR106: 0 | AS106: 0.556 | AT106: 0.56 | AU106: 0 | AV106: 0 | AW106: 0.486 | AX106: 0.5 | AY106: 0 | AZ106: 0 | BA106: 0 | BB106: 0 | BC106: 0 | BD106: 0.415 | BE106: 1 | BF106: 0.0041875 | BG106: 0.4575 | BH106: 0.1850079365
A107: TC2 | B107: TcIL3000_5_4050 | C107: 1032776 | D107: G | E107: A | F107: missense | G107: delta-adaptin putativeadaptor complex protein 28AP 29 3 delta subunit 2C putative | H107: 0.458 | I107: 0 | J107: 0.364 | K107: 0 | L107: 0.643 | M107: 0 | N107: 0 | O107: 0.522 | P107: 0 | Q107: 0 | R107: 0.031 | S107: 0 | T107: 0 | U107: 0 | V107: 0 | W107: 0 | X107: 0 | Y107: 0 | Z107: 0 | AA107: 0.04 | AB107: 0 | AC107: 0 | AD107: 0 | AE107: 0 | AF107: 0 | AG107: 0 | AH107: 0 | AI107: 0 | AJ107: 0 | AK107: 0.455 | AL107: 0.375 | AM107: 0 | AN107: 0 | AO107: 0 | AP107: 0 | AQ107: 0 | AR107: 0 | AS107: 0 | AT107: 0.457 | AU107: 0 | AV107: 0 | AW107: 0.551 | AX107: 0.476 | AY107: 0 | AZ107: 0 | BA107: 0 | BB107: 0 | BC107: 0 | BD107: 0.513 | BE107: 1 | BF107: 0.0025 | BG107: 0.3015 | BH107: 0.07905555556
A108: TC2, Zambia | B108: TcIL3000_8_1200 | C108: 328374 | D108: A | E108: G | F108: missense | G108: DMT | H108: 0 | I108: 0 | J108: 0 | K108: 0 | L108: 0 | M108: 0.022 | N108: 0 | O108: 0 | P108: 0 | Q108: 0 | R108: 0 | S108: 0 | T108: 0 | U108: 0 | V108: 0 | W108: 0 | X108: 0 | Y108: 0 | Z108: 0 | AA108: 0 | AB108: 0 | AC108: 0 | AD108: 0 | AE108: 0 | AF108: 0.544 | AG108: 0.636 | AH108: 1 | AI108: 0.017 | AJ108: 0.01 | AK108: 0.364 | AL108: 0 | AM108: 0.421 | AN108: 0 | AO108: 0 | AP108: 0.542 | AQ108: 0.537 | AR108: 0.571 | AS108: 0.333 | AT108: 0.435 | AU108: 0.1 | AV108: 0.5 | AW108: 0.684 | AX108: 0.727 | AY108: 0.303 | AZ108: 0.562 | BA108: 0.306 | BB108: 0.337 | BC108: 0.04 | BD108: 0.657 | BE108: 0.57 | BF108: 0.138725 | BG108: 0.2495 | BH108: 0.4238492063
A109: Zambia | B109: TcIL3000_8_1200 | C109: 328372 | D109: C | E109: G | F109: missense | G109: DMT | H109: 0 | I109: 0 | J109: 0 | K109: 0 | L109: 0 | M109: 0 | N109: 0 | O109: 0 | P109: 0 | Q109: 0 | R109: 0 | S109: 0 | T109: 0 | U109: 0 | V109: 0 | W109: 0 | X109: 0.056 | Y109: 0 | Z109: 0 | AA109: 0 | AB109: 0 | AC109: 0 | AD109: 0 | AE109: 0 | AF109: 0.526 | AG109: 0.636 | AH109: 1 | AI109: 0 | AJ109: 0 | AK109: 0.364 | AL109: 0 | AM109: 0.444 | AN109: 0 | AO109: 0 | AP109: 0.542 | AQ109: 0.525 | AR109: 0.571 | AS109: 0.303 | AT109: 0.435 | AU109: 0 | AV109: 0.5 | AW109: 0.684 | AX109: 0.727 | AY109: 0.303 | AZ109: 0.54 | BA109: 0.306 | BB109: 0.349 | BC109: 0 | BD109: 0.64 | BE109: 0.563 | BF109: 0.1281625 | BG109: 0.2375 | BH109: 0.4052222222
A110: Zambia | B110: TcIL3000_8_1200 | C110: 328350 | D110: G | E110: T | F110: missense | G110: DMT | H110: 0 | I110: 0 | J110: 0 | K110: 0 | L110: 0 | M110: 0 | N110: 0 | O110: 0 | P110: 0 | Q110: 0 | R110: 0 | S110: 0 | T110: 0 | U110: 0 | V110: 0.011 | W110: 0.04 | X110: 0 | Y110: 0 | Z110: 0.059 | AA110: 0 | AB110: 0.037 | AC110: 0 | AD110: 0 | AE110: 0 | AF110: 0.574 | AG110: 0.684 | AH110: 1 | AI110: 0 | AJ110: 0.01 | AK110: 0.4 | AL110: 0 | AM110: 0.45 | AN110: 0 | AO110: 0 | AP110: 0.481 | AQ110: 0.548 | AR110: 0.571 | AS110: 0.289 | AT110: 0.481 | AU110: 0 | AV110: 0.556 | AW110: 0 | AX110: 0.565 | AY110: 0.303 | AZ110: 0.574 | BA110: 0.316 | BB110: 0.349 | BC110: 0.04 | BD110: 0.62 | BE110: 0.554 | BF110: 0.1318375 | BG110: 0.187 | BH110: 0.2999920635
A111: Zambia | B111: TcIL3000_8_1200 | C111: 327865 | D111: G | E111: A | F111: missense | G111: DMT | H111: 0 | I111: 0 | J111: 0 | K111: 0 | L111: 0 | M111: 0 | N111: 0 | O111: 0 | P111: 0 | Q111: 0 | R111: 0 | S111: 0 | T111: 0 | U111: 0 | V111: 0 | W111: 0 | X111: 0 | Y111: 0 | Z111: 0 | AA111: 0 | AB111: 0 | AC111: 0 | AD111: 0 | AE111: 0 | AF111: 0 | AG111: 0 | AH111: 0 | AI111: 0 | AJ111: 0 | AK111: 0.312 | AL111: 0 | AM111: 0.292 | AN111: 0 | AO111: 0 | AP111: 0.167 | AQ111: 0.404 | AR111: 0 | AS111: 0.333 | AT111: 0.508 | AU111: 0 | AV111: 0.387 | AW111: 0.321 | AX111: 0.592 | AY111: 0.178 | AZ111: 0.567 | BA111: 0.302 | BB111: 0.179 | BC111: 0.024 | BD111: 0.421 | BE111: 0.507 | BF111: 0.22475 | BG111: 0.152 | BH111: 0.2803571429
A112: TC1, Zambia | B112: TcIL3000_8_1200 | C112: 328338 | D112: G | E112: C | F112: missense | G112: DMT | H112: 0 | I112: 0 | J112: 0 | K112: 0 | L112: 0 | M112: 0 | N112: 0 | O112: 0 | P112: 0 | Q112: 0 | R112: 0 | S112: 0 | T112: 0 | U112: 0.028 | V112: 0.012 | W112: 0 | X112: 0 | Y112: 0 | Z112: 0 | AA112: 0 | AB112: 0 | AC112: 0 | AD112: 0 | AE112: 0 | AF112: 0 | AG112: 0 | AH112: 0 | AI112: 0 | AJ112: 0.011 | AK112: 0.375 | AL112: 0 | AM112: 0.5 | AN112: 0 | AO112: 0 | AP112: 0.538 | AQ112: 0.524 | AR112: 0.4 | AS112: 0.297 | AT112: 0.491 | AU112: 0 | AV112: 0.5 | AW112: 0 | AX112: 0.553 | AY112: 0.306 | AZ112: 0.5 | BA112: 0.288 | BB112: 0.345 | BC112: 0.038 | BD112: 0.643 | BE112: 0.57 | BF112: 0.26015 | BG112: 0.2315 | BH112: 0.2624761905
A113: TC1, TC2 | B113: TcIL3000_8_1200 | C113: 328432 | D113: C | E113: T | F113: missense | G113: DMT | H113: 0 | I113: 0 | J113: 0.1 | K113: 0 | L113: 0 | M113: 0 | N113: 0 | O113: 0 | P113: 0 | Q113: 0 | R113: 0 | S113: 0 | T113: 0 | U113: 0 | V113: 0 | W113: 0 | X113: 0 | Y113: 0 | Z113: 0 | AA113: 0 | AB113: 0 | AC113: 0 | AD113: 0 | AE113: 0 | AF113: 0 | AG113: 0 | AH113: 0 | AI113: 0 | AJ113: 0.01 | AK113: 0.333 | AL113: 0 | AM113: 0.435 | AN113: 0 | AO113: 0 | AP113: 0.5 | AQ113: 0.488 | AR113: 0.4 | AS113: 0.222 | AT113: 0.438 | AU113: 0 | AV113: 0.476 | AW113: 0 | AX113: 0.512 | AY113: 0.391 | AZ113: 0.462 | BA113: 0.385 | BB113: 0.36 | BC113: 0 | BD113: 0.636 | BE113: 0.564 | BF113: 0.2891 | BG113: 0.267 | BH113: 0.2350714286
A114: TC2 | B114: TcIL3000_8_1200 | C114: 328042 | D114: T | E114: C | F114: missense | G114: DMT | H114: 0 | I114: 0 | J114: 0 | K114: 0 | L114: 0 | M114: 0 | N114: 0 | O114: 0 | P114: 0 | Q114: 0 | R114: 0 | S114: 0 | T114: 0 | U114: 0 | V114: 0 | W114: 0 | X114: 0 | Y114: 0 | Z114: 0 | AA114: 0 | AB114: 0 | AC114: 0 | AD114: 0 | AE114: 0 | AF114: 0 | AG114: 0 | AH114: 0 | AI114: 0 | AJ114: 0 | AK114: 0 | AL114: 0 | AM114: 0 | AN114: 0 | AO114: 0.091 | AP114: 0 | AQ114: 0 | AR114: 0 | AS114: 0 | AT114: 0 | AU114: 0 | AV114: 0 | AW114: 0 | AX114: 0.444 | AY114: 0 | AZ114: 0.021 | BA114: 0 | BB114: 0 | BC114: 0 | BD114: 0 | BE114: 0.503 | BF114: 0.0042 | BG114: 0.2515 | BH114: 0.05837301587
A115: Zambia | B115: TcIL3000_8_1200 | C115: 328112 | D115: C | E115: A | F115: synonymous | G115: DMT | H115: 0.368 | I115: 0.583 | J115: 1 | K115: 1 | L115: 0.278 | M115: 1 | N115: 1 | O115: 0.15 | P115: 1 | Q115: 0.091 | R115: 1 | S115: 0.034 | T115: 0 | U115: 0 | V115: 0.014 | W115: 0 | X115: 0 | Y115: 0 | Z115: 0.067 | AA115: 0.042 | AB115: 0 | AC115: 0 | AD115: 0 | AE115: 0 | AF115: 0.018 | AG115: 0.037 | AH115: 0.091 | AI115: 0.021 | AJ115: 0.587 | AK115: 0 | AL115: 0 | AM115: 0.647 | AN115: 0 | AO115: 0.75 | AP115: 0 | AQ115: 0 | AR115: 0.2 | AS115: 0 | AT115: 0.432 | AU115: 0 | AV115: 0.043 | AW115: 0 | AX115: 0 | AY115: 0 | AZ115: 0.02 | BA115: 0.027 | BB115: 0 | BC115: 0 | BD115: 0.01 | BE115: 0.024 | BF115: 0.008725 | BG115: 0.017 | BH115: 0.3980714286
A116: Zambia | B116: TcIL3000_8_1200 | C116: 328142 | D116: G | E116: T | F116: synonymous | G116: DMT | H116: 0.316 | I116: 0.583 | J116: 0.727 | K116: 1 | L116: 0.4 | M116: 0.516 | N116: 0.364 | O116: 0.286 | P116: 0.611 | Q116: 0 | R116: 0.308 | S116: 0 | T116: 0.053 | U116: 0.029 | V116: 0 | W116: 0 | X116: 0.053 | Y116: 0 | Z116: 0 | AA116: 0.042 | AB116: 0 | AC116: 0 | AD116: 0 | AE116: 0 | AF116: 0.018 | AG116: 0 | AH116: 0 | AI116: 0 | AJ116: 0.59 | AK116: 0 | AL116: 0.3 | AM116: 0.556 | AN116: 0 | AO116: 0.231 | AP116: 0 | AQ116: 0 | AR116: 0.286 | AS116: 0 | AT116: 0 | AU116: 0 | AV116: 0 | AW116: 0 | AX116: 0 | AY116: 0 | AZ116: 0 | BA116: 0 | BB116: 0.012 | BC116: 0 | BD116: 0 | BE116: 0.005 | BF116: 0.006475 | BG116: 0.0025 | BH116: 0.3064206349
A117: Zambia | B117: TcIL3000_8_1200 | C117: 327800 | D117: C | E117: G | F117: synonymous | G117: DMT | H117: 0.375 | I117: 0.483 | J117: 0.5 | K117: 1 | L117: 0.481 | M117: 0.423 | N117: 0.448 | O117: 0.15 | P117: 0.333 | Q117: 0 | R117: 0.733 | S117: 0 | T117: 0 | U117: 0 | V117: 0.013 | W117: 0 | X117: 0 | Y117: 0 | Z117: 0 | AA117: 0 | AB117: 0 | AC117: 0 | AD117: 0 | AE117: 0 | AF117: 0 | AG117: 0 | AH117: 0 | AI117: 0 | AJ117: 0.535 | AK117: 0 | AL117: 0.562 | AM117: 0.71 | AN117: 0 | AO117: 0.3 | AP117: 0 | AQ117: 0 | AR117: 0.5 | AS117: 0 | AT117: 0 | AU117: 0 | AV117: 0 | AW117: 0 | AX117: 0 | AY117: 0 | AZ117: 0 | BA117: 0 | BB117: 0 | BC117: 0 | BD117: 0 | BE117: 0 | BF117: 0.0008125 | BG117: 0 | BH117: 0.2895714286
A118: Zambia | B118: TcIL3000_8_1200 | C118: 328209 | D118: C | E118: T | F118: synonymous | G118: DMT | H118: 0.519 | I118: 0.533 | J118: 0.667 | K118: 1 | L118: 0.417 | M118: 0.477 | N118: 0.322 | O118: 0.312 | P118: 0.529 | Q118: 0 | R118: 0.231 | S118: 0 | T118: 0 | U118: 0 | V118: 0.025 | W118: 0.1 | X118: 0 | Y118: 0 | Z118: 0.067 | AA118: 0 | AB118: 0 | AC118: 0 | AD118: 0 | AE118: 0 | AF118: 0 | AG118: 0 | AH118: 0 | AI118: 0.015 | AJ118: 0.656 | AK118: 0 | AL118: 0.286 | AM118: 0.455 | AN118: 0 | AO118: 0.308 | AP118: 0 | AQ118: 0 | AR118: 0.375 | AS118: 0 | AT118: 0.02 | AU118: 0 | AV118: 0.05 | AW118: 0 | AX118: 0 | AY118: 0 | AZ118: 0 | BA118: 0 | BB118: 0.021 | BC118: 0 | BD118: 0 | BE118: 0 | BF118: 0.0087375 | BG118: 0 | BH118: 0.2728730159
A119: Zambia | B119: TcIL3000_8_1200 | C119: 328083 | D119: G | E119: A | F119: missense | G119: DMT | H119: 0.278 | I119: 0.5 | J119: 0.5 | K119: 1 | L119: 0.455 | M119: 0.375 | N119: 0.304 | O119: 0.048 | P119: 0.529 | Q119: 0 | R119: 0.286 | S119: 0 | T119: 0 | U119: 0 | V119: 0.014 | W119: 0 | X119: 0 | Y119: 0 | Z119: 0.056 | AA119: 0 | AB119: 0 | AC119: 0 | AD119: 0.037 | AE119: 0 | AF119: 0 | AG119: 0 | AH119: 0 | AI119: 0 | AJ119: 0.517 | AK119: 0 | AL119: 0 | AM119: 0.692 | AN119: 0 | AO119: 0.143 | AP119: 0 | AQ119: 0 | AR119: 0.2 | AS119: 0 | AT119: 0 | AU119: 0 | AV119: 0 | AW119: 0 | AX119: 0 | AY119: 0 | AZ119: 0 | BA119: 0 | BB119: 0 | BC119: 0 | BD119: 0 | BE119: 0 | BF119: 0.0066875 | BG119: 0 | BH119: 0.2553174603
A120: TC1, TC2 | B120: TcIL3000_8_1200 | C120: 327920 | D120: C | E120: T | F120: synonymous | G120: DMT | H120: 0 | I120: 0 | J120: 0.556 | K120: 0 | L120: 0 | M120: 0.618 | N120: 0.635 | O120: 0 | P120: 0.533 | Q120: 0.429 | R120: 0.36 | S120: 0 | T120: 0 | U120: 1 | V120: 1 | W120: 1 | X120: 0.4 | Y120: 1 | Z120: 1 | AA120: 1 | AB120: 1 | AC120: 1 | AD120: 1 | AE120: 1 | AF120: 1 | AG120: 1 | AH120: 1 | AI120: 0.647 | AJ120: 0.5 | AK120: 0 | AL120: 0 | AM120: 0.273 | AN120: 0 | AO120: 1 | AP120: 0.174 | AQ120: 1 | AR120: 0.429 | AS120: 0.727 | AT120: 1 | AU120: 1 | AV120: 0 | AW120: 0.056 | AX120: 0 | AY120: 0.578 | AZ120: 0.018 | BA120: 0.297 | BB120: 0.316 | BC120: 1 | BD120: 0.195 | BE120: 0.467 | BF120: 0.4986375 | BG120: 0.331 | BH120: 0.2045238095
A121: TC2 | B121: TcIL3000_8_1200 | C121: 327710 | D121: T | E121: C | F121: synonymous | G121: DMT | H121: 0 | I121: 0 | J121: 0 | K121: 0 | L121: 0 | M121: 0.591 | N121: 0.531 | O121: 0 | P121: 0.5 | Q121: 0.5 | R121: 0.357 | S121: 0 | T121: 0 | U121: 0 | V121: 0 | W121: 0 | X121: 0 | Y121: 0 | Z121: 0 | AA121: 0 | AB121: 0 | AC121: 0 | AD121: 0 | AE121: 0 | AF121: 0 | AG121: 0 | AH121: 0 | AI121: 0 | AJ121: 0 | AK121: 0.455 | AL121: 0 | AM121: 0 | AN121: 0 | AO121: 0.583 | AP121: 0 | AQ121: 0 | AR121: 0 | AS121: 0 | AT121: 0.518 | AU121: 0 | AV121: 0.25 | AW121: 0 | AX121: 0 | AY121: 0 | AZ121: 0 | BA121: 0 | BB121: 0 | BC121: 0 | BD121: 0.331 | BE121: 0 | BF121: 0 | BG121: 0.2895 | BH121: 0.0603968254
A122: Zambia | B122: TcIL3000.11.15160 | C122: 4156897 | D122: A | E122: G | F122: missense | G122: DNA polymerase alpha/epsilon, subunit B | H122: 0.471 | I122: 0.48 | J122: 0.474 | K122: 0.414 | L122: 0.52 | M122: 0.526 | N122: 0.506 | O122: 0.448 | P122: 0.333 | Q122: 0 | R122: 0.522 | S122: 0 | T122: 0 | U122: 0 | V122: 0 | W122: 0 | X122: 0.034 | Y122: 0 | Z122: 0 | AA122: 0 | AB122: 0 | AC122: 0 | AD122: 0 | AE122: 0 | AF122: 0 | AG122: 0 | AH122: 0 | AI122: 0.351 | AJ122: 0.341 | AK122: 0 | AL122: 0.615 | AM122: 0.615 | AN122: 0 | AO122: 0 | AP122: 0 | AQ122: 0 | AR122: 0 | AS122: 0.381 | AT122: 0 | AU122: 0 | AV122: 0 | AW122: 0 | AX122: 0 | AY122: 0 | AZ122: 0 | BA122: 0 | BB122: 0 | BC122: 0 | BD122: 0 | BE122: 0 | BF122: 0.0240625 | BG122: 0 | BH122: 0.2746825397
A123: TC2 | B123: TcIL3000.11.15160 | C123: 4156624 | D123: C | E123: T | F123: missense | G123: DNA polymerase alpha/epsilon, subunit B | H123: 0 | I123: 0 | J123: 0 | K123: 0 | L123: 0.583 | M123: 0.025 | N123: 0.494 | O123: 0 | P123: 0 | Q123: 0.5 | R123: 0 | S123: 0 | T123: 0 | U123: 0 | V123: 0.011 | W123: 0.036 | X123: 0 | Y123: 0 | Z123: 0 | AA123: 0 | AB123: 0 | AC123: 0 | AD123: 0 | AE123: 0 | AF123: 0 | AG123: 0 | AH123: 0 | AI123: 0 | AJ123: 0 | AK123: 1 | AL123: 0 | AM123: 0 | AN123: 1 | AO123: 0.5 | AP123: 1 | AQ123: 0 | AR123: 0 | AS123: 0 | AT123: 0 | AU123: 0 | AV123: 0.417 | AW123: 0.984 | AX123: 0.667 | AY123: 0 | AZ123: 0 | BA123: 0 | BB123: 0 | BC123: 0 | BD123: 1 | BE123: 0.459 | BF123: 0.0029375 | BG123: 0.2705 | BH123: 0.06753968254
A124: TC2 | B124: TcIL3000.11.15160 | C124: 4157872 | D124: C | E124: T | F124: missense | G124: DNA polymerase alpha/epsilon, subunit B | H124: 0 | I124: 0.034 | J124: 0 | K124: 0 | L124: 0 | M124: 0.522 | N124: 0.011 | O124: 0 | P124: 0.6 | Q124: 0 | R124: 0 | S124: 0 | T124: 0.026 | U124: 0 | V124: 0.013 | W124: 0.033 | X124: 0 | Y124: 0.048 | Z124: 0 | AA124: 0 | AB124: 0 | AC124: 0 | AD124: 0 | AE124: 0 | AF124: 0.016 | AG124: 0 | AH124: 0 | AI124: 0 | AJ124: 0 | AK124: 0 | AL124: 0 | AM124: 0 | AN124: 0 | AO124: 0 | AP124: 0 | AQ124: 0 | AR124: 0 | AS124: 0 | AT124: 0 | AU124: 0 | AV124: 0 | AW124: 0 | AX124: 0 | AY124: 0 | AZ124: 0 | BA124: 0 | BB124: 0 | BC124: 0 | BD124: 0 | BE124: 0.497 | BF124: 0.006875 | BG124: 0.2485 | BH124: 0.06627777778
A125: Zambia | B125: TcIL3000_8_690 | C125: 198114 | D125: A | E125: T | F125: missense | G125: DNA polymerase sigma putative | H125: 0.023 | I125: 0.05 | J125: 0 | K125: 0 | L125: 0 | M125: 0.714 | N125: 0.009 | O125: 0 | P125: 0.455 | Q125: 0.75 | R125: 0 | S125: 0.022 | T125: 0.031 | U125: 0 | V125: 0 | W125: 0 | X125: 0.385 | Y125: 1 | Z125: 0 | AA125: 0.333 | AB125: 0.483 | AC125: 0 | AD125: 0 | AE125: 0.55 | AF125: 0.013 | AG125: 0 | AH125: 0 | AI125: 0.022 | AJ125: 0.018 | AK125: 0 | AL125: 0 | AM125: 0.56 | AN125: 0 | AO125: 0 | AP125: 0 | AQ125: 0 | AR125: 0.778 | AS125: 0.636 | AT125: 1 | AU125: 0.25 | AV125: 0 | AW125: 0.378 | AX125: 0 | AY125: 0.692 | AZ125: 0 | BA125: 0 | BB125: 0 | BC125: 0 | BD125: 0.013 | BE125: 0.013 | BF125: 0.035725 | BG125: 0.013 | BH125: 0.2893492063
A126: Zambia | B126: TcIL3000_8_690 | C126: 198490 | D126: G | E126: A | F126: missense | G126: DNA polymerase sigma putative | H126: 0.286 | I126: 0.565 | J126: 0.471 | K126: 1 | L126: 0.467 | M126: 0.714 | N126: 0.523 | O126: 0.438 | P126: 0.462 | Q126: 0 | R126: 0.519 | S126: 0 | T126: 0 | U126: 0 | V126: 0 | W126: 0 | X126: 0 | Y126: 0 | Z126: 0 | AA126: 0 | AB126: 0 | AC126: 0 | AD126: 0.05 | AE126: 0 | AF126: 0 | AG126: 0 | AH126: 0 | AI126: 0 | AJ126: 0.495 | AK126: 0 | AL126: 0.353 | AM126: 0.357 | AN126: 0 | AO126: 0 | AP126: 0.045 | AQ126: 0 | AR126: 0.6 | AS126: 0 | AT126: 0 | AU126: 0 | AV126: 0 | AW126: 0 | AX126: 0 | AY126: 0 | AZ126: 0 | BA126: 0 | BB126: 0 | BC126: 0.027 | BD126: 0 | BE126: 0 | BF126: 0.002275 | BG126: 0 | BH126: 0.2587301587
A127: TC2 | B127: TcIL3000_8_690 | C127: 198346 | D127: A | E127: T | F127: missense | G127: DNA polymerase sigma putative | H127: 0 | I127: 0 | J127: 0 | K127: 0 | L127: 0.5 | M127: 0 | N127: 0 | O127: 0.48 | P127: 0 | Q127: 0 | R127: 0 | S127: 0 | T127: 0 | U127: 0 | V127: 0 | W127: 0 | X127: 0.062 | Y127: 0 | Z127: 0 | AA127: 0 | AB127: 0 | AC127: 0 | AD127: 0 | AE127: 0 | AF127: 0.019 | AG127: 0.05 | AH127: 0 | AI127: 0 | AJ127: 0 | AK127: 0 | AL127: 0 | AM127: 0 | AN127: 0 | AO127: 0 | AP127: 0 | AQ127: 0 | AR127: 0 | AS127: 0 | AT127: 0 | AU127: 0 | AV127: 0 | AW127: 0 | AX127: 0 | AY127: 0 | AZ127: 0 | BA127: 0 | BB127: 0 | BC127: 0 | BD127: 0 | BE127: 0.494 | BF127: 0.0081875 | BG127: 0.247 | BH127: 0.05444444444
A128: TC2 | B128: TcIL3000.11.9530 | C128: 2591444 | D128: G | E128: C | F128: missense | G128: DNA topoisomerase I | H128: 1 | I128: 1 | J128: 1 | K128: 0.52 | L128: 0.545 | M128: 0.5 | N128: 0.529 | O128: 0.438 | P128: 0.333 | Q128: 0.471 | R128: 0.462 | S128: 1 | T128: 1 | U128: 1 | V128: 0.422 | W128: 0.647 | X128: 1 | Y128: 1 | Z128: 0.941 | AA128: 1 | AB128: 0.958 | AC128: 1 | AD128: 1 | AE128: 1 | AF128: 0.969 | AG128: 1 | AH128: 1 | AI128: 0.978 | AJ128: 0.942 | AK128: 0.5 | AL128: 1 | AM128: 0.556 | AN128: 1 | AO128: 1 | AP128: 1 | AQ128: 0.958 | AR128: 0.6 | AS128: 1 | AT128: 0.366 | AU128: 0.9 | AV128: 1 | AW128: 0.578 | AX128: 0 | AY128: 1 | AZ128: 0.967 | BA128: 1 | BB128: 1 | BC128: 1 | BD128: 0.431 | BE128: 0 | BF128: 0.0638375 | BG128: 0.2845 | BH128: 0.107031746
A129: TC2 | B129: TcIL3000.11.9530 | C129: 2591442 | D129: G | E129: A | F129: missense | G129: DNA topoisomerase I | H129: 0.96 | I129: 1 | J129: 1 | K129: 0.52 | L129: 0.545 | M129: 0.5 | N129: 0.56 | O129: 0.438 | P129: 0.333 | Q129: 0.5 | R129: 0.462 | S129: 0.96 | T129: 1 | U129: 0.974 | V129: 0.415 | W129: 0.647 | X129: 0.95 | Y129: 0.941 | Z129: 1 | AA129: 1 | AB129: 0.96 | AC129: 1 | AD129: 0.952 | AE129: 1 | AF129: 0.97 | AG129: 0.968 | AH129: 1 | AI129: 1 | AJ129: 0.954 | AK129: 0.5 | AL129: 1 | AM129: 0.556 | AN129: 0.475 | AO129: 1 | AP129: 1 | AQ129: 0.958 | AR129: 0.6 | AS129: 1 | AT129: 0.366 | AU129: 0.9 | AV129: 1 | AW129: 0.578 | AX129: 0 | AY129: 1 | AZ129: 0.968 | BA129: 1 | BB129: 1 | BC129: 1 | BD129: 0.424 | BE129: 0 | BF129: 0.0726625 | BG129: 0.288 | BH129: 0.07675396825
A130: TC2 | B130: TcIL3000.11.9530 | C130: 2591411 | D130: G | E130: T | F130: missense | G130: DNA topoisomerase I | H130: 1 | I130: 1 | J130: 1 | K130: 0.6 | L130: 0.4 | M130: 0.545 | N130: 0.537 | O130: 0.312 | P130: 0.333 | Q130: 0.5 | R130: 0.615 | S130: 1 | T130: 0.952 | U130: 1 | V130: 0.5 | W130: 0.714 | X130: 1 | Y130: 1 | Z130: 1 | AA130: 0.955 | AB130: 0.957 | AC130: 1 | AD130: 1 | AE130: 1 | AF130: 0.971 | AG130: 0.944 | AH130: 0.95 | AI130: 1 | AJ130: 0.978 | AK130: 0.5 | AL130: 1 | AM130: 1 | AN130: 0.5 | AO130: 1 | AP130: 1 | AQ130: 1 | AR130: 1 | AS130: 1 | AT130: 0.35 | AU130: 1 | AV130: 1 | AW130: 1 | AX130: 0.048 | AY130: 1 | AZ130: 1 | BA130: 1 | BB130: 0.96 | BC130: 0.944 | BD130: 0.462 | BE130: 0 | BF130: 0.0438625 | BG130: 0.269 | BH130: 0.03258730159
A131: TC1 | B131: TcIL3000.11.9990 | C131: 2682659 | D131: A | E131: T | F131: missense | G131: DNA topoisomerase I | H131: 0 | I131: 0 | J131: 0.5 | K131: 0 | L131: 0 | M131: 0 | N131: 0 | O131: 0 | P131: 0 | Q131: 0 | R131: 0 | S131: 0.533 | T131: 0.6 | U131: 0.981 | V131: 0.011 | W131: 0 | X131: 0 | Y131: 0 | Z131: 0 | AA131: 0.471 | AB131: 0.607 | AC131: 0 | AD131: 0 | AE131: 0.423 | AF131: 0.508 | AG131: 0.523 | AH131: 0 | AI131: 0.568 | AJ131: 0 | AK131: 0 | AL131: 0 | AM131: 0.5 | AN131: 0 | AO131: 0 | AP131: 0 | AQ131: 0 | AR131: 0.25 | AS131: 0 | AT131: 0 | AU131: 0 | AV131: 0 | AW131: 0.489 | AX131: 0 | AY131: 1 | AZ131: 1 | BA131: 0.625 | BB131: 0.462 | BC131: 0.414 | BD131: 0 | BE131: 0 | BF131: 0.44445 | BG131: 0 | BH131: 0.01292857143
A132: TC2 | B132: TcIL3000_4_830 | C132: 266837 | D132: T | E132: C | F132: missense | G132: DNA topoisomerase IB | H132: 0.833 | I132: 0.783 | J132: 0.769 | K132: 0.625 | L132: 0.167 | M132: 1 | N132: 0.493 | O132: 1 | P132: 1 | Q132: 0.667 | R132: 0.714 | S132: 0.738 | T132: 0.429 | U132: 1 | V132: 0.983 | W132: 1 | X132: 1 | Y132: 1 | Z132: 0.929 | AA132: 1 | AB132: 0.974 | AC132: 1 | AD132: 1 | AE132: 1 | AF132: 0.979 | AG132: 1 | AH132: 1 | AI132: 1 | AJ132: 0.686 | AK132: 1 | AL132: 0.833 | AM132: 0.613 | AN132: 0 | AO132: 1 | AP132: 1 | AQ132: 1 | AR132: 0.4 | AS132: 0.625 | AT132: 1 | AU132: 1 | AV132: 1 | AW132: 0.978 | AX132: 1 | AY132: 1 | AZ132: 1 | BA132: 1 | BB132: 1 | BC132: 1 | BD132: 1 | BE132: 0.507 | BF132: 0.0084375 | BG132: 0.2465 | BH132: 0.154015873
A133: TC2, Zambia | B133: TcIL3000.11.12160 | C133: 3199821 | D133: G | E133: A | F133: missense | G133: DNA topoisomerase II | H133: 0 | I133: 0.556 | J133: 0.556 | K133: 0 | L133: 0.474 | M133: 0 | N133: 0 | O133: 0.529 | P133: 0 | Q133: 0 | R133: 0.4 | S133: 1 | T133: 1 | U133: 1 | V133: 1 | W133: 1 | X133: 1 | Y133: 1 | Z133: 0.917 | AA133: 1 | AB133: 1 | AC133: 1 | AD133: 1 | AE133: 1 | AF133: 1 | AG133: 1 | AH133: 1 | AI133: 0.974 | AJ133: 0.745 | AK133: 0 | AL133: 0 | AM133: 0.269 | AN133: 0.185 | AO133: 0.636 | AP133: 1 | AQ133: 1 | AR133: 0.429 | AS133: 0.3 | AT133: 1 | AU133: 1 | AV133: 1 | AW133: 1 | AX133: 0.517 | AY133: 1 | AZ133: 1 | BA133: 1 | BB133: 1 | BC133: 1 | BD133: 0 | BE133: 0.548 | BF133: 0.0068125 | BG133: 0.274 | BH133: 0.382484127
A134: Zambia | B134: TcIL3000.11.12160 | C134: 3199873 | D134: G | E134: A | F134: missense | G134: DNA topoisomerase II | H134: 0.516 | I134: 0.5 | J134: 0.286 | K134: 0.556 | L134: 0.474 | M134: 0.407 | N134: 1 | O134: 0.286 | P134: 0.667 | Q134: 0.143 | R134: 0.643 | S134: 0 | T134: 0 | U134: 0 | V134: 0 | W134: 0 | X134: 0 | Y134: 0 | Z134: 0 | AA134: 0 | AB134: 0 | AC134: 0 | AD134: 0 | AE134: 0 | AF134: 0 | AG134: 0 | AH134: 0 | AI134: 0 | AJ134: 0.266 | AK134: 0 | AL134: 0.538 | AM134: 0.68 | AN134: 0.733 | AO134: 0.6 | AP134: 0 | AQ134: 0 | AR134: 0.444 | AS134: 0.643 | AT134: 0 | AU134: 0 | AV134: 0 | AW134: 0 | AX134: 0 | AY134: 0 | AZ134: 0 | BA134: 0 | BB134: 0 | BC134: 0 | BD134: 0 | BE134: 0 | BF134: 0 | BG134: 0 | BH134: 0.2907698413
A135: TC2, Zambia | B135: TcIL3000.11.12160 | C135: 3199587 | D135: G | E135: A | F135: missense | G135: DNA topoisomerase II | H135: 0.5 | I135: 0.621 | J135: 0.333 | K135: 0.375 | L135: 0.333 | M135: 0.241 | N135: 0.986 | O135: 0.636 | P135: 0.474 | Q135: 0.5 | R135: 1 | S135: 0.021 | T135: 0 | U135: 0 | V135: 0 | W135: 0 | X135: 0 | Y135: 0 | Z135: 0 | AA135: 0 | AB135: 0 | AC135: 0 | AD135: 0 | AE135: 0 | AF135: 0 | AG135: 0 | AH135: 0 | AI135: 0 | AJ135: 0.287 | AK135: 0 | AL135: 0.375 | AM135: 0.593 | AN135: 1 | AO135: 0.545 | AP135: 0.467 | AQ135: 0 | AR135: 0.667 | AS135: 0.429 | AT135: 0 | AU135: 0 | AV135: 0.4 | AW135: 0 | AX135: 0 | AY135: 0 | AZ135: 0 | BA135: 0 | BB135: 0.022 | BC135: 0 | BD135: 0 | BE135: 0.564 | BF135: 0.0044 | BG135: 0.282 | BH135: 0.2862857143
A136: Zambia | B136: TcIL3000.11.12160 | C136: 3199773 | D136: A | E136: G | F136: missense | G136: DNA topoisomerase II | H136: 0.417 | I136: 0.444 | J136: 0.429 | K136: 0.433 | L136: 0.917 | M136: 0.4 | N136: 1 | O136: 0.75 | P136: 0.667 | Q136: 0.167 | R136: 0.615 | S136: 0 | T136: 0 | U136: 0 | V136: 0 | W136: 0 | X136: 0 | Y136: 0 | Z136: 0.1 | AA136: 0 | AB136: 0 | AC136: 0 | AD136: 0 | AE136: 0 | AF136: 0 | AG136: 0 | AH136: 0 | AI136: 0 | AJ136: 0.207 | AK136: 0 | AL136: 0.357 | AM136: 0.636 | AN136: 0.643 | AO136: 0.167 | AP136: 0 | AQ136: 0 | AR136: 0.5 | AS136: 0.667 | AT136: 0 | AU136: 0 | AV136: 0 | AW136: 0 | AX136: 0 | AY136: 0 | AZ136: 0 | BA136: 0 | BB136: 0 | BC136: 0 | BD136: 0 | BE136: 0 | BF136: =ABS(AVERAGE(U136:AI136,AQ136)-AVERAGE(AY136:BC136)) -> 0.00625 | BG136: =ABS(AVERAGE(BD136:BE136)-AK136) -> 0 | BH136: =ABS(AVERAGE(H136:T136,AL136:AP136)-AVERAGE(AR136:AX136)) -> 0.2800634921
A137: Zambia | B137: TcIL3000.11.12160 | C137: 3199924 | D137: C | E137: T | F137: missense | G137: DNA topoisomerase II | H137: 0.588 | I137: 0.4 | J137: 0.375 | K137: 0.36 | L137: 0.4 | M137: 0.516 | N137: 1 | O137: 0.32 | P137: 0.545 | Q137: 0.375 | R137: 0.6 | S137: 0 | T137: 0 | U137: 0 | V137: 0 | W137: 0.038 | X137: 0 | Y137: 0 | Z137: 0 | AA137: 0.037 | AB137: 0.026 | AC137: 0 | AD137: 0 | AE137: 0 | AF137: 0 | AG137: 0 | AH137: 0 | AI137: 0 | AJ137: 0.202 | AK137: 0 | AL137: 0.429 | AM137: 0.48 | AN137: 0.676 | AO137: 0.538 | AP137: 0 | AQ137: 0 | AR137: 0.364 | AS137: 0.632 | AT137: 0 | AU137: 0 | AV137: 0 | AW137: 0 | AX137: 0 | AY137: 0 | AZ137: 0 | BA137: 0 | BB137: 0 | BC137: 0 | BD137: 0 | BE137: 0 | BF137: 0.0063125 | BG137: 0 | BH137: 0.280047619
A138: Zambia | B138: TcIL3000.11.12160 | C138: 3199930 | D138: T | E138: C | F138: missense | G138: DNA topoisomerase II | H138: 0.559 | I138: 0.455 | J138: 0.333 | K138: 0.458 | L138: 0.5 | M138: 0.515 | N138: 1 | O138: 0.346 | P138: 0.583 | Q138: 0.375 | R138: 0.545 | S138: 0 | T138: 0 | U138: 0 | V138: 0.016 | W138: 0.04 | X138: 0 | Y138: 0 | Z138: 0.095 | AA138: 0 | AB138: 0 | AC138: 0 | AD138: 0 | AE138: 0 | AF138: 0 | AG138: 0 | AH138: 0 | AI138: 0.02 | AJ138: 0.245 | AK138: 0 | AL138: 0.429 | AM138: 0.5 | AN138: 0.667 | AO138: 0.538 | AP138: 0 | AQ138: 0 | AR138: 0.462 | AS138: 0.667 | AT138: 0 | AU138: 0 | AV138: 0 | AW138: 0 | AX138: 0.033 | AY138: 0 | AZ138: 0 | BA138: 0 | BB138: 0.026 | BC138: 0.036 | BD138: 0 | BE138: 0 | BF138: 0.0017125 | BG138: 0 | BH138: 0.2675
A139: Zambia | B139: TcIL3000.11.12160 | C139: 3199677 | D139: A | E139: G | F139: missense | G139: DNA topoisomerase II | H139: 0.375 | I139: 0.571 | J139: 0.389 | K139: 0.375 | L139: 0.4 | M139: 0.276 | N139: 0.986 | O139: 0.682 | P139: 0.6 | Q139: 0.462 | R139: 0.562 | S139: 0.023 | T139: 0 | U139: 0 | V139: 0 | W139: 0 | X139: 0 | Y139: 0.034 | Z139: 0 | AA139: 0 | AB139: 0 | AC139: 0 | AD139: 0 | AE139: 0 | AF139: 0 | AG139: 0 | AH139: 0 | AI139: 0 | AJ139: 0.336 | AK139: 0 | AL139: 0.417 | AM139: 0.48 | AN139: 0.423 | AO139: 0.455 | AP139: 0 | AQ139: 0 | AR139: 0.667 | AS139: 0.375 | AT139: 0 | AU139: 0 | AV139: 0 | AW139: 0 | AX139: 0 | AY139: 0 | AZ139: 0 | BA139: 0 | BB139: 0 | BC139: 0.031 | BD139: 0 | BE139: 0 | BF139: 0.004075 | BG139: 0 | BH139: 0.2664761905
A140: Zambia | B140: TcIL3000.11.12160 | C140: 3199738 | D140: A | E140: G | F140: missense | G140: DNA topoisomerase II | H140: 0.44 | I140: 0.5 | J140: 0.462 | K140: 0.467 | L140: 0.727 | M140: 0.379 | N140: 1 | O140: 0.778 | P140: 0.615 | Q140: 0.25 | R140: 0.667 | S140: 0.03 | T140: 0 | U140: 0 | V140: 0 | W140: 0 | X140: 0.091 | Y140: 0 | Z140: 0.091 | AA140: 0 | AB140: 0 | AC140: 0.042 | AD140: 0 | AE140: 0 | AF140: 0 | AG140: 0 | AH140: 0 | AI140: 0 | AJ140: 0.245 | AK140: 0 | AL140: 0.333 | AM140: 0.65 | AN140: 0.516 | AO140: 0.4 | AP140: 0 | AQ140: 0 | AR140: 0.8 | AS140: 0.6 | AT140: 0 | AU140: 0 | AV140: 0 | AW140: 0 | AX140: 0 | AY140: 0 | AZ140: 0 | BA140: 0 | BB140: 0.023 | BC140: 0 | BD140: 0 | BE140: 0 | BF140: 0.0094 | BG140: 0 | BH140: 0.2563333333
A141: TC2 | B141: TcIL3000.11.12160 | C141: 3199713 | D141: G | E141: A | F141: missense | G141: DNA topoisomerase II | H141: 0.385 | I141: 1 | J141: 1 | K141: 0.429 | L141: 1 | M141: 0.296 | N141: 0.966 | O141: 1 | P141: 0.583 | Q141: 0.308 | R141: 0.967 | S141: 0.971 | T141: 1 | U141: 1 | V141: 1 | W141: 1 | X141: 1 | Y141: 1 | Z141: 1 | AA141: 1 | AB141: 1 | AC141: 1 | AD141: 1 | AE141: 1 | AF141: 0.981 | AG141: 0.969 | AH141: 1 | AI141: 1 | AJ141: 0.971 | AK141: 0 | AL141: 0.357 | AM141: 1 | AN141: 1 | AO141: 0.455 | AP141: 1 | AQ141: 1 | AR141: 1 | AS141: 1 | AT141: 1 | AU141: 1 | AV141: 0.4 | AW141: 1 | AX141: 0.69 | AY141: 1 | AZ141: 1 | BA141: 1 | BB141: 1 | BC141: 0.966 | BD141: 0 | BE141: 0.606 | BF141: 0.003675 | BG141: 0.303 | BH141: 0.1079444444
A142: TC2 | B142: TcIL3000.11.12160 | C142: 3199999 | D142: A | E142: T | F142: missense | G142: DNA topoisomerase II | H142: 0.538 | I142: 1 | J142: 1 | K142: 0.464 | L142: 1 | M142: 0.485 | N142: 1 | O142: 1 | P142: 0.263 | Q142: 0.444 | R142: 1 | S142: 1 | T142: 1 | U142: 1 | V142: 0.983 | W142: 1 | X142: 1 | Y142: 1 | Z142: 1 | AA142: 0.971 | AB142: 1 | AC142: 1 | AD142: 1 | AE142: 0.933 | AF142: 1 | AG142: 1 | AH142: 1 | AI142: 1 | AJ142: 0.99 | AK142: 0 | AL142: 0.389 | AM142: 1 | AN142: 1 | AO142: 1 | AP142: 1 | AQ142: 1 | AR142: 1 | AS142: 0.957 | AT142: 1 | AU142: 1 | AV142: 1 | AW142: 1 | AX142: 0.29 | AY142: 1 | AZ142: 1 | BA142: 1 | BB142: 1 | BC142: 1 | BD142: 0 | BE142: 0.534 | BF142: 0.0070625 | BG142: 0.267 | BH142: 0.08226190476
A143: TC2 | B143: TcIL3000.11.12160 | C143: 3200034 | D143: A | E143: G | F143: missense | G143: DNA topoisomerase II | H143: 0.04 | I143: 0 | J143: 0.071 | K143: 0 | L143: 0 | M143: 0.03 | N143: 0.016 | O143: 0.057 | P143: 0.05 | Q143: 0.1 | R143: 0.5 | S143: 0.025 | T143: 0 | U143: 0 | V143: 0 | W143: 0 | X143: 0.036 | Y143: 0 | Z143: 0 | AA143: 0.1 | AB143: 0.05 | AC143: 0 | AD143: 0.074 | AE143: 0 | AF143: 0.02 | AG143: 0 | AH143: 0 | AI143: 0.014 | AJ143: 0.021 | AK143: 0 | AL143: 0.045 | AM143: 0.04 | AN143: 0.486 | AO143: 0.722 | AP143: 0.5 | AQ143: 0 | AR143: 0.091 | AS143: 0 | AT143: 0.03 | AU143: 0 | AV143: 0.385 | AW143: 0.024 | AX143: 0.029 | AY143: 0 | AZ143: 0 | BA143: 0 | BB143: 0 | BC143: 0 | BD143: 0.029 | BE143: 0.542 | BF143: 0.018375 | BG143: 0.2855 | BH143: 0.06914285714
A144: TC2 | B144: TcIL3000.11.12160 | C144: 3200007 | D144: A | E144: G | F144: missense | G144: DNA topoisomerase II | H144: 0 | I144: 0 | J144: 0 | K144: 0.556 | L144: 0 | M144: 0.5 | N144: 0.029 | O144: 0 | P144: 0.737 | Q144: 0.556 | R144: 0 | S144: 0 | T144: 0 | U144: 0 | V144: 0 | W144: 0 | X144: 0.034 | Y144: 0 | Z144: 0 | AA144: 0 | AB144: 0 | AC144: 0 | AD144: 0.042 | AE144: 0 | AF144: 0 | AG144: 0 | AH144: 0 | AI144: 0 | AJ144: 0 | AK144: 0.2 | AL144: 0 | AM144: 0 | AN144: 0 | AO144: 0 | AP144: 0 | AQ144: 0 | AR144: 0 | AS144: 0 | AT144: 0 | AU144: 0 | AV144: 0 | AW144: 0 | AX144: 0.71 | AY144: 0 | AZ144: 0 | BA144: 0 | BB144: 0 | BC144: 0 | BD144: 0.646 | BE144: 0.444 | BF144: 0.00475 | BG144: 0.345 | BH144: 0.03068253968
A145: Zambia | B145: TcIL3000.11.3420 | C145: 1049289 | D145: G | E145: A | F145: missense | G145: DNA-directed RNA polymerase III subunit Rpc5 | H145: 0.455 | I145: 0.444 | J145: 0.438 | K145: 0.45 | L145: 0.5 | M145: 0.3 | N145: 0 | O145: 0.677 | P145: 0.375 | Q145: 0.188 | R145: 0.412 | S145: 0 | T145: 0 | U145: 0 | V145: 0 | W145: 0 | X145: 0 | Y145: 0.048 | Z145: 0.043 | AA145: 0 | AB145: 0 | AC145: 0 | AD145: 0 | AE145: 0 | AF145: 0 | AG145: 0 | AH145: 0 | AI145: 0 | AJ145: 0.247 | AK145: 0.167 | AL145: 0.692 | AM145: 0.636 | AN145: 0 | AO145: 0 | AP145: 0 | AQ145: 0 | AR145: 0.364 | AS145: 0 | AT145: 0 | AU145: 0 | AV145: 0 | AW145: 0 | AX145: 0 | AY145: 0 | AZ145: 0 | BA145: 0 | BB145: 0 | BC145: 0 | BD145: 0 | BE145: 0 | BF145: 0.0056875 | BG145: 0.167 | BH145: 0.2572777778
A146: Zambia | B146: TcIL3000_6_2050 | C146: 570936 | D146: G | E146: A | F146: missense | G146: Flavinator of succinate dehydrogenase | H146: 0.652 | I146: 0.625 | J146: 0.5 | K146: 0.353 | L146: 0.364 | M146: 0.556 | N146: 0.478 | O146: 0.68 | P146: 0.765 | Q146: 0.455 | R146: 0.6 | S146: 0 | T146: 0 | U146: 0 | V146: 0 | W146: 0 | X146: 0 | Y146: 0 | Z146: 0 | AA146: 0 | AB146: 0 | AC146: 0 | AD146: 0 | AE146: 0 | AF146: 0 | AG146: 0 | AH146: 0 | AI146: 0 | AJ146: 0.01 | AK146: 0 | AL146: 0.4 | AM146: 0.542 | AN146: 0 | AO146: 0 | AP146: 0 | AQ146: 0 | AR146: 0.333 | AS146: 0 | AT146: 0 | AU146: 0 | AV146: 0 | AW146: 0 | AX146: 0 | AY146: 0 | AZ146: 0 | BA146: 0 | BB146: 0 | BC146: 0 | BD146: 0.013 | BE146: 0 | BF146: 0 | BG146: 0.0065 | BH146: 0.3396507937
A147: Zambia | B147: TcIL3000_6_2050 | C147: 570998 | D147: G | E147: T | F147: missense | G147: Flavinator of succinate dehydrogenase | H147: 0.409 | I147: 0.6 | J147: 0.231 | K147: 0.444 | L147: 0.375 | M147: 0.5 | N147: 0.472 | O147: 0.609 | P147: 0.765 | Q147: 0.625 | R147: 0.565 | S147: 0 | T147: 0 | U147: 0 | V147: 0 | W147: 0 | X147: 0 | Y147: 0 | Z147: 0 | AA147: 0 | AB147: 0 | AC147: 0 | AD147: 0 | AE147: 0 | AF147: 0 | AG147: 0 | AH147: 0 | AI147: 0 | AJ147: 0.02 | AK147: 0 | AL147: 0.5 | AM147: 0.632 | AN147: 0.024 | AO147: 0 | AP147: 0 | AQ147: 0 | AR147: 0.308 | AS147: 0 | AT147: 0 | AU147: 0 | AV147: 0 | AW147: 0 | AX147: 0.037 | AY147: 0 | AZ147: 0 | BA147: 0 | BB147: 0 | BC147: 0 | BD147: 0 | BE147: 0.012 | BF147: 0 | BG147: 0.006 | BH147: 0.3257698413
A148: Zambia | B148: TcIL3000_6_2050 | C148: 570924 | D148: G | E148: A | F148: missense | G148: Flavinator of succinate dehydrogenase | H148: 0.739 | I148: 0.64 | J148: 0 | K148: 0 | L148: 0 | M148: 0.556 | N148: 0.514 | O148: 0.704 | P148: 0.733 | Q148: 0.357 | R148: 0.611 | S148: 0 | T148: 0 | U148: 0 | V148: 0 | W148: 0 | X148: 0 | Y148: 0 | Z148: 0 | AA148: 0 | AB148: 0.024 | AC148: 0 | AD148: 0 | AE148: 0 | AF148: 0 | AG148: 0 | AH148: 0 | AI148: 0 | AJ148: 0 | AK148: 0 | AL148: 0.4 | AM148: 0 | AN148: 0 | AO148: 0 | AP148: 0 | AQ148: 0 | AR148: 0 | AS148: 0 | AT148: 0 | AU148: 0 | AV148: 0 | AW148: 0 | AX148: 0 | AY148: 0 | AZ148: 0 | BA148: 0 | BB148: 0 | BC148: 0 | BD148: 0 | BE148: 0 | BF148: 0.0015 | BG148: 0 | BH148: 0.2918888889
A149: TC2, Zambia | B149: TcIL3000_6_2050 | C149: 571269 | D149: G | E149: A | F149: missense | G149: Flavinator of succinate dehydrogenase | H149: 0 | I149: 0 | J149: 0 | K149: 0 | L149: 0.522 | M149: 0 | N149: 0.025 | O149: 0 | P149: 0 | Q149: 0 | R149: 0 | S149: 0 | T149: 0 | U149: 0 | V149: 0.013 | W149: 0 | X149: 0 | Y149: 0 | Z149: 0 | AA149: 0 | AB149: 0.034 | AC149: 0 | AD149: 0 | AE149: 0 | AF149: 0 | AG149: 0 | AH149: 0 | AI149: 0 | AJ149: 0.013 | AK149: 0 | AL149: 0 | AM149: 0 | AN149: 0 | AO149: 0 | AP149: 0 | AQ149: 0 | AR149: 0 | AS149: 0 | AT149: 0 | AU149: 1 | AV149: 0.667 | AW149: 0 | AX149: 0.419 | AY149: 0 | AZ149: 0 | BA149: 0 | BB149: 0 | BC149: 0 | BD149: 0 | BE149: 1 | BF149: 0.0029375 | BG149: 0.5 | BH149: 0.2676111111
A150: TC2 | B150: TcIL3000_6_2050 | C150: 571244 | D150: T | E150: A | F150: missense | G150: Flavinator of succinate dehydrogenase | H150: 0 | I150: 0 | J150: 0 | K150: 0 | L150: 0.571 | M150: 0 | N150: 0 | O150: 0 | P150: 0 | Q150: 0 | R150: 0 | S150: 0 | T150: 0 | U150: 0 | V150: 0 | W150: 0 | X150: 0 | Y150: 0.579 | Z150: 0.6 | AA150: 1 | AB150: 1 | AC150: 1 | AD150: 1 | AE150: 0.955 | AF150: 0 | AG150: 0 | AH150: 0 | AI150: 0 | AJ150: 0.58 | AK150: 0 | AL150: 0 | AM150: 0 | AN150: 0 | AO150: 0 | AP150: 0 | AQ150: 0.75 | AR150: 0 | AS150: 0 | AT150: 0 | AU150: 1 | AV150: 0 | AW150: 0 | AX150: 0.387 | AY150: 1 | AZ150: 1 | BA150: 0 | BB150: 0.019 | BC150: 0.567 | BD150: 0 | BE150: 0.99 | BF150: 0.08695 | BG150: 0.495 | BH150: 0.1664206349
A151: Zambia | B151: TcIL3000.11.4410 | C151: 1280075 | D151: G | E151: A | F151: synonymous | G151: hypothetical protein conserved | H151: 0.364 | I151: 0.545 | J151: 0.5 | K151: 0 | L151: 0 | M151: 0 | N151: 0 | O151: 0 | P151: 0 | Q151: 0 | R151: 0 | S151: 1 | T151: 1 | U151: 1 | V151: 1 | W151: 0.657 | X151: 0.96 | Y151: 1 | Z151: 1 | AA151: 1 | AB151: 1 | AC151: 1 | AD151: 1 | AE151: 1 | AF151: 1 | AG151: 1 | AH151: 0.45 | AI151: 0.487 | AJ151: NA | AK151: 0 | AL151: 0.4 | AM151: 0.577 | AN151: 1 | AO151: 1 | AP151: 1 | AQ151: 1 | AR151: 0.889 | AS151: 1 | AT151: 1 | AU151: 1 | AV151: 0.818 | AW151: 1 | AX151: 0.75 | AY151: 1 | AZ151: 1 | BA151: 1 | BB151: 0.973 | BC151: 0.69 | BD151: 0.476 | BE151: 0 | BF151: 0.022975 | BG151: 0.238 | BH151: 0.5120952381
A152: Zambia | B152: TcIL3000.11.4410 | C152: 1280066 | D152: G | E152: C | F152: synonymous | G152: hypothetical protein conserved | H152: 0.417 | I152: 0.474 | J152: 0.529 | K152: 0 | L152: 0 | M152: 0 | N152: 0.014 | O152: 0 | P152: 0 | Q152: 0 | R152: 0 | S152: 1 | T152: 1 | U152: 1 | V152: 1 | W152: 0.658 | X152: 1 | Y152: 1 | Z152: 1 | AA152: 0.974 | AB152: 0.968 | AC152: 1 | AD152: 1 | AE152: 1 | AF152: 1 | AG152: 1 | AH152: 0.474 | AI152: 0.439 | AJ152: NA | AK152: 0 | AL152: 0.444 | AM152: 0.577 | AN152: 0.968 | AO152: 1 | AP152: 1 | AQ152: 1 | AR152: 0.875 | AS152: 1 | AT152: 1 | AU152: 1 | AV152: 0.833 | AW152: 1 | AX152: 0.75 | AY152: 1 | AZ152: 1 | BA152: 1 | BB152: 1 | BC152: 0.69 | BD152: 0.451 | BE152: 0 | BF152: 0.0309375 | BG152: 0.2255 | BH152: 0.5101825397
A153: Zambia | B153: TcIL3000.11.4410 | C153: 1279727 | D153: C | E153: T | F153: synonymous | G153: hypothetical protein conserved | H153: 1 | I153: 0.421 | J153: 0.385 | K153: 1 | L153: 0.818 | M153: 1 | N153: 0.475 | O153: 1 | P153: 1 | Q153: 1 | R153: 0.516 | S153: 0 | T153: 0 | U153: 0 | V153: 0 | W153: 0 | X153: 0 | Y153: 0.062 | Z153: 0 | AA153: 0 | AB153: 0 | AC153: 0 | AD153: 0 | AE153: 0 | AF153: 0 | AG153: 0 | AH153: 0 | AI153: 0 | AJ153: NA | AK153: 0 | AL153: 1 | AM153: 0.462 | AN153: 0 | AO153: 0 | AP153: 0 | AQ153: 0 | AR153: 0.5 | AS153: 0 | AT153: 0 | AU153: 0 | AV153: 0 | AW153: 0 | AX153: 0.4 | AY153: 0 | AZ153: 0 | BA153: 0 | BB153: 0 | BC153: 0 | BD153: 0.466 | BE153: 0 | BF153: 0.003875 | BG153: 0.233 | BH153: 0.4312619048
A154: Zambia | B154: TcIL3000_7_5120 | C154: 1788391 | D154: G | E154: C | F154: missense | G154: hypothetical protein conserved | H154: 0.524 | I154: 0.526 | J154: 0.267 | K154: 0.444 | L154: 0.375 | M154: 0.533 | N154: 0.274 | O154: 0.633 | P154: 0.643 | Q154: 0.7 | R154: 0 | S154: 0.455 | T154: 0.577 | U154: 0 | V154: 0 | W154: 0 | X154: 0 | Y154: 0 | Z154: 0 | AA154: 0 | AB154: 0 | AC154: 0 | AD154: 0 | AE154: 0 | AF154: 0 | AG154: 0 | AH154: 0 | AI154: 0 | AJ154: 0.271 | AK154: 0 | AL154: 0.6 | AM154: 0.462 | AN154: 0.4 | AO154: 0 | AP154: 0 | AQ154: 0 | AR154: 0.2 | AS154: 0.524 | AT154: 0 | AU154: 0 | AV154: 0 | AW154: 0 | AX154: 0 | AY154: 0 | AZ154: 0 | BA154: 0 | BB154: 0 | BC154: 0 | BD154: 0 | BE154: 0 | BF154: 0 | BG154: 0 | BH154: 0.3084047619
A155: Zambia | B155: TcIL3000.11.2040 | C155: 636936 | D155: C | E155: A | F155: missense | G155: hypothetical protein conserved | H155: 0.362 | I155: 0.455 | J155: 0.471 | K155: 0.375 | L155: 0.444 | M155: 0.643 | N155: 0.98 | O155: 0.611 | P155: 0.5 | Q155: 0.727 | R155: 0.455 | S155: 0 | T155: 0 | U155: 0 | V155: 0.027 | W155: 0 | X155: 0 | Y155: 0 | Z155: 0 | AA155: 0.031 | AB155: 0 | AC155: 0 | AD155: 0 | AE155: 0 | AF155: 0 | AG155: 0 | AH155: 0.056 | AI155: 0.028 | AJ155: NA | AK155: 0 | AL155: 0.5 | AM155: 0 | AN155: 0 | AO155: 0 | AP155: 0 | AQ155: 0 | AR155: 0.2 | AS155: 0.375 | AT155: 0 | AU155: 0 | AV155: 0 | AW155: 0 | AX155: 0 | AY155: 0 | AZ155: 0.029 | BA155: 0 | BB155: 0 | BC155: 0 | BD155: 0 | BE155: 0 | BF155: 0.003075 | BG155: 0 | BH155: 0.2802460317
A156: TC1 | B156: TcIL3000.11.2040 | C156: 638742 | D156: A | E156: G | F156: missense | G156: hypothetical protein conserved | H156: 0 | I156: 0 | J156: 0 | K156: 0 | L156: 0 | M156: 0 | N156: 0 | O156: 0 | P156: 0 | Q156: 0 | R156: 0 | S156: 0 | T156: 0 | U156: 0.654 | V156: 1 | W156: 0.957 | X156: 1 | Y156: 1 | Z156: 0 | AA156: 0 | AB156: 0 | AC156: 0 | AD156: 0 | AE156: 0 | AF156: 1 | AG156: 0.967 | AH156: 1 | AI156: 1 | AJ156: NA | AK156: 0 | AL156: 0 | AM156: 0 | AN156: 0 | AO156: 0 | AP156: 0 | AQ156: 0 | AR156: 0 | AS156: 0 | AT156: 0 | AU156: 0.667 | AV156: 0 | AW156: 0 | AX156: 0 | AY156: 0 | AZ156: 0 | BA156: 0.4 | BB156: 0 | BC156: 0 | BD156: 0 | BE156: 0 | BF156: 0.456125 | BG156: 0 | BH156: 0.09528571429
A157: TC2 | B157: TcIL3000_10_7660 | C157: 2065016 | D157: A | E157: G | F157: missense | G157: kinetoplast DNA-associated protein putative | H157: 0 | I157: 0 | J157: 0 | K157: 0.357 | L157: 0 | M157: 0.64 | N157: 0.012 | O157: 0 | P157: 0.423 | Q157: 0.526 | R157: 0 | S157: 0 | T157: 0 | U157: 0.019 | V157: 0 | W157: 0 | X157: 0.037 | Y157: 0 | Z157: 0 | AA157: 0 | AB157: 0 | AC157: 0 | AD157: 0 | AE157: 0 | AF157: 0 | AG157: 0 | AH157: 0 | AI157: 0 | AJ157: 0.008 | AK157: 0.6 | AL157: 0 | AM157: 0 | AN157: 0 | AO157: 0 | AP157: 0 | AQ157: 0 | AR157: 0 | AS157: 0 | AT157: 0 | AU157: 0 | AV157: 0 | AW157: 0 | AX157: 0 | AY157: 0 | AZ157: 0 | BA157: 0 | BB157: 0.024 | BC157: 0 | BD157: 0.427 | BE157: 0 | BF157: 0.0013 | BG157: 0.3865 | BH157: 0.1087777778
A158: Zambia | B158: TcIL3000_8_110 | C158: 23780 | D158: A | E158: G | F158: synonymous | G158: Lipoyltransferase | H158: 0 | I158: 0 | J158: 0 | K158: 0 | L158: 0 | M158: 0.579 | N158: 0.017 | O158: 0 | P158: 0.429 | Q158: 0.5 | R158: 0 | S158: 0 | T158: 0 | U158: 0 | V158: 1 | W158: 0.296 | X158: 0.536 | Y158: 0.656 | Z158: 0 | AA158: 0.091 | AB158: 0.038 | AC158: 0 | AD158: 0 | AE158: 0 | AF158: 0.037 | AG158: 0.02 | AH158: 0.032 | AI158: 0 | AJ158: 0.035 | AK158: 0 | AL158: 0 | AM158: 0.467 | AN158: 0 | AO158: 0.111 | AP158: 0 | AQ158: 0 | AR158: 0.4 | AS158: 0.455 | AT158: 0.538 | AU158: 1 | AV158: 0 | AW158: 0.514 | AX158: 0.524 | AY158: 0 | AZ158: 0 | BA158: 0 | BB158: 0 | BC158: 0.032 | BD158: 0 | BE158: 0 | BF158: 0.162725 | BG158: 0 | BH158: 0.3733095238
A159: TC1, Zambia | B159: TcIL3000_8_110 | C159: 22542 | D159: T | E159: C | F159: missense | G159: Lipoyltransferase | H159: 1 | I159: 1 | J159: 1 | K159: 1 | L159: 0.536 | M159: 0.5 | N159: 0.484 | O159: 0.524 | P159: 0.778 | Q159: 0.333 | R159: 0.435 | S159: 1 | T159: 1 | U159: 1 | V159: 0.013 | W159: 0.576 | X159: 0.438 | Y159: 0.5 | Z159: 1 | AA159: 0.688 | AB159: 0 | AC159: 0.632 | AD159: 0.364 | AE159: 0.615 | AF159: 0.625 | AG159: 0.379 | AH159: 0.615 | AI159: 0.615 | AJ159: 0.985 | AK159: 0.2 | AL159: 1 | AM159: 1 | AN159: 0.558 | AO159: 0 | AP159: 1 | AQ159: 0 | AR159: 1 | AS159: 0.615 | AT159: 0 | AU159: 1 | AV159: 0 | AW159: 0 | AX159: 0 | AY159: 1 | AZ159: 1 | BA159: 1 | BB159: 1 | BC159: 0.609 | BD159: 0.379 | BE159: 0.508 | BF159: 0.41805 | BG159: 0.2435 | BH159: 0.3568730159
A160: Zambia | B160: TcIL3000_8_110 | C160: 22886 | D160: A | E160: G | F160: synonymous | G160: Lipoyltransferase | H160: 0.778 | I160: 0.462 | J160: 0.5 | K160: 1 | L160: 0.714 | M160: 0.48 | N160: 0.491 | O160: 0.571 | P160: 0.9 | Q160: 0 | R160: 0.613 | S160: 0 | T160: 0 | U160: 0.017 | V160: 0.013 | W160: 0 | X160: 0 | Y160: 0 | Z160: 0 | AA160: 0 | AB160: 0 | AC160: 0 | AD160: 0 | AE160: 0 | AF160: 0 | AG160: 0 | AH160: 0.036 | AI160: 0.469 | AJ160: 0.675 | AK160: 0 | AL160: 0.4 | AM160: 0.5 | AN160: 0 | AO160: 0 | AP160: 0 | AQ160: 0 | AR160: 0.571 | AS160: 0 | AT160: 0 | AU160: 0 | AV160: 0 | AW160: 0 | AX160: 0 | AY160: 0 | AZ160: 0 | BA160: 0 | BB160: 0 | BC160: 0.034 | BD160: 0 | BE160: 0 | BF160: 0.0266375 | BG160: 0 | BH160: 0.3300396825
A161: Zambia | B161: TcIL3000_8_110 | C161: 23339 | D161: A | E161: G | F161: synonymous | G161: Lipoyltransferase | H161: 0.516 | I161: 0.308 | J161: 0.3 | K161: 1 | L161: 0.375 | M161: 0.75 | N161: 0.526 | O161: 0.438 | P161: 0.5 | Q161: 0 | R161: 0.667 | S161: 0 | T161: 0 | U161: 0.062 | V161: 0.027 | W161: 0 | X161: 0 | Y161: 0 | Z161: 0 | AA161: 0 | AB161: 0.045 | AC161: 0 | AD161: 0 | AE161: 0 | AF161: 0 | AG161: 0 | AH161: 0 | AI161: 0 | AJ161: 0.41 | AK161: 0 | AL161: 0.4 | AM161: 0.556 | AN161: 0 | AO161: 0 | AP161: 0 | AQ161: 0 | AR161: 0.6 | AS161: 0 | AT161: 0 | AU161: 0 | AV161: 0 | AW161: 0 | AX161: 0 | AY161: 0 | AZ161: 0 | BA161: 0 | BB161: 0 | BC161: 0 | BD161: 0 | BE161: 0 | BF161: 0.008375 | BG161: 0 | BH161: 0.2662857143
A162: Zambia | B162: TcIL3000_8_110 | C162: 23342 | D162: C | E162: T | F162: synonymous | G162: Lipoyltransferase | H162: 0.5 | I162: 0.308 | J162: 0.3 | K162: 1 | L162: 0.375 | M162: 0.75 | N162: 0.493 | O162: 0.452 | P162: 0.5 | Q162: 0 | R162: 0.667 | S162: 0 | T162: 0 | U162: 0 | V162: 0 | W162: 0 | X162: 0 | Y162: 0 | Z162: 0 | AA162: 0 | AB162: 0 | AC162: 0 | AD162: 0 | AE162: 0 | AF162: 0 | AG162: 0 | AH162: 0 | AI162: 0.438 | AJ162: 0.618 | AK162: 0 | AL162: 0.4 | AM162: 0.556 | AN162: 0 | AO162: 0 | AP162: 0 | AQ162: 0 | AR162: 0.6 | AS162: 0 | AT162: 0 | AU162: 0 | AV162: 0 | AW162: 0 | AX162: 0 | AY162: 0 | AZ162: 0 | BA162: 0 | BB162: 0 | BC162: 0 | BD162: 0 | BE162: 0 | BF162: 0.027375 | BG162: 0 | BH162: 0.2643412698
A163: Zambia | B163: TcIL3000_8_110 | C163: 23821 | D163: G | E163: T | F163: missense | G163: Lipoyltransferase | H163: 0.477 | I163: 0.593 | J163: 0.444 | K163: 0.957 | L163: 0.667 | M163: 0.35 | N163: 0.478 | O163: 0.438 | P163: 0.55 | Q163: 0 | R163: 0.529 | S163: 0 | T163: 0 | U163: 0.038 | V163: 0.013 | W163: 0 | X163: 0.069 | Y163: 0 | Z163: 0 | AA163: 0 | AB163: 0.033 | AC163: 0 | AD163: 0 | AE163: 0 | AF163: 0 | AG163: 0 | AH163: 0 | AI163: 0.509 | AJ163: 0.659 | AK163: 0 | AL163: 0.235 | AM163: 0.391 | AN163: 0 | AO163: 0 | AP163: 0.033 | AQ163: 0 | AR163: 0.6 | AS163: 0 | AT163: 0 | AU163: 0 | AV163: 0 | AW163: 0 | AX163: 0 | AY163: 0 | AZ163: 0 | BA163: 0 | BB163: 0 | BC163: 0.028 | BD163: 0 | BE163: 0 | BF163: 0.035775 | BG163: 0 | BH163: 0.2555079365
A164: TC2 | B164: TcIL3000_8_110 | C164: 22640 | D164: A | E164: G | F164: synonymous | G164: Lipoyltransferase | H164: 0 | I164: 0 | J164: 0 | K164: 0 | L164: 0 | M164: 0 | N164: 0 | O164: 0 | P164: 0 | Q164: 0 | R164: 0 | S164: 0 | T164: 0 | U164: 0 | V164: 0 | W164: 0 | X164: 0 | Y164: 0 | Z164: 0.029 | AA164: 0 | AB164: 0 | AC164: 0 | AD164: 0 | AE164: 0 | AF164: 0 | AG164: 0 | AH164: 0 | AI164: 0 | AJ164: 0 | AK164: 0.667 | AL164: 0 | AM164: 0 | AN164: 0 | AO164: 0 | AP164: 0 | AQ164: 0 | AR164: 0 | AS164: 0 | AT164: 0.568 | AU164: 0 | AV164: 0.333 | AW164: 0 | AX164: 0.5 | AY164: 0.067 | AZ164: 0 | BA164: 0 | BB164: 0 | BC164: 0 | BD164: 0.655 | BE164: 0 | BF164: 0.0115875 | BG164: 0.3395 | BH164: 0.2001428571
A165: TC1 | B165: TcIL3000_8_110 | C165: 22559 | D165: A | E165: G | F165: synonymous | G165: Lipoyltransferase | H165: 0.48 | I165: 0.35 | J165: 0.667 | K165: 1 | L165: 0.692 | M165: 1 | N165: 1 | O165: 0.5 | P165: 1 | Q165: 0.6 | R165: 1 | S165: 0 | T165: 0 | U165: 0 | V165: 1 | W165: 0.387 | X165: 0.562 | Y165: 0.444 | Z165: 0 | AA165: 0.312 | AB165: 1 | AC165: 1 | AD165: 0.955 | AE165: 0.375 | AF165: 0.375 | AG165: 0.633 | AH165: 1 | AI165: 1 | AJ165: 0.985 | AK165: 0.667 | AL165: 0.636 | AM165: 0.733 | AN165: 0 | AO165: 1 | AP165: 0 | AQ165: 0 | AR165: 0.556 | AS165: 0.357 | AT165: 0 | AU165: 0 | AV165: 0.667 | AW165: 1 | AX165: 0.5 | AY165: 0 | AZ165: 0.536 | BA165: 0 | BB165: 0.508 | BC165: 0.348 | BD165: 0.583 | BE165: 0.508 | BF165: 0.2867875 | BG165: 0.1215 | BH165: 0.1521111111
A166: TC2 | B166: TcIL3000_8_110 | C166: 22689 | D166: C | E166: T | F166: missense | G166: Lipoyltransferase | H166: 0.565 | I166: 1 | J166: 0.5 | K166: 1 | L166: 0.571 | M166: 1 | N166: 1 | O166: 0.533 | P166: 1 | Q166: 1 | R166: 0.971 | S166: 1 | T166: 1 | U166: 0.974 | V166: 1 | W166: 0.975 | X166: 1 | Y166: 1 | Z166: 0.97 | AA166: 1 | AB166: 1 | AC166: 1 | AD166: 1 | AE166: 1 | AF166: 1 | AG166: 1 | AH166: 1 | AI166: 1 | AJ166: 0.976 | AK166: 0.8 | AL166: 0.5 | AM166: 1 | AN166: 1 | AO166: 1 | AP166: 0.733 | AQ166: 1 | AR166: 1 | AS166: 1 | AT166: 1 | AU166: 1 | AV166: 1 | AW166: 1 | AX166: 1 | AY166: 1 | AZ166: 1 | BA166: 1 | BB166: 1 | BC166: 1 | BD166: 0.61 | BE166: 0.5 | BF166: 0.0050625 | BG166: 0.245 | BH166: 0.1459444444
A167: TC1 | B167: TcIL3000_8_110 | C167: 23251 | D167: G | E167: T | F167: missense | G167: Lipoyltransferase | H167: 0 | I167: 0 | J167: 0 | K167: 0 | L167: 0 | M167: 0 | N167: 0.014 | O167: 0 | P167: 0 | Q167: 0 | R167: 0 | S167: 0 | T167: 0 | U167: 0.273 | V167: 0.014 | W167: 0 | X167: 0.345 | Y167: 0 | Z167: 0.25 | AA167: 0 | AB167: 0.05 | AC167: 0 | AD167: 0 | AE167: 0 | AF167: 0.019 | AG167: 0.065 | AH167: 0.571 | AI167: 0.516 | AJ167: 0.011 | AK167: 0 | AL167: 0 | AM167: 0.4 | AN167: 0 | AO167: 0 | AP167: 0 | AQ167: 1 | AR167: 0.429 | AS167: 0 | AT167: 0 | AU167: 0.625 | AV167: 0 | AW167: 0 | AX167: 0 | AY167: 0.071 | AZ167: 0 | BA167: 1 | BB167: 0.702 | BC167: 0.429 | BD167: 0 | BE167: 0.01 | BF167: 0.2464625 | BG167: 0.005 | BH167: 0.1275714286
A168: TC2 | B168: TcIL3000_8_110 | C168: 22733 | D168: A | E168: G | F168: synonymous | G168: Lipoyltransferase | H168: 1 | I168: 1 | J168: 0.545 | K168: 0.944 | L168: 0.5 | M168: 1 | N168: 0.985 | O168: 0.562 | P168: 1 | Q168: 1 | R168: 0.941 | S168: 1 | T168: 1 | U168: 1 | V168: 1 | W168: 1 | X168: 1 | Y168: 1 | Z168: 1 | AA168: 1 | AB168: 1 | AC168: 1 | AD168: 1 | AE168: 1 | AF168: 0.974 | AG168: 1 | AH168: 0.944 | AI168: 1 | AJ168: 1 | AK168: 0.8 | AL168: 1 | AM168: 1 | AN168: 1 | AO168: 1 | AP168: 0.571 | AQ168: 1 | AR168: 1 | AS168: 1 | AT168: 1 | AU168: 1 | AV168: 1 | AW168: 1 | AX168: 1 | AY168: 1 | AZ168: 1 | BA168: 1 | BB168: 0.983 | BC168: 1 | BD168: 0.547 | BE168: 0 | BF168: 0.001725 | BG168: 0.5265 | BH168: 0.1084444444
A169: TC1 | B169: TcIL3000_8_110 | C169: 22515 | D169: T | E169: C | F169: missense | G169: Lipoyltransferase | H169: 0 | I169: 0 | J169: 0 | K169: 0 | L169: 0.029 | M169: 0 | N169: 0 | O169: 0 | P169: 0 | Q169: 0 | R169: 0 | S169: 0 | T169: 0 | U169: 0 | V169: 0 | W169: 0.545 | X169: 0.412 | Y169: 0.5 | Z169: 0 | AA169: 0.75 | AB169: 0 | AC169: 0.619 | AD169: 0.375 | AE169: 0.615 | AF169: 0.64 | AG169: 0.346 | AH169: 0.538 | AI169: 0 | AJ169: 0.279 | AK169: 0 | AL169: 0 | AM169: 0.143 | AN169: 0 | AO169: 0 | AP169: 0 | AQ169: 0 | AR169: 0.444 | AS169: 0 | AT169: 0 | AU169: 0.312 | AV169: 0 | AW169: 0 | AX169: 0 | AY169: 0 | AZ169: 0.606 | BA169: 0.625 | BB169: 0.97 | BC169: 0.696 | BD169: 0 | BE169: 0 | BF169: 0.24565 | BG169: 0 | BH169: 0.09844444444
A170: TC2 | B170: TcIL3000_8_110 | C170: 22631 | D170: A | E170: G | F170: synonymous | G170: Lipoyltransferase | H170: 0 | I170: 0.6 | J170: 0 | K170: 0 | L170: 0 | M170: 0 | N170: 0 | O170: 0 | P170: 0 | Q170: 0.333 | R170: 0 | S170: 1 | T170: 1 | U170: 0.487 | V170: 1 | W170: 1 | X170: 0.611 | Y170: 1 | Z170: 0.286 | AA170: 0.517 | AB170: 0.577 | AC170: 1 | AD170: 1 | AE170: 0.412 | AF170: 1 | AG170: 0.968 | AH170: 1 | AI170: 0.595 | AJ170: 0.348 | AK170: 0 | AL170: 0 | AM170: 0.211 | AN170: 1 | AO170: 0 | AP170: 0.846 | AQ170: 1 | AR170: 0.5 | AS170: 0.571 | AT170: 0 | AU170: 0.412 | AV170: 0 | AW170: 0.469 | AX170: 0.5 | AY170: 1 | AZ170: 1 | BA170: 0 | BB170: 0.508 | BC170: 0.391 | BD170: 0 | BE170: 0.569 | BF170: 0.1985125 | BG170: 0.2845 | BH170: 0.07306349206
A171: TC1 | B171: TcIL3000_8_110 | C171: 22543 | D171: A | E171: G | F171: missense | G171: Lipoyltransferase | H171: 0 | I171: 0.55 | J171: 0 | K171: 0 | L171: 0 | M171: 0 | N171: 0 | O171: 0 | P171: 0 | Q171: 0.333 | R171: 0 | S171: 1 | T171: 1 | U171: 0.541 | V171: 0.013 | W171: 0.576 | X171: 0.412 | Y171: 0.5 | Z171: 1 | AA171: 0.688 | AB171: 0 | AC171: 0.6 | AD171: 0.364 | AE171: 0.615 | AF171: 0.609 | AG171: 0.31 | AH171: 0.615 | AI171: 0 | AJ171: 0.338 | AK171: 0 | AL171: 0 | AM171: 0.267 | AN171: 0.558 | AO171: 0 | AP171: 0.923 | AQ171: 1 | AR171: 0.5 | AS171: 0.615 | AT171: 0 | AU171: 0.375 | AV171: 0 | AW171: 0 | AX171: 0 | AY171: 1 | AZ171: 0.964 | BA171: 1 | BB171: 1 | BC171: 0.609 | BD171: 0 | BE171: 0 | BF171: 0.4244125 | BG171: 0 | BH171: 0.04442063492
A172: TC2 | B172: TcIL3000_8_110 | C172: 23824 | D172: T | E172: C | F172: missense | G172: Lipoyltransferase | H172: 0.5 | I172: 0 | J172: 0.556 | K172: 0 | L172: 0 | M172: 0 | N172: 0 | O172: 0 | P172: 0 | Q172: 0 | R172: 0 | S172: 0 | T172: 0 | U172: 0 | V172: 0 | W172: 0 | X172: 0 | Y172: 0 | Z172: 0 | AA172: 0 | AB172: 0 | AC172: 0 | AD172: 0 | AE172: 0 | AF172: 0 | AG172: 0.019 | AH172: 0 | AI172: 0 | AJ172: 0 | AK172: 0.333 | AL172: 0.706 | AM172: 0 | AN172: 0 | AO172: 0.923 | AP172: 0 | AQ172: 0 | AR172: 0 | AS172: 0 | AT172: 0 | AU172: 0 | AV172: 0 | AW172: 0.438 | AX172: 0.542 | AY172: 0 | AZ172: 0 | BA172: 0.04 | BB172: 0 | BC172: 0 | BD172: 0.486 | BE172: 1 | BF172: 0.0068125 | BG172: 0.41 | BH172: 0.009166666667
A173: Zambia | B173: TcIL3000_9_4510 | C173: 1487313 | D173: A | E173: C | F173: missense | G173: Mitochondrial carrier | H173: 0.545 | I173: 0.588 | J173: 0.5 | K173: 0.452 | L173: 0.316 | M173: 0.515 | N173: 0.037 | O173: 0.7 | P173: 0.538 | Q173: 0.5 | R173: 0 | S173: 0 | T173: 0 | U173: 0.022 | V173: 0.026 | W173: 0.048 | X173: 0.1 | Y173: 0.042 | Z173: 0.045 | AA173: 0 | AB173: 0.056 | AC173: 0 | AD173: 0 | AE173: 0 | AF173: 0 | AG173: 0 | AH173: 0 | AI173: 0 | AJ173: 0.252 | AK173: 0 | AL173: 0.538 | AM173: 0.543 | AN173: 1 | AO173: 0 | AP173: 0 | AQ173: 0 | AR173: 0.474 | AS173: 0.4 | AT173: 0.017 | AU173: 0 | AV173: 0 | AW173: 0 | AX173: 0 | AY173: 0 | AZ173: 0.045 | BA173: 0 | BB173: 0.013 | BC173: 0 | BD173: 0 | BE173: 0 | BF173: 0.0095875 | BG173: 0 | BH173: 0.2489365079
A174: TC1 | B174: TcIL3000_9_4510 | C174: 1487199 | D174: G | E174: T | F174: missense | G174: Mitochondrial carrier | H174: 0 | I174: 0 | J174: 0 | K174: 0 | L174: 0 | M174: 0 | N174: 0 | O174: 0 | P174: 0 | Q174: 0 | R174: 0 | S174: 0.391 | T174: 0.533 | U174: 0.477 | V174: 0.987 | W174: 0.933 | X174: 0.5 | Y174: 1 | Z174: 0.474 | AA174: 0 | AB174: 0 | AC174: 0 | AD174: 0 | AE174: 0 | AF174: 0 | AG174: 0 | AH174: 0 | AI174: 0.476 | AJ174: 0 | AK174: 0 | AL174: 0 | AM174: 0 | AN174: 0 | AO174: 0 | AP174: 0.409 | AQ174: 0.647 | AR174: 0 | AS174: 0 | AT174: 0 | AU174: 0 | AV174: 0 | AW174: 0.456 | AX174: 0 | AY174: 1 | AZ174: 1 | BA174: 1 | BB174: 0.485 | BC174: 0.444 | BD174: 0 | BE174: 0 | BF174: 0.442425 | BG174: 0 | BH174: 0.008912698413
A175: Zambia | B175: TcIL3000_9_5000 | C175: 1655896 | D175: G | E175: A | F175: stop gained | G175: mitochondrial carrier protein putative | H175: 0.55 | I175: 0.391 | J175: 1 | K175: 0.4 | L175: 0.8 | M175: 1 | N175: 0 | O175: 0.967 | P175: 1 | Q175: 1 | R175: 0 | S175: 0.947 | T175: 1 | U175: 1 | V175: 0.986 | W175: 1 | X175: 1 | Y175: 1 | Z175: 1 | AA175: 0.97 | AB175: 1 | AC175: 1 | AD175: 1 | AE175: 1 | AF175: 0.977 | AG175: 1 | AH175: 1 | AI175: 1 | AJ175: 0.989 | AK175: 0 | AL175: 0.522 | AM175: 0.333 | AN175: 0.944 | AO175: 0 | AP175: 0.478 | AQ175: 1 | AR175: 0.25 | AS175: 0.667 | AT175: 0.488 | AU175: 0 | AV175: 0 | AW175: 0 | AX175: 0 | AY175: 1 | AZ175: 1 | BA175: 0.643 | BB175: 1 | BC175: 1 | BD175: 0 | BE175: 0 | BF175: 0.0672125 | BG175: 0 | BH175: 0.4288412698
A176: Zambia | B176: TcIL3000_9_5000 | C176: 1655692 | D176: A | E176: G | F176: missense | G176: mitochondrial carrier protein putative | H176: 0.703 | I176: 0.735 | J176: 0.56 | K176: 0.41 | L176: 0.457 | M176: 0.615 | N176: 0.011 | O176: 0.581 | P176: 0.435 | Q176: 0.478 | R176: 0 | S176: 0.545 | T176: 0.647 | U176: 0 | V176: 0 | W176: 0 | X176: 0 | Y176: 0 | Z176: 0.045 | AA176: 0 | AB176: 0 | AC176: 0 | AD176: 0 | AE176: 0 | AF176: 0 | AG176: 0 | AH176: 0 | AI176: 0 | AJ176: 0.244 | AK176: 0 | AL176: 0.692 | AM176: 0.667 | AN176: 1 | AO176: 0 | AP176: 0 | AQ176: 0 | AR176: 0.25 | AS176: 0.5 | AT176: 0 | AU176: 0 | AV176: 0 | AW176: 0 | AX176: 0 | AY176: 0 | AZ176: 0 | BA176: 0 | BB176: 0 | BC176: 0 | BD176: 0 | BE176: 0 | BF176: 0.0028125 | BG176: 0 | BH176: 0.3670793651
A177: Zambia | B177: TcIL3000_8_4200 | C177: 1237561 | D177: C | E177: T | F177: missense | G177: mitochondrial carrier protein putative | H177: 0 | I177: 0.524 | J177: 0 | K177: 0 | L177: 0 | M177: 0 | N177: 0.574 | O177: 0 | P177: 0 | Q177: 0 | R177: 0.536 | S177: 0.581 | T177: 0.5 | U177: 0 | V177: 0 | W177: 0 | X177: 0 | Y177: 0 | Z177: 0 | AA177: 0 | AB177: 0 | AC177: 0 | AD177: 0 | AE177: 0 | AF177: 0 | AG177: 0 | AH177: 0 | AI177: 0 | AJ177: 0 | AK177: 0 | AL177: 0 | AM177: 0.462 | AN177: 0.462 | AO177: 0.6 | AP177: 0.652 | AQ177: 0 | AR177: 0.429 | AS177: 1 | AT177: 1 | AU177: 0 | AV177: 0.9 | AW177: 0.368 | AX177: 0.609 | AY177: 0 | AZ177: 0 | BA177: 0 | BB177: 0.038 | BC177: 0 | BD177: 0 | BE177: 0.01 | BF177: 0.0076 | BG177: 0.005 | BH177: 0.3434206349
A178: Zambia | B178: TcIL3000_8_4200 | C178: 1237570 | D178: C | E178: T | F178: missense | G178: mitochondrial carrier protein putative | H178: 0 | I178: 0 | J178: 0 | K178: 0 | L178: 0 | M178: 0 | N178: 0 | O178: 0 | P178: 0 | Q178: 0 | R178: 0 | S178: 0 | T178: 0 | U178: 0 | V178: 0.014 | W178: 0 | X178: 0 | Y178: 0 | Z178: 0 | AA178: 0 | AB178: 0 | AC178: 0 | AD178: 0 | AE178: 0 | AF178: 0.019 | AG178: 0.033 | AH178: 0 | AI178: 0 | AJ178: 0 | AK178: 0 | AL178: 0 | AM178: 0.407 | AN178: 0.48 | AO178: 0.643 | AP178: 0.652 | AQ178: 0 | AR178: 0.429 | AS178: 0.421 | AT178: 1 | AU178: 0 | AV178: 0.545 | AW178: 0 | AX178: 0.609 | AY178: 0 | AZ178: 0 | BA178: 0 | BB178: 0 | BC178: 0 | BD178: 0 | BE178: 0 | BF178: 0.004125 | BG178: 0 | BH178: 0.3079206349
A179: Zambia | B179: TcIL3000_10_13490 | C179: 3700874 | D179: C | E179: T | F179: missense | G179: mitochondrial carrier protein putative | H179: 0.452 | I179: 0.552 | J179: 0.667 | K179: 0.542 | L179: 0.529 | M179: 0.688 | N179: 0 | O179: 0 | P179: 0.455 | Q179: 0 | R179: 0.333 | S179: 0 | T179: 0 | U179: 0 | V179: 0 | W179: 0 | X179: 0 | Y179: 0 | Z179: 0 | AA179: 0 | AB179: 0 | AC179: 0 | AD179: 0 | AE179: 0 | AF179: 0 | AG179: 0 | AH179: 0 | AI179: 0 | AJ179: 0.356 | AK179: 0 | AL179: 0.684 | AM179: 0.391 | AN179: 0.37 | AO179: 0 | AP179: 0 | AQ179: 0 | AR179: 0.2 | AS179: 0 | AT179: 0 | AU179: 0 | AV179: 0 | AW179: 0 | AX179: 0 | AY179: 0 | AZ179: 0.033 | BA179: 0 | BB179: 0 | BC179: 0 | BD179: 0 | BE179: 0 | BF179: 0.0066 | BG179: 0 | BH179: 0.2860396825
A180: Zambia | B180: TcIL3000_8_4200 | C180: 1237548 | D180: G | E180: A | F180: missense | G180: mitochondrial carrier protein putative | H180: 0.514 | I180: 0.417 | J180: 0.714 | K180: 0.552 | L180: 1 | M180: 0.483 | N180: 0 | O180: 0 | P180: 0.125 | Q180: 0.571 | R180: 0 | S180: 0 | T180: 0 | U180: 0 | V180: 0 | W180: 0 | X180: 0 | Y180: 0 | Z180: 0 | AA180: 0.037 | AB180: 0 | AC180: 0 | AD180: 0 | AE180: 0 | AF180: 0 | AG180: 0 | AH180: 0 | AI180: 0 | AJ180: 0.02 | AK180: 0 | AL180: 0.385 | AM180: 0.5 | AN180: 0.519 | AO180: 0 | AP180: 0 | AQ180: 0 | AR180: 0.286 | AS180: 0 | AT180: 0.021 | AU180: 0 | AV180: 0 | AW180: 0 | AX180: 0 | AY180: 0 | AZ180: 0 | BA180: 0 | BB180: 0 | BC180: 0 | BD180: 0 | BE180: 0 | BF180: 0.0023125 | BG180: 0 | BH180: 0.2772539683
A181: Zambia | B181: TcIL3000_8_4200 | C181: 1238160 | D181: A | E181: G | F181: missense | G181: mitochondrial carrier protein putative | H181: 0.391 | I181: 0.5 | J181: 0.6 | K181: 0.381 | L181: 0.333 | M181: 0.48 | N181: 0.016 | O181: 0 | P181: 0.714 | Q181: 0.667 | R181: 0 | S181: 0 | T181: 0 | U181: 0 | V181: 0 | W181: 0.038 | X181: 0 | Y181: 0 | Z181: 0 | AA181: 0.059 | AB181: 0 | AC181: 0 | AD181: 0 | AE181: 0 | AF181: 0 | AG181: 0 | AH181: 0 | AI181: 0 | AJ181: 0.663 | AK181: 0 | AL181: 0.75 | AM181: 0.429 | AN181: 0.5 | AO181: 0 | AP181: 0 | AQ181: 0 | AR181: 0.333 | AS181: 0 | AT181: 0 | AU181: 0 | AV181: 0 | AW181: 0 | AX181: 0 | AY181: 0 | AZ181: 0 | BA181: 0 | BB181: 0 | BC181: 0 | BD181: 0 | BE181: 0 | BF181: 0.0060625 | BG181: 0 | BH181: 0.272484127
A182: Zambia | B182: TcIL3000_9_5000 | C182: 1655549 | D182: G | E182: T | F182: start_lost | G182: mitochondrial carrier protein putative | H182: 0.605 | I182: 0.55 | J182: 0.64 | K182: 0.566 | L182: 0.625 | M182: 0.765 | N182: 0 | O182: 0.548 | P182: 0.438 | Q182: 0.385 | R182: 0 | S182: 0.571 | T182: 0.586 | U182: 0.012 | V182: 0 | W182: 0 | X182: 0.077 | Y182: 0.053 | Z182: 0.053 | AA182: 0 | AB182: 0.029 | AC182: 0.042 | AD182: 0 | AE182: 0 | AF182: 0.027 | AG182: 0.079 | AH182: 0 | AI182: 0.022 | AJ182: 0.268 | AK182: 0 | AL182: 0.75 | AM182: 0.581 | AN182: 1 | AO182: 0 | AP182: 0 | AQ182: 0.04 | AR182: 0.857 | AS182: 0.588 | AT182: 0 | AU182: 0 | AV182: 0 | AW182: 0 | AX182: 0 | AY182: 0 | AZ182: 0 | BA182: 0 | BB182: 0.032 | BC182: 0.031 | BD182: 0 | BE182: 0 | BF182: 0.014525 | BG182: 0 | BH182: 0.2719047619
A183: TC2 | B183: TcIL3000_10_13490 | C183: 3700721 | D183: C | E183: T | F183: missense | G183: mitochondrial carrier protein putative | H183: 0.571 | I183: 0 | J183: 0.167 | K183: 0.59 | L183: 0 | M183: 0 | N183: 0 | O183: 0 | P183: 0 | Q183: 0 | R183: 0.045 | S183: 0 | T183: 0 | U183: 0 | V183: 0.434 | W183: 0.543 | X183: 0.286 | Y183: 0 | Z183: 0 | AA183: 0.222 | AB183: 0.176 | AC183: 0 | AD183: 0 | AE183: 0.688 | AF183: 0 | AG183: 0 | AH183: 0 | AI183: 0 | AJ183: 0 | AK183: 1 | AL183: 0.476 | AM183: 0 | AN183: 0 | AO183: 0.526 | AP183: 0.407 | AQ183: 0 | AR183: 0 | AS183: 0 | AT183: 0.441 | AU183: 0.733 | AV183: 0.333 | AW183: 0.636 | AX183: 0.538 | AY183: 0 | AZ183: 0 | BA183: 0.667 | BB183: 0 | BC183: 0 | BD183: 0.465 | BE183: 0.469 | BF183: 0.0134125 | BG183: 0.533 | BH183: 0.2284444444
A184: TC2 | B184: TcIL3000_10_13490 | C184: 3700647 | D184: T | E184: G | F184: missense | G184: mitochondrial carrier protein putative | H184: 0 | I184: 0 | J184: 0 | K184: 0.028 | L184: 0 | M184: 0.226 | N184: 0.589 | O184: 0 | P184: 0.385 | Q184: 0.348 | R184: 0 | S184: 0.486 | T184: 0.486 | U184: 0.03 | V184: 0.025 | W184: 0.062 | X184: 0 | Y184: 0 | Z184: 0.053 | AA184: 0 | AB184: 0.12 | AC184: 0 | AD184: 0 | AE184: 0.05 | AF184: 0.02 | AG184: 0.026 | AH184: 0 | AI184: 0.018 | AJ184: 0.018 | AK184: 0 | AL184: 0 | AM184: 0 | AN184: 0.765 | AO184: 0 | AP184: 0.6 | AQ184: 0 | AR184: 0 | AS184: 0 | AT184: 0.589 | AU184: 0 | AV184: 0 | AW184: 0 | AX184: 0 | AY184: 0 | AZ184: 0 | BA184: 0 | BB184: 0.044 | BC184: 0.038 | BD184: 0.551 | BE184: 0.478 | BF184: 0.00885 | BG184: 0.5145 | BH184: 0.1332460317
A185: TC2 | B185: TcIL3000_8_4200 | C185: 1237564 | D185: C | E185: T | F185: missense | G185: mitochondrial carrier protein putative | H185: 0.538 | I185: 1 | J185: 0.692 | K185: 0.5 | L185: 1 | M185: 1 | N185: 0.567 | O185: 0 | P185: 1 | Q185: 0.5 | R185: 0.5 | S185: 1 | T185: 1 | U185: 1 | V185: 1 | W185: 1 | X185: 0.947 | Y185: 1 | Z185: 1 | AA185: 1 | AB185: 0.941 | AC185: 1 | AD185: 1 | AE185: 1 | AF185: 0.981 | AG185: 0.964 | AH185: 1 | AI185: 1 | AJ185: 0.976 | AK185: 0 | AL185: 0.429 | AM185: 1 | AN185: 1 | AO185: 0.6 | AP185: 1 | AQ185: 1 | AR185: 1 | AS185: 1 | AT185: 1 | AU185: 1 | AV185: 1 | AW185: 0.368 | AX185: 0.591 | AY185: 1 | AZ185: 1 | BA185: 1 | BB185: 0.961 | BC185: 0.971 | BD185: 0 | BE185: 0.495 | BF185: 0.0031625 | BG185: 0.2475 | BH185: 0.110952381
A186: TC1 | B186: TcIL3000_10_13490 | C186: 3700653 | D186: G | E186: C | F186: missense | G186: mitochondrial carrier protein putative | H186: 1 | I186: 1 | J186: 1 | K186: 1 | L186: 1 | M186: 1 | N186: 0.982 | O186: 1 | P186: 1 | Q186: 0.304 | R186: 1 | S186: 1 | T186: 1 | U186: 1 | V186: 0.975 | W186: 1 | X186: 0.882 | Y186: 1 | Z186: 1 | AA186: 1 | AB186: 0.923 | AC186: 0.737 | AD186: 0.625 | AE186: 1 | AF186: 0.94 | AG186: 1 | AH186: 1 | AI186: 1 | AJ186: 0.685 | AK186: 1 | AL186: 1 | AM186: 1 | AN186: 1 | AO186: 0.588 | AP186: 1 | AQ186: 0.968 | AR186: 1 | AS186: 1 | AT186: 1 | AU186: 0.909 | AV186: 0.286 | AW186: 1 | AX186: 0.96 | AY186: 1 | AZ186: 0.562 | BA186: 0.969 | BB186: 0.4 | BC186: 0.32 | BD186: 1 | BE186: 1 | BF186: 0.290425 | BG186: 0 | BH186: 0.05815873016
A187: TC1 | B187: TcIL3000_8_4200 | C187: 1237231 | D187: T | E187: A | F187: missense | G187: mitochondrial carrier protein putative | H187: 0 | I187: 0 | J187: 0 | K187: 0 | L187: 0 | M187: 0.042 | N187: 0 | O187: 0 | P187: 0 | Q187: 0.385 | R187: 0 | S187: 0 | T187: 0 | U187: 0 | V187: 0.612 | W187: 0.5 | X187: 0 | Y187: 0 | Z187: 0 | AA187: 0 | AB187: 0 | AC187: 0 | AD187: 0 | AE187: 0 | AF187: 0.029 | AG187: 0 | AH187: 0 | AI187: 0 | AJ187: 0.01 | AK187: 0 | AL187: 0 | AM187: 0 | AN187: 0 | AO187: 0 | AP187: 0.304 | AQ187: 0.524 | AR187: 0 | AS187: 0 | AT187: 0 | AU187: 0 | AV187: 0 | AW187: 0 | AX187: 0 | AY187: 0.556 | AZ187: 0.562 | BA187: 0 | BB187: 0 | BC187: 0.636 | BD187: 0 | BE187: 0 | BF187: 0.2467375 | BG187: 0 | BH187: 0.04061111111
A188: TC1 | B188: TcIL3000_8_4200 | C188: 1237419 | D188: C | E188: A | F188: missense | G188: mitochondrial carrier protein putative | H188: 0 | I188: 0 | J188: 0 | K188: 0 | L188: 0 | M188: 0 | N188: 0.016 | O188: 0 | P188: 0 | Q188: 0 | R188: 0 | S188: 0 | T188: 0 | U188: 0.023 | V188: 0.016 | W188: 0 | X188: 0.043 | Y188: 0.059 | Z188: 0.476 | AA188: 0.385 | AB188: 0.967 | AC188: 0.667 | AD188: 0.667 | AE188: 0.684 | AF188: 0.462 | AG188: 0.385 | AH188: 0.385 | AI188: 0 | AJ188: 0 | AK188: 0 | AL188: 0 | AM188: 0 | AN188: 0 | AO188: 0 | AP188: 0 | AQ188: 0 | AR188: 0 | AS188: 0 | AT188: 0 | AU188: 0.067 | AV188: 0 | AW188: 0 | AX188: 0 | AY188: 0 | AZ188: 0 | BA188: 0 | BB188: 0 | BC188: 0.357 | BD188: 0 | BE188: 0 | BF188: 0.2547875 | BG188: 0 | BH188: 0.008682539683
A189: TC1 | B189: TcIL3000_10_10930 | C189: 2955842 | D189: C | E189: T | F189: missense | G189: mitochondrial carrier protein putativemitochondrial 2-oxoglutaratemalate carrier protein putative | H189: 0 | I189: 0 | J189: 0 | K189: 0 | L189: 0 | M189: 0 | N189: 0 | O189: 0 | P189: 0 | Q189: 0 | R189: 0 | S189: 0 | T189: 0 | U189: 0.293 | V189: 0.011 | W189: 0 | X189: 0.333 | Y189: 1 | Z189: 0.167 | AA189: 1 | AB189: 1 | AC189: 0.4 | AD189: 0.429 | AE189: 1 | AF189: 0 | AG189: 0 | AH189: 0.5 | AI189: 0 | AJ189: 0.852 | AK189: 0 | AL189: 0 | AM189: 0 | AN189: 0 | AO189: 0 | AP189: 0 | AQ189: 0.333 | AR189: 0 | AS189: 0 | AT189: 0 | AU189: 0 | AV189: 0 | AW189: 0 | AX189: 0 | AY189: 0 | AZ189: 0 | BA189: 0 | BB189: 0 | BC189: 0.4 | BD189: 0 | BE189: 0 | BF189: 0.324125 | BG189: 0 | BH189: 0
A190: TC2 | B190: TcIL3000_5_2940 | C190: 787719 | D190: G | E190: A | F190: missense | G190: mitochondrial DNA polymerase beta-PAK putative | H190: 0.56 | I190: 0.478 | J190: 0.7 | K190: 0 | L190: 0 | M190: 0.6 | N190: 0 | O190: 0 | P190: 0.583 | Q190: 0 | R190: 0.364 | S190: 0 | T190: 0 | U190: 0 | V190: 0.011 | W190: 0 | X190: 0 | Y190: 0 | Z190: 0 | AA190: 0 | AB190: 0 | AC190: 0 | AD190: 0 | AE190: 0 | AF190: 0 | AG190: 0 | AH190: 0 | AI190: 0 | AJ190: 0.01 | AK190: 0 | AL190: 0.625 | AM190: 0.567 | AN190: 0 | AO190: 0.6 | AP190: 0 | AQ190: 0.03 | AR190: 0.429 | AS190: 0.125 | AT190: 0 | AU190: 0 | AV190: 0.4 | AW190: 0 | AX190: 0 | AY190: 0 | AZ190: 0 | BA190: 0 | BB190: 0 | BC190: 0 | BD190: 0 | BE190: 0.543 | BF190: 0.0025625 | BG190: 0.2715 | BH190: 0.1457698413
A191: Zambia | B191: TcIL3000.11.4800 | C191: 1367814 | D191: A | E191: G | F191: missense | G191: mitochondrial DNA polymerase I protein B putativeDNA polymerase I-like protein B | H191: 0 | I191: 0.208 | J191: 0.368 | K191: 0 | L191: 0 | M191: 0 | N191: 0.03 | O191: 0 | P191: 0 | Q191: 0 | R191: 0 | S191: 0.708 | T191: 0.684 | U191: 1 | V191: 1 | W191: 1 | X191: 1 | Y191: 1 | Z191: 1 | AA191: 1 | AB191: 0.938 | AC191: 1 | AD191: 1 | AE191: 1 | AF191: 1 | AG191: 1 | AH191: 1 | AI191: 0.976 | AJ191: 0.671 | AK191: 0 | AL191: 0 | AM191: 0.5 | AN191: 0.556 | AO191: 0 | AP191: 0.529 | AQ191: 1 | AR191: 0.273 | AS191: 1 | AT191: 1 | AU191: 1 | AV191: 0.611 | AW191: 0.982 | AX191: 0.52 | AY191: 1 | AZ191: 1 | BA191: 1 | BB191: 1 | BC191: 1 | BD191: 0 | BE191: 0.411 | BF191: 0.005375 | BG191: 0.2055 | BH191: 0.5703730159
A192: Zambia | B192: TcIL3000_7_3180 | C192: 1106475 | D192: C | E192: T | F192: missense | G192: mitochondrial DNA polymerase I protein C putative | H192: 0 | I192: 0 | J192: 0 | K192: 0 | L192: 0.375 | M192: 0 | N192: 0.481 | O192: 0 | P192: 0 | Q192: 0 | R192: 1 | S192: 0 | T192: 0 | U192: 0.028 | V192: 0.015 | W192: 0 | X192: 0 | Y192: 0 | Z192: 0 | AA192: 0.045 | AB192: 0 | AC192: 0 | AD192: 0 | AE192: 0 | AF192: 0 | AG192: 0 | AH192: 0 | AI192: 0 | AJ192: 0 | AK192: 0 | AL192: 0 | AM192: 0.417 | AN192: 0.667 | AO192: 0 | AP192: 0.318 | AQ192: 0 | AR192: 0.5 | AS192: 0 | AT192: 0.655 | AU192: 0 | AV192: 1 | AW192: 0.425 | AX192: 0.474 | AY192: 0 | AZ192: 0 | BA192: 0 | BB192: 0 | BC192: 0 | BD192: 0 | BE192: 0 | BF192: 0.0055 | BG192: 0 | BH192: 0.2552857143
A193: TC2 | B193: TcIL3000_7_3180 | C193: 1104647 | D193: T | E193: A | F193: missense | G193: mitochondrial DNA polymerase I protein C putative | H193: 0 | I193: 0 | J193: 0 | K193: 0 | L193: 0 | M193: 0.727 | N193: 0 | O193: 0 | P193: 0.222 | Q193: 0.429 | R193: 0 | S193: 0 | T193: 0 | U193: 0 | V193: 0 | W193: 0 | X193: 0 | Y193: 0 | Z193: 0 | AA193: 0 | AB193: 0 | AC193: 0 | AD193: 0 | AE193: 0 | AF193: 0 | AG193: 0 | AH193: 0 | AI193: 0 | AJ193: 0.027 | AK193: 1 | AL193: 0 | AM193: 0 | AN193: 0 | AO193: 0 | AP193: 0 | AQ193: 0 | AR193: 0 | AS193: 0.462 | AT193: 0.588 | AU193: 0 | AV193: 0 | AW193: 0 | AX193: 0 | AY193: 0 | AZ193: 0 | BA193: 0 | BB193: 0.032 | BC193: 0 | BD193: 1 | BE193: 0.478 | BF193: 0.0064 | BG193: 0.261 | BH193: 0.07344444444
A194: TC2 | B194: TcIL3000_7_3180 | C194: 1105284 | D194: G | E194: T | F194: missense | G194: mitochondrial DNA polymerase I protein C putative | H194: 1 | I194: 1 | J194: 1 | K194: 1 | L194: 1 | M194: 0.231 | N194: 1 | O194: 1 | P194: 0.571 | Q194: 0.5 | R194: 0.9 | S194: 1 | T194: 1 | U194: 1 | V194: 0.983 | W194: 1 | X194: 1 | Y194: 1 | Z194: 1 | AA194: 0.938 | AB194: 0.968 | AC194: 1 | AD194: 1 | AE194: 1 | AF194: 1 | AG194: 1 | AH194: 1 | AI194: 1 | AJ194: 0.968 | AK194: 0.857 | AL194: 1 | AM194: 1 | AN194: 1 | AO194: 1 | AP194: 1 | AQ194: 1 | AR194: 1 | AS194: 1 | AT194: 0.439 | AU194: 1 | AV194: 1 | AW194: 1 | AX194: 1 | AY194: 1 | AZ194: 1 | BA194: 1 | BB194: 0.94 | BC194: 0.955 | BD194: 0.556 | BE194: 0.592 | BF194: 0.0140625 | BG194: 0.283 | BH194: 0.01974603175
A195: Zambia | B195: TcIL3000_7_4820 | C195: 1662289 | D195: A | E195: C | F195: missense | G195: Monooxygenase putative | H195: 0.2 | I195: 0.579 | J195: 0.5 | K195: 0.353 | L195: 0.552 | M195: 0.706 | N195: 0.446 | O195: 0.577 | P195: 0.455 | Q195: 0.636 | R195: 0 | S195: 0.444 | T195: 0.619 | U195: 0 | V195: 0.015 | W195: 0.026 | X195: 0 | Y195: 0.045 | Z195: 0 | AA195: 0 | AB195: 0.038 | AC195: 0 | AD195: 0 | AE195: 0 | AF195: 0 | AG195: 0 | AH195: 0 | AI195: 0 | AJ195: 0.36 | AK195: 0 | AL195: 0.357 | AM195: 0.312 | AN195: 0.515 | AO195: 0 | AP195: 0 | AQ195: 0 | AR195: 0.167 | AS195: 0.556 | AT195: 0 | AU195: 0 | AV195: 0 | AW195: 0 | AX195: 0 | AY195: 0 | AZ195: 0 | BA195: 0 | BB195: 0 | BC195: 0 | BD195: 0 | BE195: 0 | BF195: 0.00775 | BG195: 0 | BH195: 0.299547619
A196: Zambia | B196: TcIL3000_7_4820 | C196: 1662298 | D196: G | E196: A | F196: missense | G196: Monooxygenase putative | H196: 0.235 | I196: 0.474 | J196: 0.5 | K196: 0.3 | L196: 0.593 | M196: 0.733 | N196: 0.451 | O196: 0.5 | P196: 0.478 | Q196: 0.636 | R196: 0 | S196: 0.412 | T196: 0.65 | U196: 0 | V196: 0 | W196: 0 | X196: 0 | Y196: 0 | Z196: 0 | AA196: 0 | AB196: 0 | AC196: 0 | AD196: 0 | AE196: 0 | AF196: 0 | AG196: 0 | AH196: 0 | AI196: 0 | AJ196: 0.28 | AK196: 0 | AL196: 0.308 | AM196: 0.312 | AN196: 0.5 | AO196: 0 | AP196: 0 | AQ196: 0 | AR196: 0.167 | AS196: 0.636 | AT196: 0 | AU196: 0 | AV196: 0 | AW196: 0 | AX196: 0 | AY196: 0 | AZ196: 0 | BA196: 0 | BB196: 0 | BC196: 0 | BD196: 0 | BE196: 0.01 | BF196: 0 | BG196: 0.005 | BH196: 0.2787301587
A197: TC2 | B197: TcIL3000_7_4820 | C197: 1662098 | D197: G | E197: C | F197: missense | G197: Monooxygenase putative | H197: 1 | I197: 1 | J197: 1 | K197: 1 | L197: 1 | M197: 1 | N197: 1 | O197: 1 | P197: 1 | Q197: 0.895 | R197: 1 | S197: 0.417 | T197: 0.576 | U197: 0 | V197: 0.422 | W197: 0.464 | X197: 0.581 | Y197: 0 | Z197: 0 | AA197: 0.04 | AB197: 0 | AC197: 0 | AD197: 0 | AE197: 0 | AF197: 0.5 | AG197: 0.415 | AH197: 0.323 | AI197: 1 | AJ197: 0.6 | AK197: 0.25 | AL197: 1 | AM197: 1 | AN197: 1 | AO197: 0.389 | AP197: 0.538 | AQ197: 0 | AR197: 1 | AS197: 0.588 | AT197: 1 | AU197: 1 | AV197: 1 | AW197: 0 | AX197: 0 | AY197: 0 | AZ197: 0 | BA197: 0 | BB197: 0 | BC197: 0 | BD197: 0.532 | BE197: 0.518 | BF197: 0.2340625 | BG197: 0.275 | BH197: 0.2231825397
A198: TC2, Zambia | B198: TcIL3000_8_2160 | C198: 561059 | D198: A | E198: G | F198: missense | G198: multidrug resistance associated protein | H198: 1 | I198: 0.581 | J198: 1 | K198: 0.556 | L198: 1 | M198: 0.344 | N198: 1 | O198: 0.944 | P198: 0.5 | Q198: 1 | R198: 1 | S198: 0.409 | T198: 0.667 | U198: 0.41 | V198: 0.477 | W198: 0.531 | X198: 1 | Y198: 0.294 | Z198: 1 | AA198: 0.571 | AB198: 0.703 | AC198: 0.5 | AD198: 0.571 | AE198: 0.577 | AF198: 0.447 | AG198: 0.591 | AH198: 0.625 | AI198: 0 | AJ198: 0.659 | AK198: 0.4 | AL198: 1 | AM198: 0.474 | AN198: 0.562 | AO198: 0.667 | AP198: 0.36 | AQ198: 1 | AR198: 0.5 | AS198: 0.65 | AT198: 0 | AU198: 0.231 | AV198: 0.333 | AW198: 1 | AX198: 0.4 | AY198: 0.583 | AZ198: 1 | BA198: 0.5 | BB198: 0.464 | BC198: 1 | BD198: 0.593 | BE198: 0.984 | BF198: 0.1283375 | BG198: 0.3885 | BH198: 0.2809206349
A199: TC1 | B199: TcIL3000_8_2160 | C199: 561552 | D199: A | E199: G | F199: missense | G199: multidrug resistance associated protein | H199: 0 | I199: 0 | J199: 0 | K199: 0 | L199: 0 | M199: 0 | N199: 0 | O199: 0 | P199: 0 | Q199: 0 | R199: 0 | S199: 0 | T199: 0 | U199: 0.033 | V199: 0.024 | W199: 0 | X199: 0 | Y199: 0 | Z199: 0 | AA199: 0 | AB199: 0 | AC199: 0 | AD199: 0 | AE199: 0 | AF199: 0 | AG199: 0 | AH199: 0.316 | AI199: 0 | AJ199: 0.406 | AK199: 0 | AL199: 0 | AM199: 0 | AN199: 0 | AO199: 0 | AP199: 0 | AQ199: 1 | AR199: 0 | AS199: 0 | AT199: 0 | AU199: 0 | AV199: 0 | AW199: 0 | AX199: 0 | AY199: 0 | AZ199: 0.538 | BA199: 0 | BB199: 0.611 | BC199: 0.636 | BD199: 0 | BE199: 0 | BF199: 0.2711875 | BG199: 0 | BH199: 0
A200: TC1 | B200: TcIL3000_10_8200 | C200: 2208459 | D200: A | E200: G | F200: missense | G200: NADH dehydrogenase putative | H200: 0 | I200: 0 | J200: 0 | K200: 0 | L200: 0 | M200: 0 | N200: 0 | O200: 0 | P200: 0 | Q200: 0 | R200: 0 | S200: 0.333 | T200: 0.44 | U200: 0 | V200: 0 | W200: 0 | X200: 0 | Y200: 0 | Z200: 1 | AA200: 0.515 | AB200: 1 | AC200: 0 | AD200: 0 | AE200: 0.238 | AF200: 0 | AG200: 0.029 | AH200: 0.412 | AI200: 0 | AJ200: 0 | AK200: 0 | AL200: 0 | AM200: 0 | AN200: 0 | AO200: 0 | AP200: 0.636 | AQ200: 0 | AR200: 0 | AS200: 0 | AT200: 0.026 | AU200: 0 | AV200: 0 | AW200: 0 | AX200: 0 | AY200: 1 | AZ200: 1 | BA200: 0.476 | BB200: 1 | BC200: 0.429 | BD200: 0 | BE200: 0 | BF200: =ABS(AVERAGE(U200:AI200,AQ200)-AVERAGE(AY200:BC200)) -> 0.581375 | BG200: =ABS(AVERAGE(BD200:BE200)-AK200) -> 0 | BH200: =ABS(AVERAGE(H200:T200,AL200:AP200)-AVERAGE(AR200:AX200)) -> 0.07456349206
A201: TC1 | B201: TcIL3000_10_8200 | C201: 2207781 | D201: G | E201: A | F201: missense | G201: NADH dehydrogenase putative | H201: 0.032 | I201: 0 | J201: 0 | K201: 0 | L201: 0 | M201: 0 | N201: 0 | O201: 0.458 | P201: 0 | Q201: 0 | R201: 0 | S201: 0 | T201: 0 | U201: 1 | V201: 0 | W201: 0.933 | X201: 1 | Y201: 0.909 | Z201: 0 | AA201: 0 | AB201: 0 | AC201: 1 | AD201: 1 | AE201: 0 | AF201: 1 | AG201: 1 | AH201: 0 | AI201: 1 | AJ201: 0.98 | AK201: 0 | AL201: 0 | AM201: 0 | AN201: 0 | AO201: 0.571 | AP201: 0 | AQ201: 0.524 | AR201: 0 | AS201: 0 | AT201: 0 | AU201: 0.562 | AV201: 0 | AW201: 0 | AX201: 0.037 | AY201: 0 | AZ201: 0 | BA201: 0.462 | BB201: 0.475 | BC201: 0.526 | BD201: 0 | BE201: 0.009 | BF201: 0.292775 | BG201: 0.0045 | BH201: 0.02662698413
... 23 more rows

Sheet Figure S1
